{"text_format":"1","workbook":"xlsx","n_sheets":14,"sheets":["PLANILHA_SINTÉTICA","Cotações","Composições","RESUMO","FOLHA FECHAMENTO","BDI","QUANTITATIVO","CURVA ABC","DECLARAÇÃO","PLANILHA REFERENCIA DETRAN PR","POR LOTE","der","dnit","scorj"],"not_rendered":{"charts":0,"images":7,"macros":1,"external_links":4,"defined_names":15,"comments":0,"pivot_tables":0},"unopened":[],"bounds":{"document_bytes":16777216,"sheet_cells":100000,"rows_first":2000,"rows_last":500,"rows_between":2000,"halvings":0,"cell_chars":16384,"cell_head_chars":4096},"cells_cut":0,"cells_raw":0,"read":"whole","date_system":"1900"}

{"sheet":"PLANILHA_SINTÉTICA","index":0,"n_rows":57,"n_cols":18,"rows_kept":57,"cut":false,"hidden":false,"merged":[[2,4,2,6],[4,2,4,12],[52,7,52,10],[51,7,51,10],[51,11,51,12],[52,11,52,12],[53,11,53,12],[53,7,53,10],[7,17,11,22],[6,2,6,12],[7,2,7,12]]}
[]
[]
[null,null,null," ","ANEXO X - LOTE 2",null,null," "]
[]
[null,null,"PLANILHA DE SERVIÇOS SINTÉTICA NÃO DESONERADA"]
[]
[null,null,"DEPARTAMENTO ESTADUAL DE TRÂNSITO - DETRAN PR"]
[null,null,"COORDENADORIA DE ENGENHARIA E ARQUITETURA - DIVISÃO DE SINALIZAÇÃO",null,null,null,null,null,null,null,null,null,null,null,null,null,null,"EDITAR OS ITENS EM VERMELHO E APAGAR OS ITENS COM QUANTITATIVO ZERADO"]
[null,null,"PROJETO DE SINALIZAÇÃO VIÁRIA URBANA",null,{"$f":"'FOLHA FECHAMENTO'!D12","v":"lote 02"},null,null,null,null,null,"ART/RRT Nº:",{"$f":"'FOLHA FECHAMENTO'!M18","v":"16594464"}]
[null,"ref.",{"$f":"'FOLHA FECHAMENTO'!F41","v":"SICRO (OUT/2025), DER (AGO/2025) e SCO-RIO (DEZ/2025), SIURB (OUT/2025) S. DESONERAÇÃO"},null,"RESPONSÁVEL TÉCNICO: ",null,{"$f":"'FOLHA FECHAMENTO'!H17","v":"Amanda Patricia de Oliveira Henning"},null,null,null,"REG. CREA/CAU: ",{"$f":"'FOLHA FECHAMENTO'!M17","v":"A284127-4"}]
[null,null,"lote 02",null,null,null,null,null,null,null,"Vigência planilha",{"$f":"TODAY()","v":46239}]
[]
[null,"ITEM","DESCRIÇÃO","ÓRGÃO","CÓDIGO","DATA BASE","UNIDADE","QUANTIDADE","MÃO DE OBRA","MATERIAL","CUSTO UNITÁRIO","MÃO DE OBRA T.","MATERIAL T.","CUSTO TOTAL"]
[null,1,"SINALIZAÇÃO VERTICAL",null,null,null,null,"-",null,null,null,{"$f":"ROUND(SUM(L15:L38),2)","v":326536.46000000002},{"$f":"ROUND(SUM(M15:M38),2)","v":1631246.99},{"$f":"ROUND(SUM(N15:N38),2)","v":1957783.46}]
[null,{"$f":"'PLANILHA REFERENCIA DETRAN PR'!A7","v":"1.1"},{"$f":"VLOOKUP(Tabela2[[#This Row],[ITEM]],'PLANILHA REFERENCIA DETRAN PR'!$A$4:$I$42,2,FALSE)","v":"Placa tipo R-1 - L = 0,25m. Com película refletiva tipo I A (prismática) - Área: 0,32 m²"},{"$f":"VLOOKUP(Tabela2[[#This Row],[ITEM]],'PLANILHA REFERENCIA DETRAN PR'!$A$4:$I$42,3,FALSE)","v":"DETRAN-PR"},{"$f":"VLOOKUP(Tabela2[[#This Row],[ITEM]],'PLANILHA REFERENCIA DETRAN PR'!$A$4:$I$42,4,FALSE)","v":"COMP.05"},{"$f":"VLOOKUP(Tabela2[[#This Row],[ITEM]],'PLANILHA REFERENCIA DETRAN PR'!$A$4:$I$42,5,FALSE)","v":"2025-12-30"},{"$f":"VLOOKUP(Tabela2[[#This Row],[ITEM]],'PLANILHA REFERENCIA DETRAN PR'!$A$4:$I$42,6,FALSE)","v":"m²"},316,{"$f":"VLOOKUP(Tabela2[[#This Row],[ITEM]],'PLANILHA REFERENCIA DETRAN PR'!$A$4:$I$42,7,FALSE)","v":16.850000000000001},{"$f":"VLOOKUP(Tabela2[[#This Row],[ITEM]],'PLANILHA REFERENCIA DETRAN PR'!$A$4:$I$42,8,FALSE)","v":155.25},{"$f":"Tabela2[[#This Row],[MATERIAL]]+Tabela2[[#This Row],[MÃO DE OBRA]]","v":172.1},{"$f":"ROUND(I15*H15,2)","v":5324.6},{"$f":"ROUND(J15*H15,2)","v":49059},{"$f":"ROUND((K15*H15),2)","v":54383.6}]
[null,{"$f":"'PLANILHA REFERENCIA DETRAN PR'!A8","v":"1.2"},{"$f":"VLOOKUP(Tabela2[[#This Row],[ITEM]],'PLANILHA REFERENCIA DETRAN PR'!$A$4:$I$42,2,FALSE)","v":"Placa tipo R-2 - L = 0,75m. Com película refletiva tipo I A (prismática) - Área: 0,24m²"},{"$f":"VLOOKUP(Tabela2[[#This Row],[ITEM]],'PLANILHA REFERENCIA DETRAN PR'!$A$4:$I$42,3,FALSE)","v":"DETRAN-PR"},{"$f":"VLOOKUP(Tabela2[[#This Row],[ITEM]],'PLANILHA REFERENCIA DETRAN PR'!$A$4:$I$42,4,FALSE)","v":"COMP.06"},{"$f":"VLOOKUP(Tabela2[[#This Row],[ITEM]],'PLANILHA REFERENCIA DETRAN PR'!$A$4:$I$42,5,FALSE)","v":"2025-12-30"},{"$f":"VLOOKUP(Tabela2[[#This Row],[ITEM]],'PLANILHA REFERENCIA DETRAN PR'!$A$4:$I$42,6,FALSE)","v":"m²"},145,{"$f":"VLOOKUP(Tabela2[[#This Row],[ITEM]],'PLANILHA REFERENCIA DETRAN PR'!$A$4:$I$42,7,FALSE)","v":12.64},{"$f":"VLOOKUP(Tabela2[[#This Row],[ITEM]],'PLANILHA REFERENCIA DETRAN PR'!$A$4:$I$42,8,FALSE)","v":116.44},{"$f":"Tabela2[[#This Row],[MATERIAL]]+Tabela2[[#This Row],[MÃO DE OBRA]]","v":129.07999999999998},1832.8,{"$f":"ROUND(J16*H16,2)","v":16883.8},18716.599999999999]
[null,{"$f":"'PLANILHA REFERENCIA DETRAN PR'!A9","v":"1.3"},{"$f":"VLOOKUP(Tabela2[[#This Row],[ITEM]],'PLANILHA REFERENCIA DETRAN PR'!$A$4:$I$42,2,FALSE)","v":"Placa tipo circular - D = 0,50m. Com película refletiva tipo I A (prismática) - Área: 0,21m²"},{"$f":"VLOOKUP(Tabela2[[#This Row],[ITEM]],'PLANILHA REFERENCIA DETRAN PR'!$A$4:$I$42,3,FALSE)","v":"DETRAN-PR"},{"$f":"VLOOKUP(Tabela2[[#This Row],[ITEM]],'PLANILHA REFERENCIA DETRAN PR'!$A$4:$I$42,4,FALSE)","v":"COMP.07"},{"$f":"VLOOKUP(Tabela2[[#This Row],[ITEM]],'PLANILHA REFERENCIA DETRAN PR'!$A$4:$I$42,5,FALSE)","v":"2025-12-30"},{"$f":"VLOOKUP(Tabela2[[#This Row],[ITEM]],'PLANILHA REFERENCIA DETRAN PR'!$A$4:$I$42,6,FALSE)","v":"m²"},497,{"$f":"VLOOKUP(Tabela2[[#This Row],[ITEM]],'PLANILHA REFERENCIA DETRAN PR'!$A$4:$I$42,7,FALSE)","v":11.06},{"$f":"VLOOKUP(Tabela2[[#This Row],[ITEM]],'PLANILHA REFERENCIA DETRAN PR'!$A$4:$I$42,8,FALSE)","v":101.88},{"$f":"Tabela2[[#This Row],[MATERIAL]]+Tabela2[[#This Row],[MÃO DE OBRA]]","v":112.94},5496.82,{"$f":"ROUND(J17*H17,2)","v":50634.36},56131.18]
[null,{"$f":"'PLANILHA REFERENCIA DETRAN PR'!A10","v":"1.4"},{"$f":"VLOOKUP(Tabela2[[#This Row],[ITEM]],'PLANILHA REFERENCIA DETRAN PR'!$A$4:$I$42,2,FALSE)","v":"Placa tipo de advertência - L = 0,50m. Com película refletiva tipo I A (prismática) - Área: 0,27 m²"},{"$f":"VLOOKUP(Tabela2[[#This Row],[ITEM]],'PLANILHA REFERENCIA DETRAN PR'!$A$4:$I$42,3,FALSE)","v":"DETRAN-PR"},{"$f":"VLOOKUP(Tabela2[[#This Row],[ITEM]],'PLANILHA REFERENCIA DETRAN PR'!$A$4:$I$42,4,FALSE)","v":"COMP.08"},{"$f":"VLOOKUP(Tabela2[[#This Row],[ITEM]],'PLANILHA REFERENCIA DETRAN PR'!$A$4:$I$42,5,FALSE)","v":"2025-12-30"},{"$f":"VLOOKUP(Tabela2[[#This Row],[ITEM]],'PLANILHA REFERENCIA DETRAN PR'!$A$4:$I$42,6,FALSE)","v":"m²"},210,{"$f":"VLOOKUP(Tabela2[[#This Row],[ITEM]],'PLANILHA REFERENCIA DETRAN PR'!$A$4:$I$42,7,FALSE)","v":14.22},{"$f":"VLOOKUP(Tabela2[[#This Row],[ITEM]],'PLANILHA REFERENCIA DETRAN PR'!$A$4:$I$42,8,FALSE)","v":130.99},{"$f":"Tabela2[[#This Row],[MATERIAL]]+Tabela2[[#This Row],[MÃO DE OBRA]]","v":145.21},2986.2,{"$f":"ROUND(J18*H18,2)","v":27507.9},30494.1]
[null,{"$f":"'PLANILHA REFERENCIA DETRAN PR'!A11","v":"1.5"},{"$f":"VLOOKUP(Tabela2[[#This Row],[ITEM]],'PLANILHA REFERENCIA DETRAN PR'!$A$4:$I$42,2,FALSE)","v":"Placa tipo retangular - L = 0,50m x h= 1,00 m. Com película refletiva tipo I A (prismática)"},{"$f":"'PLANILHA REFERENCIA DETRAN PR'!C10","v":"DETRAN-PR"},{"$f":"VLOOKUP(Tabela2[[#This Row],[ITEM]],'PLANILHA REFERENCIA DETRAN PR'!$A$4:$I$42,4,FALSE)","v":"COMP.09"},{"$f":"'PLANILHA REFERENCIA DETRAN PR'!E10","v":"2025-12-30"},{"$f":"VLOOKUP(Tabela2[[#This Row],[ITEM]],'PLANILHA REFERENCIA DETRAN PR'!$A$4:$I$42,6,FALSE)","v":"m²"},318,{"$f":"VLOOKUP(Tabela2[[#This Row],[ITEM]],'PLANILHA REFERENCIA DETRAN PR'!$A$4:$I$42,7,FALSE)","v":26.34},{"$f":"VLOOKUP(Tabela2[[#This Row],[ITEM]],'PLANILHA REFERENCIA DETRAN PR'!$A$4:$I$42,8,FALSE)","v":242.58},{"$f":"Tabela2[[#This Row],[MATERIAL]]+Tabela2[[#This Row],[MÃO DE OBRA]]","v":268.92},8376.1200000000008,{"$f":"ROUND(J19*H19,2)","v":77140.44},85516.56]
[null,{"$f":"'PLANILHA REFERENCIA DETRAN PR'!A12","v":"1.6"},{"$f":"VLOOKUP(Tabela2[[#This Row],[ITEM]],'PLANILHA REFERENCIA DETRAN PR'!$A$4:$I$42,2,FALSE)","v":"Placa sinalização em chapa de aço nº18 galvanizada c/ película refletiva Tipo I A (prismática) - Utilizar apenas para placas não listadas no orçamento"},{"$f":"VLOOKUP(Tabela2[[#This Row],[ITEM]],'PLANILHA REFERENCIA DETRAN PR'!$A$4:$I$42,3,FALSE)","v":"DERPR"},{"$f":"VLOOKUP(Tabela2[[#This Row],[ITEM]],'PLANILHA REFERENCIA DETRAN PR'!$A$4:$I$42,4,FALSE)","v":820000},{"$f":"VLOOKUP(Tabela2[[#This Row],[ITEM]],'PLANILHA REFERENCIA DETRAN PR'!$A$4:$I$42,5,FALSE)","v":"2025-08-31"},{"$f":"VLOOKUP(Tabela2[[#This Row],[ITEM]],'PLANILHA REFERENCIA DETRAN PR'!$A$4:$I$42,6,FALSE)","v":"m2"},173.47,{"$f":"VLOOKUP(Tabela2[[#This Row],[ITEM]],'PLANILHA REFERENCIA DETRAN PR'!$A$4:$I$42,7,FALSE)","v":190.97},{"$f":"VLOOKUP(Tabela2[[#This Row],[ITEM]],'PLANILHA REFERENCIA DETRAN PR'!$A$4:$I$42,8,FALSE)","v":346.85},{"$f":"Tabela2[[#This Row],[MATERIAL]]+Tabela2[[#This Row],[MÃO DE OBRA]]","v":537.82000000000005},33127.57,{"$f":"TRUNC(J20*H20,2)","v":60168.06},93295.64]
[null,{"$f":"'PLANILHA REFERENCIA DETRAN PR'!A13","v":"1.7"},{"$f":"VLOOKUP(Tabela2[[#This Row],[ITEM]],'PLANILHA REFERENCIA DETRAN PR'!$A$4:$I$42,2,FALSE)","v":"Suporte polimérico ecológico maciço colapsível D = 6,5 cm para placa de sinalização - fornecimento e implantação - 3,00 m"},{"$f":"VLOOKUP(Tabela2[[#This Row],[ITEM]],'PLANILHA REFERENCIA DETRAN PR'!$A$4:$I$42,3,FALSE)","v":"DNIT"},{"$f":"VLOOKUP(Tabela2[[#This Row],[ITEM]],'PLANILHA REFERENCIA DETRAN PR'!$A$4:$I$42,4,FALSE)","v":"5213351-ed"},{"$f":"VLOOKUP(Tabela2[[#This Row],[ITEM]],'PLANILHA REFERENCIA DETRAN PR'!$A$4:$I$42,5,FALSE)","v":"2025-10-01"},{"$f":"VLOOKUP(Tabela2[[#This Row],[ITEM]],'PLANILHA REFERENCIA DETRAN PR'!$A$4:$I$42,6,FALSE)","v":"un"},28,{"$f":"VLOOKUP(Tabela2[[#This Row],[ITEM]],'PLANILHA REFERENCIA DETRAN PR'!$A$4:$I$42,7,FALSE)","v":0},{"$f":"VLOOKUP(Tabela2[[#This Row],[ITEM]],'PLANILHA REFERENCIA DETRAN PR'!$A$4:$I$42,8,FALSE)","v":810.79},{"$f":"Tabela2[[#This Row],[MATERIAL]]+Tabela2[[#This Row],[MÃO DE OBRA]]","v":810.79},0,{"$f":"ROUND(J21*H21,2)","v":22702.12},22702.12]
[null,{"$f":"'PLANILHA REFERENCIA DETRAN PR'!A14","v":"1.8"},{"$f":"VLOOKUP(Tabela2[[#This Row],[ITEM]],'PLANILHA REFERENCIA DETRAN PR'!$A$4:$I$42,2,FALSE)","v":"Suporte polimérico ecológico maciço colapsível D = 6,5 cm para placa de sinalização - fornecimento e implantação - 3,60 m"},{"$f":"VLOOKUP(Tabela2[[#This Row],[ITEM]],'PLANILHA REFERENCIA DETRAN PR'!$A$4:$I$42,3,FALSE)","v":"DNIT"},{"$f":"VLOOKUP(Tabela2[[#This Row],[ITEM]],'PLANILHA REFERENCIA DETRAN PR'!$A$4:$I$42,4,FALSE)","v":5213351},{"$f":"VLOOKUP(Tabela2[[#This Row],[ITEM]],'PLANILHA REFERENCIA DETRAN PR'!$A$4:$I$42,5,FALSE)","v":"2025-10-01"},{"$f":"VLOOKUP(Tabela2[[#This Row],[ITEM]],'PLANILHA REFERENCIA DETRAN PR'!$A$4:$I$42,6,FALSE)","v":"un"},28,{"$f":"VLOOKUP(Tabela2[[#This Row],[ITEM]],'PLANILHA REFERENCIA DETRAN PR'!$A$4:$I$42,7,FALSE)","v":0},{"$f":"VLOOKUP(Tabela2[[#This Row],[ITEM]],'PLANILHA REFERENCIA DETRAN PR'!$A$4:$I$42,8,FALSE)","v":675.66},{"$f":"Tabela2[[#This Row],[MATERIAL]]+Tabela2[[#This Row],[MÃO DE OBRA]]","v":675.66},0,18918.48,18918.48]
[null,{"$f":"'PLANILHA REFERENCIA DETRAN PR'!A15","v":"1.9"},{"$f":"VLOOKUP(Tabela2[[#This Row],[ITEM]],'PLANILHA REFERENCIA DETRAN PR'!$A$4:$I$42,2,FALSE)","v":"Suporte metál.galv.fogo d=2,5\" c/tampa e aletas antigiro h=3,00m"},{"$f":"VLOOKUP(Tabela2[[#This Row],[ITEM]],'PLANILHA REFERENCIA DETRAN PR'!$A$4:$I$42,3,FALSE)","v":"DERPR"},{"$f":"VLOOKUP(Tabela2[[#This Row],[ITEM]],'PLANILHA REFERENCIA DETRAN PR'!$A$4:$I$42,4,FALSE)","v":821300},{"$f":"VLOOKUP(Tabela2[[#This Row],[ITEM]],'PLANILHA REFERENCIA DETRAN PR'!$A$4:$I$42,5,FALSE)","v":"2025-08-31"},{"$f":"VLOOKUP(Tabela2[[#This Row],[ITEM]],'PLANILHA REFERENCIA DETRAN PR'!$A$4:$I$42,6,FALSE)","v":"ud"},1184,{"$f":"VLOOKUP(Tabela2[[#This Row],[ITEM]],'PLANILHA REFERENCIA DETRAN PR'!$A$4:$I$42,7,FALSE)","v":72.92},{"$f":"VLOOKUP(Tabela2[[#This Row],[ITEM]],'PLANILHA REFERENCIA DETRAN PR'!$A$4:$I$42,8,FALSE)","v":336.69},{"$f":"Tabela2[[#This Row],[MATERIAL]]+Tabela2[[#This Row],[MÃO DE OBRA]]","v":409.61},86337.279999999999,398640.96,484978.24]
[null,{"$f":"'PLANILHA REFERENCIA DETRAN PR'!A16","v":"1.10"},{"$f":"VLOOKUP(Tabela2[[#This Row],[ITEM]],'PLANILHA REFERENCIA DETRAN PR'!$A$4:$I$42,2,FALSE)","v":"Suporte metál.galv.fogo d=2,5\" c/tampa e aletas antigiro h=3,50m"},{"$f":"VLOOKUP(Tabela2[[#This Row],[ITEM]],'PLANILHA REFERENCIA DETRAN PR'!$A$4:$I$42,3,FALSE)","v":"DERPR"},{"$f":"VLOOKUP(Tabela2[[#This Row],[ITEM]],'PLANILHA REFERENCIA DETRAN PR'!$A$4:$I$42,4,FALSE)","v":821350},{"$f":"VLOOKUP(Tabela2[[#This Row],[ITEM]],'PLANILHA REFERENCIA DETRAN PR'!$A$4:$I$42,5,FALSE)","v":"2025-08-31"},{"$f":"VLOOKUP(Tabela2[[#This Row],[ITEM]],'PLANILHA REFERENCIA DETRAN PR'!$A$4:$I$42,6,FALSE)","v":"ud"},298,{"$f":"VLOOKUP(Tabela2[[#This Row],[ITEM]],'PLANILHA REFERENCIA DETRAN PR'!$A$4:$I$42,7,FALSE)","v":72.92},{"$f":"VLOOKUP(Tabela2[[#This Row],[ITEM]],'PLANILHA REFERENCIA DETRAN PR'!$A$4:$I$42,8,FALSE)","v":392.69},{"$f":"Tabela2[[#This Row],[MATERIAL]]+Tabela2[[#This Row],[MÃO DE OBRA]]","v":465.61},21730.16,117021.62,138751.78]
[null,{"$f":"'PLANILHA REFERENCIA DETRAN PR'!A17","v":"1.11"},{"$f":"VLOOKUP(Tabela2[[#This Row],[ITEM]],'PLANILHA REFERENCIA DETRAN PR'!$A$4:$I$42,2,FALSE)","v":"Suporte metál.galv.fogo d=2,5\" c/tampa e aletas anti-giro h=4,00m"},{"$f":"VLOOKUP(Tabela2[[#This Row],[ITEM]],'PLANILHA REFERENCIA DETRAN PR'!$A$4:$I$42,3,FALSE)","v":"DERPR"},{"$f":"VLOOKUP(Tabela2[[#This Row],[ITEM]],'PLANILHA REFERENCIA DETRAN PR'!$A$4:$I$42,4,FALSE)","v":821400},{"$f":"VLOOKUP(Tabela2[[#This Row],[ITEM]],'PLANILHA REFERENCIA DETRAN PR'!$A$4:$I$42,5,FALSE)","v":"2025-08-31"},{"$f":"VLOOKUP(Tabela2[[#This Row],[ITEM]],'PLANILHA REFERENCIA DETRAN PR'!$A$4:$I$42,6,FALSE)","v":"ud"},52,{"$f":"VLOOKUP(Tabela2[[#This Row],[ITEM]],'PLANILHA REFERENCIA DETRAN PR'!$A$4:$I$42,7,FALSE)","v":72.92},{"$f":"VLOOKUP(Tabela2[[#This Row],[ITEM]],'PLANILHA REFERENCIA DETRAN PR'!$A$4:$I$42,8,FALSE)","v":447.83},{"$f":"Tabela2[[#This Row],[MATERIAL]]+Tabela2[[#This Row],[MÃO DE OBRA]]","v":520.75},3791.84,23287.16,27079]
[null,{"$f":"'PLANILHA REFERENCIA DETRAN PR'!A18","v":"1.12"},{"$f":"VLOOKUP(Tabela2[[#This Row],[ITEM]],'PLANILHA REFERENCIA DETRAN PR'!$A$4:$I$42,2,FALSE)","v":"Conjunto para placa indicativa (Coluna, Braço, Montagem, Fundação) para placas até 3,00m² - Coluna Tipo I com projeção de 2,80m"},{"$f":"VLOOKUP(Tabela2[[#This Row],[ITEM]],'PLANILHA REFERENCIA DETRAN PR'!$A$4:$I$42,3,FALSE)","v":"DETRAN-PR"},{"$f":"VLOOKUP(Tabela2[[#This Row],[ITEM]],'PLANILHA REFERENCIA DETRAN PR'!$A$4:$I$42,4,FALSE)","v":"COMP.02"},{"$f":"VLOOKUP(Tabela2[[#This Row],[ITEM]],'PLANILHA REFERENCIA DETRAN PR'!$A$4:$I$42,5,FALSE)","v":"2025-12-30"},{"$f":"VLOOKUP(Tabela2[[#This Row],[ITEM]],'PLANILHA REFERENCIA DETRAN PR'!$A$4:$I$42,6,FALSE)","v":"unid"},6,{"$f":"VLOOKUP(Tabela2[[#This Row],[ITEM]],'PLANILHA REFERENCIA DETRAN PR'!$A$4:$I$42,7,FALSE)","v":411.30000000000109},{"$f":"VLOOKUP(Tabela2[[#This Row],[ITEM]],'PLANILHA REFERENCIA DETRAN PR'!$A$4:$I$42,8,FALSE)","v":12011.65},{"$f":"Tabela2[[#This Row],[MATERIAL]]+Tabela2[[#This Row],[MÃO DE OBRA]]","v":12422.95},2467.8000000000002,72069.899999999994,74537.7]
[null,{"$f":"'PLANILHA REFERENCIA DETRAN PR'!A19","v":"1.13"},{"$f":"VLOOKUP(Tabela2[[#This Row],[ITEM]],'PLANILHA REFERENCIA DETRAN PR'!$A$4:$I$42,2,FALSE)","v":"Conjunto para placa indicativa (Coluna, Braço, Montagem, Fundação) para placas até 3,00m² - Coluna Tipo I com projeção de 3,70m"},{"$f":"VLOOKUP(Tabela2[[#This Row],[ITEM]],'PLANILHA REFERENCIA DETRAN PR'!$A$4:$I$42,3,FALSE)","v":"DETRAN-PR"},{"$f":"VLOOKUP(Tabela2[[#This Row],[ITEM]],'PLANILHA REFERENCIA DETRAN PR'!$A$4:$I$42,4,FALSE)","v":"COMP.03"},{"$f":"VLOOKUP(Tabela2[[#This Row],[ITEM]],'PLANILHA REFERENCIA DETRAN PR'!$A$4:$I$42,5,FALSE)","v":"2025-12-30"},{"$f":"VLOOKUP(Tabela2[[#This Row],[ITEM]],'PLANILHA REFERENCIA DETRAN PR'!$A$4:$I$42,6,FALSE)","v":"unid"},9,{"$f":"VLOOKUP(Tabela2[[#This Row],[ITEM]],'PLANILHA REFERENCIA DETRAN PR'!$A$4:$I$42,7,FALSE)","v":411.30000000000109},{"$f":"VLOOKUP(Tabela2[[#This Row],[ITEM]],'PLANILHA REFERENCIA DETRAN PR'!$A$4:$I$42,8,FALSE)","v":12403.33},{"$f":"Tabela2[[#This Row],[MATERIAL]]+Tabela2[[#This Row],[MÃO DE OBRA]]","v":12814.630000000001},3701.7,111629.97,115331.67]
[null,{"$f":"'PLANILHA REFERENCIA DETRAN PR'!A20","v":"1.14"},{"$f":"VLOOKUP(Tabela2[[#This Row],[ITEM]],'PLANILHA REFERENCIA DETRAN PR'!$A$4:$I$42,2,FALSE)","v":"Conjunto para placa indicativa (Coluna, Braço, Montagem, Fundação) para placas até 4,50m² - Coluna Tipo II com projeção de 6,00m"},{"$f":"VLOOKUP(Tabela2[[#This Row],[ITEM]],'PLANILHA REFERENCIA DETRAN PR'!$A$4:$I$42,3,FALSE)","v":"DETRAN-PR"},{"$f":"VLOOKUP(Tabela2[[#This Row],[ITEM]],'PLANILHA REFERENCIA DETRAN PR'!$A$4:$I$42,4,FALSE)","v":"COMP.04"},{"$f":"VLOOKUP(Tabela2[[#This Row],[ITEM]],'PLANILHA REFERENCIA DETRAN PR'!$A$4:$I$42,5,FALSE)","v":"2025-12-30"},{"$f":"VLOOKUP(Tabela2[[#This Row],[ITEM]],'PLANILHA REFERENCIA DETRAN PR'!$A$4:$I$42,6,FALSE)","v":"unid"},12,{"$f":"VLOOKUP(Tabela2[[#This Row],[ITEM]],'PLANILHA REFERENCIA DETRAN PR'!$A$4:$I$42,7,FALSE)","v":502.68000000000029},{"$f":"VLOOKUP(Tabela2[[#This Row],[ITEM]],'PLANILHA REFERENCIA DETRAN PR'!$A$4:$I$42,8,FALSE)","v":17937.080000000002},{"$f":"Tabela2[[#This Row],[MATERIAL]]+Tabela2[[#This Row],[MÃO DE OBRA]]","v":18439.760000000002},6032.16,215244.96,221277.12]
[null,{"$f":"'PLANILHA REFERENCIA DETRAN PR'!A21","v":"1.15"},{"$f":"VLOOKUP(Tabela2[[#This Row],[ITEM]],'PLANILHA REFERENCIA DETRAN PR'!$A$4:$I$42,2,FALSE)","v":" Retirada de poste simples de aco, diametro maior que 4\".(desonerado)"},{"$f":"VLOOKUP(Tabela2[[#This Row],[ITEM]],'PLANILHA REFERENCIA DETRAN PR'!$A$4:$I$42,3,FALSE)","v":"SCO/RJ"},{"$f":"VLOOKUP(Tabela2[[#This Row],[ITEM]],'PLANILHA REFERENCIA DETRAN PR'!$A$4:$I$42,4,FALSE)","v":"ST 64.15.0300 (/)"},{"$f":"VLOOKUP(Tabela2[[#This Row],[ITEM]],'PLANILHA REFERENCIA DETRAN PR'!$A$4:$I$42,5,FALSE)","v":"2025-12-30"},{"$f":"VLOOKUP(Tabela2[[#This Row],[ITEM]],'PLANILHA REFERENCIA DETRAN PR'!$A$4:$I$42,6,FALSE)","v":"un"},2,{"$f":"VLOOKUP(Tabela2[[#This Row],[ITEM]],'PLANILHA REFERENCIA DETRAN PR'!$A$4:$I$42,7,FALSE)","v":0},{"$f":"VLOOKUP(Tabela2[[#This Row],[ITEM]],'PLANILHA REFERENCIA DETRAN PR'!$A$4:$I$42,8,FALSE)","v":435.21},{"$f":"Tabela2[[#This Row],[MATERIAL]]+Tabela2[[#This Row],[MÃO DE OBRA]]","v":435.21},0,870.42,870.42]
[null,{"$f":"'PLANILHA REFERENCIA DETRAN PR'!A22","v":"1.16"},{"$f":"VLOOKUP(Tabela2[[#This Row],[ITEM]],'PLANILHA REFERENCIA DETRAN PR'!$A$4:$I$42,2,FALSE)","v":"Retirada de poste simples de aço, diâmetro de 2\" (desonerado)"},{"$f":"VLOOKUP(Tabela2[[#This Row],[ITEM]],'PLANILHA REFERENCIA DETRAN PR'!$A$4:$I$42,3,FALSE)","v":"SCO/RJ"},{"$f":"VLOOKUP(Tabela2[[#This Row],[ITEM]],'PLANILHA REFERENCIA DETRAN PR'!$A$4:$I$42,4,FALSE)","v":"ST 64.15.0200 (A)"},{"$f":"VLOOKUP(Tabela2[[#This Row],[ITEM]],'PLANILHA REFERENCIA DETRAN PR'!$A$4:$I$42,5,FALSE)","v":"2025-12-30"},{"$f":"VLOOKUP(Tabela2[[#This Row],[ITEM]],'PLANILHA REFERENCIA DETRAN PR'!$A$4:$I$42,6,FALSE)","v":"un"},457,{"$f":"VLOOKUP(Tabela2[[#This Row],[ITEM]],'PLANILHA REFERENCIA DETRAN PR'!$A$4:$I$42,7,FALSE)","v":0},{"$f":"VLOOKUP(Tabela2[[#This Row],[ITEM]],'PLANILHA REFERENCIA DETRAN PR'!$A$4:$I$42,8,FALSE)","v":53.26},{"$f":"Tabela2[[#This Row],[MATERIAL]]+Tabela2[[#This Row],[MÃO DE OBRA]]","v":53.26},0,24339.82,24339.82]
[null,{"$f":"'PLANILHA REFERENCIA DETRAN PR'!A23","v":"1.17"},{"$f":"VLOOKUP(Tabela2[[#This Row],[ITEM]],'PLANILHA REFERENCIA DETRAN PR'!$A$4:$I$42,2,FALSE)","v":"Remoção de placa de sinalização"},{"$f":"VLOOKUP(Tabela2[[#This Row],[ITEM]],'PLANILHA REFERENCIA DETRAN PR'!$A$4:$I$42,3,FALSE)","v":"DNIT"},{"$f":"VLOOKUP(Tabela2[[#This Row],[ITEM]],'PLANILHA REFERENCIA DETRAN PR'!$A$4:$I$42,4,FALSE)","v":5213364},{"$f":"VLOOKUP(Tabela2[[#This Row],[ITEM]],'PLANILHA REFERENCIA DETRAN PR'!$A$4:$I$42,5,FALSE)","v":"2025-10-01"},{"$f":"VLOOKUP(Tabela2[[#This Row],[ITEM]],'PLANILHA REFERENCIA DETRAN PR'!$A$4:$I$42,6,FALSE)","v":"m²"},170.99,{"$f":"VLOOKUP(Tabela2[[#This Row],[ITEM]],'PLANILHA REFERENCIA DETRAN PR'!$A$4:$I$42,7,FALSE)","v":0},{"$f":"VLOOKUP(Tabela2[[#This Row],[ITEM]],'PLANILHA REFERENCIA DETRAN PR'!$A$4:$I$42,8,FALSE)","v":26.2},{"$f":"Tabela2[[#This Row],[MATERIAL]]+Tabela2[[#This Row],[MÃO DE OBRA]]","v":26.2},0,4479.9399999999996,4479.9399999999996]
[null,{"$f":"'PLANILHA REFERENCIA DETRAN PR'!A24","v":"1.18"},{"$f":"VLOOKUP(Tabela2[[#This Row],[ITEM]],'PLANILHA REFERENCIA DETRAN PR'!$A$4:$I$42,2,FALSE)","v":"Suporte metálico galv. fogo d=2,5\" c/tampa e aletas anti-giro, h=2,00"},{"$f":"VLOOKUP(Tabela2[[#This Row],[ITEM]],'PLANILHA REFERENCIA DETRAN PR'!$A$4:$I$42,3,FALSE)","v":"DETRAN-PR"},{"$f":"VLOOKUP(Tabela2[[#This Row],[ITEM]],'PLANILHA REFERENCIA DETRAN PR'!$A$4:$I$42,4,FALSE)","v":"COMP.01"},{"$f":"VLOOKUP(Tabela2[[#This Row],[ITEM]],'PLANILHA REFERENCIA DETRAN PR'!$A$4:$I$42,5,FALSE)","v":"2025-12-30"},{"$f":"VLOOKUP(Tabela2[[#This Row],[ITEM]],'PLANILHA REFERENCIA DETRAN PR'!$A$4:$I$42,6,FALSE)","v":"unid"},9,{"$f":"VLOOKUP(Tabela2[[#This Row],[ITEM]],'PLANILHA REFERENCIA DETRAN PR'!$A$4:$I$42,7,FALSE)","v":38.51},{"$f":"VLOOKUP(Tabela2[[#This Row],[ITEM]],'PLANILHA REFERENCIA DETRAN PR'!$A$4:$I$42,8,FALSE)","v":261.14},{"$f":"Tabela2[[#This Row],[MATERIAL]]+Tabela2[[#This Row],[MÃO DE OBRA]]","v":299.64999999999998},346.59,2350.2600000000002,2696.85]
[null,{"$f":"'PLANILHA REFERENCIA DETRAN PR'!A25","v":"1.19"},{"$f":"VLOOKUP(Tabela2[[#This Row],[ITEM]],'PLANILHA REFERENCIA DETRAN PR'!$A$4:$I$42,2,FALSE)","v":"Suporte metálico galv. fogo perfil \"C\" 250x85x25x2,70mm, h=5,00m"},{"$f":"VLOOKUP(Tabela2[[#This Row],[ITEM]],'PLANILHA REFERENCIA DETRAN PR'!$A$4:$I$42,3,FALSE)","v":"DERPR"},{"$f":"VLOOKUP(Tabela2[[#This Row],[ITEM]],'PLANILHA REFERENCIA DETRAN PR'!$A$4:$I$42,4,FALSE)","v":822030},{"$f":"VLOOKUP(Tabela2[[#This Row],[ITEM]],'PLANILHA REFERENCIA DETRAN PR'!$A$4:$I$42,5,FALSE)","v":"2025-08-31"},{"$f":"VLOOKUP(Tabela2[[#This Row],[ITEM]],'PLANILHA REFERENCIA DETRAN PR'!$A$4:$I$42,6,FALSE)","v":"ud"},0,{"$f":"VLOOKUP(Tabela2[[#This Row],[ITEM]],'PLANILHA REFERENCIA DETRAN PR'!$A$4:$I$42,7,FALSE)","v":115.39},{"$f":"VLOOKUP(Tabela2[[#This Row],[ITEM]],'PLANILHA REFERENCIA DETRAN PR'!$A$4:$I$42,8,FALSE)","v":1323.76},{"$f":"Tabela2[[#This Row],[MATERIAL]]+Tabela2[[#This Row],[MÃO DE OBRA]]","v":1439.15},{"$f":"I33*H33","v":0},{"$f":"J33*H33","v":0},{"$f":"ROUND(K33*H33,2)","v":0}]
[null,{"$f":"'PLANILHA REFERENCIA DETRAN PR'!A26","v":"1.20"},{"$f":"VLOOKUP(Tabela2[[#This Row],[ITEM]],'PLANILHA REFERENCIA DETRAN PR'!$A$4:$I$42,2,FALSE)","v":"Cilindro flexível delimitador de tráfego com duas faixas refletivas e chumbador - D = 20 cm e H = 80 cm"},{"$f":"VLOOKUP(Tabela2[[#This Row],[ITEM]],'PLANILHA REFERENCIA DETRAN PR'!$A$4:$I$42,3,FALSE)","v":"DNIT"},{"$f":"VLOOKUP(Tabela2[[#This Row],[ITEM]],'PLANILHA REFERENCIA DETRAN PR'!$A$4:$I$42,4,FALSE)","v":5213837},{"$f":"VLOOKUP(Tabela2[[#This Row],[ITEM]],'PLANILHA REFERENCIA DETRAN PR'!$A$4:$I$42,5,FALSE)","v":"2025-10-01"},{"$f":"VLOOKUP(Tabela2[[#This Row],[ITEM]],'PLANILHA REFERENCIA DETRAN PR'!$A$4:$I$42,6,FALSE)","v":"un"},0,{"$f":"VLOOKUP(Tabela2[[#This Row],[ITEM]],'PLANILHA REFERENCIA DETRAN PR'!$A$4:$I$42,7,FALSE)","v":6.51},{"$f":"VLOOKUP(Tabela2[[#This Row],[ITEM]],'PLANILHA REFERENCIA DETRAN PR'!$A$4:$I$42,8,FALSE)","v":197.42},{"$f":"Tabela2[[#This Row],[MATERIAL]]+Tabela2[[#This Row],[MÃO DE OBRA]]","v":203.92999999999998},{"$f":"I34*H34","v":0},{"$f":"J34*H34","v":0},{"$f":"ROUND(K34*H34,2)","v":0}]
[null,{"$f":"'PLANILHA REFERENCIA DETRAN PR'!A27","v":"1.21"},{"$f":"VLOOKUP(Tabela2[[#This Row],[ITEM]],'PLANILHA REFERENCIA DETRAN PR'!$A$4:$I$42,2,FALSE)","v":"Placa sinalização ativa inteligente com iluminação interna, duplo módulo de iluminação de faixa, detecção automática de pedestres e alimentação híbrida (fotovoltaica e rede elétrica - A = 0,84m²"},{"$f":"VLOOKUP(Tabela2[[#This Row],[ITEM]],'PLANILHA REFERENCIA DETRAN PR'!$A$4:$I$42,3,FALSE)","v":"DETRAN-PR"},{"$f":"VLOOKUP(Tabela2[[#This Row],[ITEM]],'PLANILHA REFERENCIA DETRAN PR'!$A$4:$I$42,4,FALSE)","v":"COMP.17"},{"$f":"VLOOKUP(Tabela2[[#This Row],[ITEM]],'PLANILHA REFERENCIA DETRAN PR'!$A$4:$I$42,5,FALSE)","v":"2025-12-30"},{"$f":"VLOOKUP(Tabela2[[#This Row],[ITEM]],'PLANILHA REFERENCIA DETRAN PR'!$A$4:$I$42,6,FALSE)","v":"Unid."},17,{"$f":"VLOOKUP(Tabela2[[#This Row],[ITEM]],'PLANILHA REFERENCIA DETRAN PR'!$A$4:$I$42,7,FALSE)","v":7002.93},{"$f":"VLOOKUP(Tabela2[[#This Row],[ITEM]],'PLANILHA REFERENCIA DETRAN PR'!$A$4:$I$42,8,FALSE)","v":16340.169999999998},{"$f":"Tabela2[[#This Row],[MATERIAL]]+Tabela2[[#This Row],[MÃO DE OBRA]]","v":23343.1},{"$f":"ROUND(I35*H35,2)","v":119049.81},{"$f":"ROUND(J35*H35,2)","v":277782.89},{"$f":"ROUND((K35*H35),2)","v":396832.7}]
[null,{"$f":"'PLANILHA REFERENCIA DETRAN PR'!A28","v":"1.22"},{"$f":"VLOOKUP(Tabela2[[#This Row],[ITEM]],'PLANILHA REFERENCIA DETRAN PR'!$A$4:$I$42,2,FALSE)","v":"Placa sinalização piscante dupla ativa, alimentação fotovoltaica, em chapa de aço nº 18 galvanizada c/ película refletiva Tipo A (prismática) - A = 2m²"},{"$f":"VLOOKUP(Tabela2[[#This Row],[ITEM]],'PLANILHA REFERENCIA DETRAN PR'!$A$4:$I$42,3,FALSE)","v":"DETRAN-PR"},{"$f":"VLOOKUP(Tabela2[[#This Row],[ITEM]],'PLANILHA REFERENCIA DETRAN PR'!$A$4:$I$42,4,FALSE)","v":"COMP.18"},{"$f":"VLOOKUP(Tabela2[[#This Row],[ITEM]],'PLANILHA REFERENCIA DETRAN PR'!$A$4:$I$42,5,FALSE)","v":"2025-12-30"},{"$f":"VLOOKUP(Tabela2[[#This Row],[ITEM]],'PLANILHA REFERENCIA DETRAN PR'!$A$4:$I$42,6,FALSE)","v":"Unid."},2,{"$f":"VLOOKUP(Tabela2[[#This Row],[ITEM]],'PLANILHA REFERENCIA DETRAN PR'!$A$4:$I$42,7,FALSE)","v":3916.74},{"$f":"VLOOKUP(Tabela2[[#This Row],[ITEM]],'PLANILHA REFERENCIA DETRAN PR'!$A$4:$I$42,8,FALSE)","v":9139.07},{"$f":"Tabela2[[#This Row],[MATERIAL]]+Tabela2[[#This Row],[MÃO DE OBRA]]","v":13055.81},{"$f":"ROUND(I36*H36,2)","v":7833.48},{"$f":"ROUND(J36*H36,2)","v":18278.14},{"$f":"ROUND((K36*H36),2)","v":26111.62}]
[null,{"$f":"'PLANILHA REFERENCIA DETRAN PR'!A29","v":"1.23"},{"$f":"VLOOKUP(Tabela2[[#This Row],[ITEM]],'PLANILHA REFERENCIA DETRAN PR'!$A$4:$I$42,2,FALSE)","v":"Placa sinalização piscante mono ativa, em chapa de aço nº 18 galvanizada c/ película refletiva Tipo A (prismática) - A = 0,72m²"},{"$f":"VLOOKUP(Tabela2[[#This Row],[ITEM]],'PLANILHA REFERENCIA DETRAN PR'!$A$4:$I$42,3,FALSE)","v":"DETRAN-PR"},{"$f":"VLOOKUP(Tabela2[[#This Row],[ITEM]],'PLANILHA REFERENCIA DETRAN PR'!$A$4:$I$42,4,FALSE)","v":"COMP.19"},{"$f":"VLOOKUP(Tabela2[[#This Row],[ITEM]],'PLANILHA REFERENCIA DETRAN PR'!$A$4:$I$42,5,FALSE)","v":"2025-12-30"},{"$f":"VLOOKUP(Tabela2[[#This Row],[ITEM]],'PLANILHA REFERENCIA DETRAN PR'!$A$4:$I$42,6,FALSE)","v":"Unid."},2,{"$f":"VLOOKUP(Tabela2[[#This Row],[ITEM]],'PLANILHA REFERENCIA DETRAN PR'!$A$4:$I$42,7,FALSE)","v":1057.1099999999999},{"$f":"VLOOKUP(Tabela2[[#This Row],[ITEM]],'PLANILHA REFERENCIA DETRAN PR'!$A$4:$I$42,8,FALSE)","v":2466.5899999999997},{"$f":"Tabela2[[#This Row],[MATERIAL]]+Tabela2[[#This Row],[MÃO DE OBRA]]","v":3523.7},{"$f":"ROUND(I37*H37,2)","v":2114.2199999999998},{"$f":"ROUND(J37*H37,2)","v":4933.18},{"$f":"ROUND((K37*H37),2)","v":7047.4}]
[null,{"$f":"'PLANILHA REFERENCIA DETRAN PR'!A30","v":"1.24"},{"$f":"VLOOKUP(Tabela2[[#This Row],[ITEM]],'PLANILHA REFERENCIA DETRAN PR'!$A$4:$I$42,2,FALSE)","v":"Placa sinalização piscante mono ativa, em chapa de aço nº 18 galvanizada c/ película refletiva Tipo A (prismática) - A = 0,84m²"},{"$f":"VLOOKUP(Tabela2[[#This Row],[ITEM]],'PLANILHA REFERENCIA DETRAN PR'!$A$4:$I$42,3,FALSE)","v":"DETRAN-PR"},{"$f":"VLOOKUP(Tabela2[[#This Row],[ITEM]],'PLANILHA REFERENCIA DETRAN PR'!$A$4:$I$42,4,FALSE)","v":"COMP.20"},{"$f":"VLOOKUP(Tabela2[[#This Row],[ITEM]],'PLANILHA REFERENCIA DETRAN PR'!$A$4:$I$42,5,FALSE)","v":"2025-12-30"},{"$f":"VLOOKUP(Tabela2[[#This Row],[ITEM]],'PLANILHA REFERENCIA DETRAN PR'!$A$4:$I$42,6,FALSE)","v":"Unid."},17,{"$f":"VLOOKUP(Tabela2[[#This Row],[ITEM]],'PLANILHA REFERENCIA DETRAN PR'!$A$4:$I$42,7,FALSE)","v":940.43},{"$f":"VLOOKUP(Tabela2[[#This Row],[ITEM]],'PLANILHA REFERENCIA DETRAN PR'!$A$4:$I$42,8,FALSE)","v":2194.33},{"$f":"Tabela2[[#This Row],[MATERIAL]]+Tabela2[[#This Row],[MÃO DE OBRA]]","v":3134.7599999999998},{"$f":"ROUND(I38*H38,2)","v":15987.31},{"$f":"ROUND(J38*H38,2)","v":37303.61},{"$f":"ROUND((K38*H38),2)","v":53290.92}]
[null,{"$f":"'PLANILHA REFERENCIA DETRAN PR'!A31","v":2},{"$f":"VLOOKUP(Tabela2[[#This Row],[ITEM]],'PLANILHA REFERENCIA DETRAN PR'!$A$4:$I$42,2,FALSE)","v":"SINALIZAÇÃO HORIZONTAL"},null,null,null,null,"-",null,null,null,{"$f":"SUM(L40:L50)","v":219723.37000000002},{"$f":"TRUNC(SUM(M40:M50),2)","v":1155975.76},{"$f":"ROUND(Tabela2[[#This Row],[MÃO DE OBRA T.]]+Tabela2[[#This Row],[MATERIAL T.]],2)","v":1375699.13}]
[null,{"$f":"'PLANILHA REFERENCIA DETRAN PR'!A32","v":"2.1"},{"$f":"VLOOKUP(Tabela2[[#This Row],[ITEM]],'PLANILHA REFERENCIA DETRAN PR'!$A$4:$I$42,2,FALSE)","v":"Faixa de sinalização horizontal c/tinta resina acrílica base água com limpeza do pavimento com jato d'água"},{"$f":"VLOOKUP(Tabela2[[#This Row],[ITEM]],'PLANILHA REFERENCIA DETRAN PR'!$A$4:$I$42,3,FALSE)","v":"DETRAN-PR"},{"$f":"VLOOKUP(Tabela2[[#This Row],[ITEM]],'PLANILHA REFERENCIA DETRAN PR'!$A$4:$I$42,4,FALSE)","v":"COMP.10"},{"$f":"VLOOKUP(Tabela2[[#This Row],[ITEM]],'PLANILHA REFERENCIA DETRAN PR'!$A$4:$I$42,5,FALSE)","v":"2025-12-30"},{"$f":"VLOOKUP(Tabela2[[#This Row],[ITEM]],'PLANILHA REFERENCIA DETRAN PR'!$A$4:$I$42,6,FALSE)","v":"m²"},8480.81,{"$f":"VLOOKUP(Tabela2[[#This Row],[ITEM]],'PLANILHA REFERENCIA DETRAN PR'!$A$4:$I$42,7,FALSE)","v":5.7999999999999989},{"$f":"VLOOKUP(Tabela2[[#This Row],[ITEM]],'PLANILHA REFERENCIA DETRAN PR'!$A$4:$I$42,8,FALSE)","v":18.93},{"$f":"Tabela2[[#This Row],[MATERIAL]]+Tabela2[[#This Row],[MÃO DE OBRA]]","v":24.729999999999997},{"$f":"ROUND(I40*H40,2)","v":49188.7},{"$f":"ROUND(J40*H40,2)","v":160541.73000000001},{"$f":"ROUND(K40*H40,2)","v":209730.43}]
[null,{"$f":"'PLANILHA REFERENCIA DETRAN PR'!A33","v":"2.2"},{"$f":"VLOOKUP(Tabela2[[#This Row],[ITEM]],'PLANILHA REFERENCIA DETRAN PR'!$A$4:$I$42,2,FALSE)","v":"Faixa de sinalização horizontal c/tinta resina acrílica base solvente"},{"$f":"VLOOKUP(Tabela2[[#This Row],[ITEM]],'PLANILHA REFERENCIA DETRAN PR'!$A$4:$I$42,3,FALSE)","v":"DETRAN-PR"},{"$f":"VLOOKUP(Tabela2[[#This Row],[ITEM]],'PLANILHA REFERENCIA DETRAN PR'!$A$4:$I$42,4,FALSE)","v":"COMP.11"},{"$f":"VLOOKUP(Tabela2[[#This Row],[ITEM]],'PLANILHA REFERENCIA DETRAN PR'!$A$4:$I$42,5,FALSE)","v":"2025-12-30"},{"$f":"VLOOKUP(Tabela2[[#This Row],[ITEM]],'PLANILHA REFERENCIA DETRAN PR'!$A$4:$I$42,6,FALSE)","v":"m²"},13274.2,{"$f":"VLOOKUP(Tabela2[[#This Row],[ITEM]],'PLANILHA REFERENCIA DETRAN PR'!$A$4:$I$42,7,FALSE)","v":5.7999999999999989},{"$f":"VLOOKUP(Tabela2[[#This Row],[ITEM]],'PLANILHA REFERENCIA DETRAN PR'!$A$4:$I$42,8,FALSE)","v":24.61},{"$f":"Tabela2[[#This Row],[MATERIAL]]+Tabela2[[#This Row],[MÃO DE OBRA]]","v":30.409999999999997},{"$f":"ROUND(I41*H41,2)","v":76990.36},{"$f":"ROUND(J41*H41,2)","v":326678.06},403668.42]
[null,{"$f":"'PLANILHA REFERENCIA DETRAN PR'!A34","v":"2.3"},{"$f":"VLOOKUP(Tabela2[[#This Row],[ITEM]],'PLANILHA REFERENCIA DETRAN PR'!$A$4:$I$42,2,FALSE)","v":"Faixa de sinalização horizontal - termoplástico por aspersão - e=1,5mm"},{"$f":"VLOOKUP(Tabela2[[#This Row],[ITEM]],'PLANILHA REFERENCIA DETRAN PR'!$A$4:$I$42,3,FALSE)","v":"DETRAN-PR"},{"$f":"VLOOKUP(Tabela2[[#This Row],[ITEM]],'PLANILHA REFERENCIA DETRAN PR'!$A$4:$I$42,4,FALSE)","v":"COMP.12"},{"$f":"VLOOKUP(Tabela2[[#This Row],[ITEM]],'PLANILHA REFERENCIA DETRAN PR'!$A$4:$I$42,5,FALSE)","v":"2025-12-30"},{"$f":"VLOOKUP(Tabela2[[#This Row],[ITEM]],'PLANILHA REFERENCIA DETRAN PR'!$A$4:$I$42,6,FALSE)","v":"m²"},3705.57,{"$f":"VLOOKUP(Tabela2[[#This Row],[ITEM]],'PLANILHA REFERENCIA DETRAN PR'!$A$4:$I$42,7,FALSE)","v":7.7999999999999989},{"$f":"VLOOKUP(Tabela2[[#This Row],[ITEM]],'PLANILHA REFERENCIA DETRAN PR'!$A$4:$I$42,8,FALSE)","v":34.779999999999994},{"$f":"Tabela2[[#This Row],[MATERIAL]]+Tabela2[[#This Row],[MÃO DE OBRA]]","v":42.579999999999991},{"$f":"ROUND(I42*H42,2)","v":28903.45},{"$f":"ROUND(J42*H42,2)","v":128879.72},157783.17000000001]
[null,{"$f":"'PLANILHA REFERENCIA DETRAN PR'!A35","v":"2.4"},{"$f":"VLOOKUP(Tabela2[[#This Row],[ITEM]],'PLANILHA REFERENCIA DETRAN PR'!$A$4:$I$42,2,FALSE)","v":"Pintura de setas e zebrados - termoplástico por extrusão - e=3mm"},{"$f":"VLOOKUP(Tabela2[[#This Row],[ITEM]],'PLANILHA REFERENCIA DETRAN PR'!$A$4:$I$42,3,FALSE)","v":"DETRAN-PR"},{"$f":"VLOOKUP(Tabela2[[#This Row],[ITEM]],'PLANILHA REFERENCIA DETRAN PR'!$A$4:$I$42,4,FALSE)","v":"COMP.13"},{"$f":"VLOOKUP(Tabela2[[#This Row],[ITEM]],'PLANILHA REFERENCIA DETRAN PR'!$A$4:$I$42,5,FALSE)","v":"2025-12-30"},{"$f":"VLOOKUP(Tabela2[[#This Row],[ITEM]],'PLANILHA REFERENCIA DETRAN PR'!$A$4:$I$42,6,FALSE)","v":"m²"},6530.9600000000009,{"$f":"VLOOKUP(Tabela2[[#This Row],[ITEM]],'PLANILHA REFERENCIA DETRAN PR'!$A$4:$I$42,7,FALSE)","v":7.7999999999999989},{"$f":"VLOOKUP(Tabela2[[#This Row],[ITEM]],'PLANILHA REFERENCIA DETRAN PR'!$A$4:$I$42,8,FALSE)","v":49.089999999999996},{"$f":"Tabela2[[#This Row],[MATERIAL]]+Tabela2[[#This Row],[MÃO DE OBRA]]","v":56.889999999999993},{"$f":"ROUND(I43*H43,2)","v":50941.49},{"$f":"ROUND(J43*H43,2)","v":320604.83},371546.31]
[null,{"$f":"'PLANILHA REFERENCIA DETRAN PR'!A36","v":"2.5"},{"$f":"VLOOKUP(Tabela2[[#This Row],[ITEM]],'PLANILHA REFERENCIA DETRAN PR'!$A$4:$I$42,2,FALSE)","v":"Pintura de faixa - plástico a frio bicomponente à base de resinas metacrílicas - espessura de 1,5 mm - plano"},{"$f":"VLOOKUP(Tabela2[[#This Row],[ITEM]],'PLANILHA REFERENCIA DETRAN PR'!$A$4:$I$42,3,FALSE)","v":"DETRAN-PR"},{"$f":"VLOOKUP(Tabela2[[#This Row],[ITEM]],'PLANILHA REFERENCIA DETRAN PR'!$A$4:$I$42,4,FALSE)","v":"COMP.15"},{"$f":"VLOOKUP(Tabela2[[#This Row],[ITEM]],'PLANILHA REFERENCIA DETRAN PR'!$A$4:$I$42,5,FALSE)","v":"2025-12-30"},{"$f":"VLOOKUP(Tabela2[[#This Row],[ITEM]],'PLANILHA REFERENCIA DETRAN PR'!$A$4:$I$42,6,FALSE)","v":"m²"},0,{"$f":"VLOOKUP(Tabela2[[#This Row],[ITEM]],'PLANILHA REFERENCIA DETRAN PR'!$A$4:$I$42,7,FALSE)","v":3.59},{"$f":"VLOOKUP(Tabela2[[#This Row],[ITEM]],'PLANILHA REFERENCIA DETRAN PR'!$A$4:$I$42,8,FALSE)","v":124.77},{"$f":"Tabela2[[#This Row],[MATERIAL]]+Tabela2[[#This Row],[MÃO DE OBRA]]","v":128.35999999999999},{"$f":"I44*H44","v":0},{"$f":"J44*H44","v":0},0]
[null,{"$f":"'PLANILHA REFERENCIA DETRAN PR'!A37","v":"2.6"},{"$f":"VLOOKUP(Tabela2[[#This Row],[ITEM]],'PLANILHA REFERENCIA DETRAN PR'!$A$4:$I$42,2,FALSE)","v":"Pintura de faixa - plástico a frio tricomponente à base de resinas metacrílicas - espessura de 0,6 mm - aspersão"},{"$f":"VLOOKUP(Tabela2[[#This Row],[ITEM]],'PLANILHA REFERENCIA DETRAN PR'!$A$4:$I$42,3,FALSE)","v":"DETRAN-PR"},{"$f":"VLOOKUP(Tabela2[[#This Row],[ITEM]],'PLANILHA REFERENCIA DETRAN PR'!$A$4:$I$42,4,FALSE)","v":"COMP.16"},{"$f":"VLOOKUP(Tabela2[[#This Row],[ITEM]],'PLANILHA REFERENCIA DETRAN PR'!$A$4:$I$42,5,FALSE)","v":"2025-12-30"},{"$f":"VLOOKUP(Tabela2[[#This Row],[ITEM]],'PLANILHA REFERENCIA DETRAN PR'!$A$4:$I$42,6,FALSE)","v":"m²"},2699.56,{"$f":"VLOOKUP(Tabela2[[#This Row],[ITEM]],'PLANILHA REFERENCIA DETRAN PR'!$A$4:$I$42,7,FALSE)","v":2.27},{"$f":"VLOOKUP(Tabela2[[#This Row],[ITEM]],'PLANILHA REFERENCIA DETRAN PR'!$A$4:$I$42,8,FALSE)","v":69.180000000000007},{"$f":"Tabela2[[#This Row],[MATERIAL]]+Tabela2[[#This Row],[MÃO DE OBRA]]","v":71.45},{"$f":"ROUND(I45*H45,2)","v":6128},{"$f":"ROUND(J45*H45,2)","v":186755.56},192883.56]
[null,{"$f":"'PLANILHA REFERENCIA DETRAN PR'!A38","v":"2.7"},{"$f":"VLOOKUP(Tabela2[[#This Row],[ITEM]],'PLANILHA REFERENCIA DETRAN PR'!$A$4:$I$42,2,FALSE)","v":"Tacha refletiva monodirecional"},{"$f":"VLOOKUP(Tabela2[[#This Row],[ITEM]],'PLANILHA REFERENCIA DETRAN PR'!$A$4:$I$42,3,FALSE)","v":"DERPR"},{"$f":"VLOOKUP(Tabela2[[#This Row],[ITEM]],'PLANILHA REFERENCIA DETRAN PR'!$A$4:$I$42,4,FALSE)","v":870000},{"$f":"VLOOKUP(Tabela2[[#This Row],[ITEM]],'PLANILHA REFERENCIA DETRAN PR'!$A$4:$I$42,5,FALSE)","v":"2025-08-31"},{"$f":"VLOOKUP(Tabela2[[#This Row],[ITEM]],'PLANILHA REFERENCIA DETRAN PR'!$A$4:$I$42,6,FALSE)","v":"ud"},20,{"$f":"VLOOKUP(Tabela2[[#This Row],[ITEM]],'PLANILHA REFERENCIA DETRAN PR'!$A$4:$I$42,7,FALSE)","v":8.6},{"$f":"VLOOKUP(Tabela2[[#This Row],[ITEM]],'PLANILHA REFERENCIA DETRAN PR'!$A$4:$I$42,8,FALSE)","v":7.8},{"$f":"Tabela2[[#This Row],[MATERIAL]]+Tabela2[[#This Row],[MÃO DE OBRA]]","v":16.399999999999999},172,156,{"$f":"ROUND((K46*H46),2)","v":328}]
[null,{"$f":"'PLANILHA REFERENCIA DETRAN PR'!A39","v":"2.8"},{"$f":"VLOOKUP(Tabela2[[#This Row],[ITEM]],'PLANILHA REFERENCIA DETRAN PR'!$A$4:$I$42,2,FALSE)","v":"Tacha refletiva bidirecional"},{"$f":"VLOOKUP(Tabela2[[#This Row],[ITEM]],'PLANILHA REFERENCIA DETRAN PR'!$A$4:$I$42,3,FALSE)","v":"DERPR"},{"$f":"VLOOKUP(Tabela2[[#This Row],[ITEM]],'PLANILHA REFERENCIA DETRAN PR'!$A$4:$I$42,4,FALSE)","v":871000},{"$f":"VLOOKUP(Tabela2[[#This Row],[ITEM]],'PLANILHA REFERENCIA DETRAN PR'!$A$4:$I$42,5,FALSE)","v":"2025-08-31"},{"$f":"VLOOKUP(Tabela2[[#This Row],[ITEM]],'PLANILHA REFERENCIA DETRAN PR'!$A$4:$I$42,6,FALSE)","v":"ud"},27,{"$f":"VLOOKUP(Tabela2[[#This Row],[ITEM]],'PLANILHA REFERENCIA DETRAN PR'!$A$4:$I$42,7,FALSE)","v":8.6},{"$f":"VLOOKUP(Tabela2[[#This Row],[ITEM]],'PLANILHA REFERENCIA DETRAN PR'!$A$4:$I$42,8,FALSE)","v":8.1999999999999993},{"$f":"Tabela2[[#This Row],[MATERIAL]]+Tabela2[[#This Row],[MÃO DE OBRA]]","v":16.799999999999997},232.2,221.4,{"$f":"ROUND((K47*H47),2)","v":453.6}]
[null,{"$f":"'PLANILHA REFERENCIA DETRAN PR'!A40","v":"2.9"},{"$f":"VLOOKUP(Tabela2[[#This Row],[ITEM]],'PLANILHA REFERENCIA DETRAN PR'!$A$4:$I$42,2,FALSE)","v":"Tachão refletivo monodirecional"},{"$f":"VLOOKUP(Tabela2[[#This Row],[ITEM]],'PLANILHA REFERENCIA DETRAN PR'!$A$4:$I$42,3,FALSE)","v":"DERPR"},{"$f":"VLOOKUP(Tabela2[[#This Row],[ITEM]],'PLANILHA REFERENCIA DETRAN PR'!$A$4:$I$42,4,FALSE)","v":872000},{"$f":"VLOOKUP(Tabela2[[#This Row],[ITEM]],'PLANILHA REFERENCIA DETRAN PR'!$A$4:$I$42,5,FALSE)","v":"2025-08-31"},{"$f":"VLOOKUP(Tabela2[[#This Row],[ITEM]],'PLANILHA REFERENCIA DETRAN PR'!$A$4:$I$42,6,FALSE)","v":"ud"},712,{"$f":"VLOOKUP(Tabela2[[#This Row],[ITEM]],'PLANILHA REFERENCIA DETRAN PR'!$A$4:$I$42,7,FALSE)","v":8.6},{"$f":"VLOOKUP(Tabela2[[#This Row],[ITEM]],'PLANILHA REFERENCIA DETRAN PR'!$A$4:$I$42,8,FALSE)","v":29.68},{"$f":"Tabela2[[#This Row],[MATERIAL]]+Tabela2[[#This Row],[MÃO DE OBRA]]","v":38.28},6123.2,21132.16,{"$f":"ROUND((K48*H48),2)","v":27255.360000000001}]
[null,{"$f":"'PLANILHA REFERENCIA DETRAN PR'!A41","v":"2.10"},{"$f":"VLOOKUP(Tabela2[[#This Row],[ITEM]],'PLANILHA REFERENCIA DETRAN PR'!$A$4:$I$42,2,FALSE)","v":"Tachão refletivo bidirecional"},{"$f":"'PLANILHA REFERENCIA DETRAN PR'!C40","v":"DERPR"},{"$f":"'PLANILHA REFERENCIA DETRAN PR'!D40","v":872000},{"$f":"'PLANILHA REFERENCIA DETRAN PR'!E40","v":"2025-08-31"},{"$f":"VLOOKUP(Tabela2[[#This Row],[ITEM]],'PLANILHA REFERENCIA DETRAN PR'!$A$4:$I$42,6,FALSE)","v":"ud"},110,{"$f":"VLOOKUP(Tabela2[[#This Row],[ITEM]],'PLANILHA REFERENCIA DETRAN PR'!$A$4:$I$42,7,FALSE)","v":8.6},{"$f":"VLOOKUP(Tabela2[[#This Row],[ITEM]],'PLANILHA REFERENCIA DETRAN PR'!$A$4:$I$42,8,FALSE)","v":32.299999999999997},{"$f":"Tabela2[[#This Row],[MATERIAL]]+Tabela2[[#This Row],[MÃO DE OBRA]]","v":40.9},946,3553,{"$f":"ROUND((K49*H49),2)","v":4499}]
[null,{"$f":"'PLANILHA REFERENCIA DETRAN PR'!A42","v":"2.11"},{"$f":"VLOOKUP(Tabela2[[#This Row],[ITEM]],'PLANILHA REFERENCIA DETRAN PR'!$A$4:$I$42,2,FALSE)","v":"Fresagem de pavimento asfáltico com espessura de até 5cm, em vias arteriais, inclusive remoção do material fresado até 10km e varrição"},{"$f":"VLOOKUP(Tabela2[[#This Row],[ITEM]],'PLANILHA REFERENCIA DETRAN PR'!$A$4:$I$42,3,FALSE)","v":"SIURB-INFRA"},{"$f":"VLOOKUP(Tabela2[[#This Row],[ITEM]],'PLANILHA REFERENCIA DETRAN PR'!$A$4:$I$42,4,FALSE)","v":"09.04.00"},{"$f":"VLOOKUP(Tabela2[[#This Row],[ITEM]],'PLANILHA REFERENCIA DETRAN PR'!$A$4:$I$42,5,FALSE)","v":"2025-10-01"},{"$f":"VLOOKUP(Tabela2[[#This Row],[ITEM]],'PLANILHA REFERENCIA DETRAN PR'!$A$4:$I$42,6,FALSE)","v":"M2"},376.81,{"$f":"VLOOKUP(Tabela2[[#This Row],[ITEM]],'PLANILHA REFERENCIA DETRAN PR'!$A$4:$I$42,7,FALSE)","v":0.26},{"$f":"VLOOKUP(Tabela2[[#This Row],[ITEM]],'PLANILHA REFERENCIA DETRAN PR'!$A$4:$I$42,8,FALSE)","v":19.78},{"$f":"Tabela2[[#This Row],[MATERIAL]]+Tabela2[[#This Row],[MÃO DE OBRA]]","v":20.040000000000003},97.97,7453.3,{"$f":"ROUND((K50*H50),2)","v":7551.27}]
[]
[null,null,null,null,null,null,null,null,null,null,null,"TOTAL SEM BDI",null,{"$f":"$N$14+$N$39","v":3333482.59}]
[null,null,null,null,null,null,null,null,null,null,null,"BDI",null,{"$f":"N54-N52","v":697516.66000000015}]
[null,null,null,null,null,null,null,null,null,null,null,"TOTAL COM BDI",null,{"$f":"IF(C11=\"lote 01\",'POR LOTE'!F2,IF(PLANILHA_SINTÉTICA!C11=\"lote 02\",'POR LOTE'!F3,IF(PLANILHA_SINTÉTICA!C11=\"lote 03\",'POR LOTE'!F4,IF(PLANILHA_SINTÉTICA!C11=\"lote 04\",'POR LOTE'!F5,\"\"))))","v":4030999.25}]
[]
[]
[null,null,null,null,null,null,null,null,null,null,null,null,null," "]

{"sheet":"Cotações","index":1,"n_rows":36,"n_cols":10,"rows_kept":36,"cut":false,"hidden":true,"merged":[[35,2,35,4],[5,9,9,9],[10,2,10,4],[11,2,11,4],[13,9,17,9],[18,2,18,4],[19,2,19,4],[21,9,25,9],[26,2,26,4],[27,2,27,4],[29,9,33,9],[34,2,34,4]]}
[]
[]
[]
[]
[]
[null,null,null,null,null,null,"FORNECEDOR 1","FORNECEDOR 2","FORNECEDOR 3","MÉDIA PREÇO R$"]
[null,null,null,null,"DATA DA COTAÇÃO",null,"2025-11-10","2025-11-07","2025-11-11"]
[null,null,null,null,"EMPRESA",null,"EBITECH 3","IESSA TECNOLOGIA","WH SUL"]
[null,null,null,null,"CONTATO",null,"contato@ebitech3.com.br","comercial@iessa.com.br","comercial@whsul.com.br"]
[null,null,null,null,"TELEFONE / E-MAIL / SITE",null,"email","email","email"]
[null,"ITEM","DESCRIÇÃO DO INSUMO / SERVIÇO ESPECIALIZADO",null,null,"UN ","R$ UNITÁRIO","R$ UNITÁRIO","R$ UNITÁRIO"]
[null,"COT 001","Placa sinalização ativa inteligente com iluminação interna, duplo módulo de iluminação de faixa, detecção automática de pedestres e alimentação híbrida (fotovoltaica e rede elétrica - A = 0,84m²",null,null,"Unid.",20711.009999999998,25121.43,24196.880000000001,{"$f":"IF(G12<>\"\",TRUNC(AVERAGE(G12:I12),2),\" \")","v":23343.1}]
[]
[null,null,null,null,null,null,"FORNECEDOR 1","FORNECEDOR 2","FORNECEDOR 3","MÉDIA PREÇO R$"]
[null,null,null,null,"DATA DA COTAÇÃO",null,"2025-11-10","2025-11-07","2025-11-11"]
[null,null,null,null,"EMPRESA",null,"EBITECH 3","IESSA TECNOLOGIA","WH SUL"]
[null,null,null,null,"CONTATO",null,"contato@ebitech3.com.br","comercial@iessa.com.br","comercial@whsul.com.br"]
[null,null,null,null,"TELEFONE / E-MAIL / SITE",null,"email","email","email"]
[null,"ITEM","DESCRIÇÃO DO INSUMO / SERVIÇO ESPECIALIZADO",null,null,"UN ","R$ UNITÁRIO","R$ UNITÁRIO","R$ UNITÁRIO"]
[null,"COT 002","Placa sinalização piscante dupla ativa, alimentação fotovoltaica, em chapa de aço nº 18 galvanizada c/ película refletiva Tipo A (prismática) - A = 2m²",null,null,"Unid.",11983.02,12153.28,15031.13,{"$f":"IF(G20<>\"\",TRUNC(AVERAGE(G20:I20),2),\" \")","v":13055.81}]
[]
[null,null,null,null,null,null,"FORNECEDOR 1","FORNECEDOR 2","FORNECEDOR 3","MÉDIA PREÇO R$"]
[null,null,null,null,"DATA DA COTAÇÃO",null,"2025-11-10","2025-11-07","2025-11-11"]
[null,null,null,null,"EMPRESA",null,"EBITECH 3","IESSA TECNOLOGIA","WH SUL"]
[null,null,null,null,"CONTATO",null,"contato@ebitech3.com.br","comercial@iessa.com.br","comercial@whsul.com.br"]
[null,null,null,null,"TELEFONE / E-MAIL / SITE",null,"email","email","email"]
[null,"ITEM","DESCRIÇÃO DO INSUMO / SERVIÇO ESPECIALIZADO",null,null,"UN ","R$ UNITÁRIO","R$ UNITÁRIO","R$ UNITÁRIO"]
[null,"COT 003","Placa sinalização piscante mono ativa, em chapa de aço nº 18 galvanizada c/ película refletiva Tipo A (prismática) - A = 0,72m²",null,null,"Unid.",2988.82,3971.36,3610.92,{"$f":"IF(G28<>\"\",TRUNC(AVERAGE(G28:I28),2),\" \")","v":3523.7}]
[]
[null,null,null,null,null,null,"FORNECEDOR 1","FORNECEDOR 2","FORNECEDOR 3","MÉDIA PREÇO R$"]
[null,null,null,null,"DATA DA COTAÇÃO",null,"2025-11-10","2025-11-07","2025-11-11"]
[null,null,null,null,"EMPRESA",null,"EBITECH 3","IESSA TECNOLOGIA","WH SUL"]
[null,null,null,null,"CONTATO",null,"contato@ebitech3.com.br","comercial@iessa.com.br","comercial@whsul.com.br"]
[null,null,null,null,"TELEFONE / E-MAIL / SITE",null,"email","email","email"]
[null,"ITEM","DESCRIÇÃO DO INSUMO / SERVIÇO ESPECIALIZADO",null,null,"UN ","R$ UNITÁRIO","R$ UNITÁRIO","R$ UNITÁRIO"]
[null,"COT 004","Placa sinalização piscante mono ativa, em chapa de aço nº 18 galvanizada c/ película refletiva Tipo A (prismática) - A = 0,84m²",null,null,"Unid.",2444.6999999999998,3794.21,3165.38,{"$f":"IF(G36<>\"\",TRUNC(AVERAGE(G36:I36),2),\" \")","v":3134.76}]

{"sheet":"Composições","index":2,"n_rows":262,"n_cols":12,"rows_kept":262,"cut":false,"hidden":true,"merged":[[212,2,212,7],[232,2,232,7]]}
[]
[null,"PLANILHA","CÓDIGO","NOME","DESCRIÇÃO","UNID.","COEF.","R$/UNIT.","TOTAL","Material","Mão de obra","Código e Referência da Composição de Custos"]
[null,"DETRAN",null,"COMP.01","Suporte metálico galv. fogo d=2,5\" c/tampa e aletas anti-giro, h=2,00m","unid",null,null,{"$f":"SUM(I4:I17)","v":299.64999999999998},{"$f":"SUM(I4:I7)+SUM(I12:I17)","v":261.14},{"$f":"I8+I9+I10+I11","v":38.51},"DER/821300 - AGOSTO 2025\nADAPTADO"]
[null,"der-pr",373200,"MAT","Betoneira 600 l gasolina","hr ",1,0.59,{"$f":"ROUND(H4*G4,2)","v":0.59}]
[null,"der-pr",346080,"MAT","Caminhão carroceria 815/37 6 t","hr ",1,25.57,{"$f":"ROUND(H5*G5,2)","v":25.57}]
[null,"der-pr",301800,"MAT","Carrinho de concretagem 80 l","hr ",1,0.02,0.02]
[null,"der-pr",370450,"MAT","Vibrador imersão gasolina 45mm","hr ",1,0.28999999999999998,0.28999999999999998]
[null,"der-pr",210060,"SER.AUX","Encarregado de Serviço","hr ",0.1,50.16,{"$f":"ROUND(H8*G8,2)","v":5.0199999999999996}]
[null,"der-pr",200260,"SER.AUX","Pedreiro","hr ",0.25,38.67,{"$f":"TRUNC(H9*G9,2)","v":9.66}]
[null,"der-pr",210090,"SER.AUX","Serralheiro","hr ",0.25,38.67,{"$f":"TRUNC(H10*G10,2)","v":9.66}]
[null,"der-pr",200130,"SER.AUX","Servente","hr ",0.5,28.33,{"$f":"ROUND(H11*G11,2)","v":14.17}]
[null,"der-pr",29990,"MAT","Ferramentas Manuais","unid",1,5.77,5.77]
[null,"der-pr",139000,"MAT","Areia","m3",1.5699999999999999E-2,79.11,1.24]
[null,"der-pr",173200,"MAT","Cimento Portland (saco de 50kg)","t",6.6E-3,607.20000000000005,{"$f":"ROUND(H14*G14,2)","v":4.01}]
[null,"der-pr",130000,"MAT","Pedra britada (comercial)","m3",1.8200000000000001E-2,80.13,{"$f":"ROUND(H15*G15,2)","v":1.46}]
[null,"der-pr",161200,"MAT","Suporte metálico 2 1/2\"x2,65mmx2,00m","ud",1,220,220]
[null,"der-pr",600000,"MAT","Escavação manual de vala 1a. cat.","m3",4.9099999999999998E-2,44.61,2.19]
[]
[null,"PLANILHA","CÓDIGO","NOME","DESCRIÇÃO","UNID.","COEF.","R$/UNIT.","TOTAL","Material","Mão de obra","Código e Referência da Composição de Custos"]
[null,"DETRAN",null,"COMP.02","Conjunto para placa indicativa (Coluna, Braço, Montagem, Fundação) para placas até 3,00m² - Coluna Tipo I com projeção de 2,80m","unid",null,null,{"$f":"SUM(I21:I26)","v":12422.95},{"$f":"I21+I23+I25","v":12011.65},{"$f":"I20-J20","v":411.30000000000109},"SCO/RJ- DEZEMBRO 2025"]
[null,"SCO/RJ","ST 64.05.0600 (/)",null,"Coluna de aço, cônica continua tipo I para ate 4 (quatro) braços projetados capazes de sustentar, cada um, semáforo e placa de 3m2 (três metros quadrados); coluna galvanizada a fogo; altura útil total de 5,00m (cinco metros); diâmetro na base igual a 187mm (cento e oitenta e sete milímetros); conforme especificação CET-RIO. Fornecimento (desonerado)","unid",1,{"$f":"VLOOKUP(C21,scorj!B:G,4,FALSE)","v":8287.06},{"$f":"ROUND(H21*G21,2)","v":8287.06}]
[null,"SCO/RJ","ST 64.15.0170 (A)",null,"Assentamento de coluna de aço cônica continua tipo I para ate 4 (quatro) braços projetados capazes de sustentar, cada um, semáforo e placa de 3m2 (três metros quadrados) fixada por chumbadores\nengastados em fundação de concreto, exclusive fundação, exclusive fornecimento da coluna (desonerado)","unid",1,{"$f":"VLOOKUP(C22,scorj!B:G,4,FALSE)","v":327.37},327.37]
[null,"SCO/RJ","ST 64.05.0650 (/)",null,"Braco projetado de aco para sustentacao de semaforo e placa ate 3m2 (tres metros quadrados), galvanizado a fogo; para fixacao em coluna cilindrica giratoria, projecao de 2,80m (dois metros e oitenta centimetros); diametro junto a flange de 123mm (cento e vinte e tres milimetros); conforme especificacao CET-RIO. Fornecimento.(desonerado)","unid",1,{"$f":"VLOOKUP(C23,scorj!B:G,4,FALSE)","v":3245},3245]
[null,"SCO/RJ","ST 64.15.0180 (/)",null,"Montagem de braço projetado de aço em coluna de aço cônica continua tipo I assentada, exclusive o\nfornecimento do braço (desonerado)","unid",1,{"$f":"VLOOKUP(C24,scorj!B:G,4,FALSE)","v":83.93},83.93]
[null,"SCO/RJ","ST 64.15.0340 (/)",null,"Bloco de concreto armado medindo (0,60 x 0,60 x 1,00)m para uma coluna de aco conica continua para instalacao de ate 4 bracos projetados para sinalizacao.(desonerado) ","unid",1,{"$f":"VLOOKUP(C25,scorj!B:G,4,FALSE)","v":479.59},479.59]
[]
[]
[null,"PLANILHA",null,"NOME","DESCRIÇÃO","UNID.","COEF.","R$/UNIT.","TOTAL","Material","Mão de obra","Código e Referência da Composição de Custos"]
[null,"DETRAN",null,"COMP.03","Conjunto para placa indicativa (Coluna, Braço, Montagem, Fundação) para placas até 3,00m² - Coluna Tipo I com projeção de 3,70m","unid",null,null,{"$f":"SUM(I30:I35)","v":12814.630000000001},{"$f":"I30+I32+I34","v":12403.33},{"$f":"I29-J29","v":411.30000000000109},"SCO/RJ- DEZEMBRO 2025"]
[null,"SCO/RJ","ST 64.05.0600 (/)",null,"Coluna de aço, cônica continua tipo I para ate 4 (quatro) braços projetados capazes de sustentar, cada um, semáforo e placa de 3m2 (três metros quadrados); coluna galvanizada a fogo; altura útil total de 5,00m (cinco metros); diâmetro na base igual a 187mm (cento e oitenta e sete milímetros); conforme especificação CET-RIO. Fornecimento (desonerado)","unid",1,{"$f":"VLOOKUP(C30,scorj!B:G,4,FALSE)","v":8287.06},{"$f":"ROUND(H30*G30,2)","v":8287.06}]
[null,"SCO/RJ","ST 64.15.0170 (A)",null,"Assentamento de coluna de aço cônica continua tipo I para ate 4 (quatro) braços projetados capazes de sustentar, cada um, semáforo e placa de 3m2 (três metros quadrados) fixada por chumbadores\nengastados em fundação de concreto, exclusive fundação, exclusive fornecimento da coluna (desonerado)","unid",1,{"$f":"VLOOKUP(C31,scorj!B:G,4,FALSE)","v":327.37},327.37]
[null,"SCO/RJ","ST 64.05.0700 (/)",null,"Braço projetado de aço para sustentação de semáforo e placa ate 3m2 (três metros quadrados),\ngalvanizado a fogo; para fixação em coluna cônico continua tipo I, projeção de 3,70m (três metros e\nsetenta centímetros); diâmetro junto a flange de 123mm (cento e vinte e três milímetros); conforme\nespecificação CET-RIO. Fornecimento (desonerado)","unid",1,{"$f":"VLOOKUP(C32,scorj!B:G,4,FALSE)","v":3636.68},3636.68]
[null,"SCO/RJ","ST 64.15.0180 (/)",null,"Montagem de braço projetado de aço em coluna de aço cônica continua tipo I assentada, exclusive o\nfornecimento do braço (desonerado)","unid",1,{"$f":"VLOOKUP(C33,scorj!B:G,4,FALSE)","v":83.93},83.93]
[null,"SCO/RJ","ST 64.15.0340 (/)",null,"Bloco de concreto armado medindo (0,60 x 0,60 x 1,00)m para uma coluna de aco conica continua para instalacao de ate 4 bracos projetados para sinalizacao.(desonerado) ","unid",1,{"$f":"VLOOKUP(C34,scorj!B:G,4,FALSE)","v":479.59},479.59]
[]
[]
[null,"PLANILHA",null,"NOME","DESCRIÇÃO","UNID.","COEF.","R$/UNIT.","TOTAL","Material","Mão de obra","Código e Referência da Composição de Custos"]
[null,"DETRAN",null,"COMP.04","Conjunto para placa indicativa (Coluna, Braço, Montagem, Fundação) para placas até 4,50m² - Coluna Tipo II com projeção de 6,00m","unid",null,null,{"$f":"SUM(I39:I43)","v":18439.760000000002},{"$f":"I39+I41+I43","v":17937.080000000002},{"$f":"I38-J38","v":502.68000000000029},"SCO/RJ- DEZEMBRO 2025"]
[null,"SCO/RJ","ST 64.05.0636 (/)",null,"Coluna de aço cônica continua tipo II para um braço projetado capaz de sustentar semáforo e placa de ate 4,50m2; coluna galvanizada a fogo; altura útil total de 5m; 300mm de diâmetro na base; conforme especificação da CET-RIO. Fornecimento (desonerado)","unid",1,{"$f":"VLOOKUP(C39,scorj!B:G,4,FALSE)","v":12423.77},{"$f":"ROUND(H39*G39,2)","v":12423.77}]
[null,"SCO/RJ","ST 64.15.0173 (/)",null,"Assentamento de coluna de aço cônica continua tipo II para ate 1 (um) ou 2 (dois) braços projetados capazes de sustentar, cada um, semáforo e placa de 4,5m2 fixada por chumbadores\nengastados em fundação de concreto, exclusive fundação, exclusive fornecimento da coluna (desonerado)","unid",1,{"$f":"VLOOKUP(C40,scorj!B:G,4,FALSE)","v":343.29},343.29]
[null,"SCO/RJ","ST 64.05.0760 (/)",null,"Braço projetado de aço para sustentação de semáforo e placa de ate 4,50m2; galvanizado a fogo; para\nfixação em coluna cônica tipo II; projeção de 6m; 173mm de diâmetro junto a flange; conforme\nespecificação da CET-RIO. Fornecimento (desonerado)","unid",1,{"$f":"VLOOKUP(C41,scorj!B:G,4,FALSE)","v":5033.72},5033.72]
[null,"SCO/RJ","ST 64.15.0186 (/)",null,"Montagem de braço projetado em coluna de aço cônica continua tipo II assentada, exclusive o\nfornecimento do braço (desonerado)","unid",1,{"$f":"VLOOKUP(C42,scorj!B:G,4,FALSE)","v":159.38999999999999},159.38999999999999]
[null,"SCO/RJ","ST 64.15.0340 (/)",null,"Bloco de concreto armado medindo (0,60 x 0,60 x 1,00)m para uma coluna de aco conica continua para instalacao de ate 4 bracos projetados para sinalizacao.(desonerado) ","unid",1,{"$f":"VLOOKUP(C43,scorj!B:G,4,FALSE)","v":479.59},479.59]
[]
[null,"PLANILHA",null,"NOME","DESCRIÇÃO","UNID.","COEF.","R$/UNIT.","TOTAL","Material","Mão de obra","Código e Referência da Composição de Custos"]
[null,"DETRAN",null,"COMP.05","Placa tipo R-1 - L = 0,25m. Com película refletiva tipo I A (prismática) - Área: 0,32 m²","m²",0.32,null,{"$f":"ROUND((I47+I48+I49+I50+I51+I52+I53+I54+I55+I56)*G46,2)","v":172.1},{"$f":"ROUND((I47+I51+I52+I53+I54+I55+I56)*G46,2)","v":155.25},{"$f":"ROUND((I48+I49+I50)*G46,2)","v":16.850000000000001},"DER/820000 - AGOSTO 2025\nADAPTADO"]
[null,"der-pr",346000,"MAT","Caminhão carroceria 1419 14 t","unid",1,135.66999999999999,{"$f":"ROUND(H47*G47,2)","v":135.66999999999999}]
[null,"der-pr",200270,"SER.AUX","Pintor","hr ",0.5,38.67,{"$f":"TRUNC(H48*G48,2)","v":19.329999999999998}]
[null,"der-pr",200130,"SER.AUX","Servente","hr ",1,28.33,28.33]
[null,"der-pr",210060,"SER.AUX","Técnico de Campo I","hr ",0.1,50.16,{"$f":"TRUNC(H50*G50,2)","v":5.01}]
[null,"der-pr",29990,"MAT","Ferramentas Manuais","unid",1,2.63,2.63]
[null,"der-pr",150190,"MAT","Chapa nº 18 galvanizada (10 kg/m2) pré-pintada","m²",1,110.78,110.78]
[null,"der-pr",111070,"MAT","Madeira peroba 1\" x 3\"","m",1,14.13,14.13]
[null,"der-pr",133120,"MAT","Parafuso francês g.f. c/porca 5/8\" x 3.1/2\"","unid",2,5.18,10.36]
[null,"der-pr",126120,"MAT","Película refletiva - tipo IA (prismática)","m²",1.5,141.02000000000001,211.53]
[null,"der-pr",106040,"MAT","Tinta óleo (fundo)","l",1.1999999999999999E-3,42.07,{"$f":"ROUND(H56*G56,2)","v":0.05}]
[]
[null,"PLANILHA",null,"NOME","DESCRIÇÃO","UNID.","COEF.","R$/UNIT.","TOTAL","Material","Mão de obra","Código e Referência da Composição de Custos"]
[null,"DETRAN",null,"COMP.06","Placa tipo R-2 - L = 0,75m. Com película refletiva tipo I A (prismática) - Área: 0,24m²","m²",0.24,null,{"$f":"ROUND((I60+I61+I62+I63+I64+I65+I66+I67+I68+I69)*G59,2)","v":129.08000000000001},{"$f":"ROUND((I60+I64+I65+I66+I67+I68+I69)*G59,2)","v":116.44},{"$f":"ROUND((I61+I62+I63)*G59,2)","v":12.64},"DER/820000 - AGOSTO 2025\nADAPTADO"]
[null,"der-pr",346000,"MAT","Caminhão carroceria 1419 14 t","unid",1,135.66999999999999,{"$f":"ROUND(H60*G60,2)","v":135.66999999999999}]
[null,"der-pr",200270,"SER.AUX","Pintor","hr ",0.5,38.67,{"$f":"TRUNC(H61*G61,2)","v":19.329999999999998}]
[null,"der-pr",200130,"SER.AUX","Servente","hr ",1,28.33,{"$f":"ROUND(H62*G62,2)","v":28.33}]
[null,"der-pr",210060,"SER.AUX","Técnico de Campo I","hr ",0.1,50.16,{"$f":"TRUNC(H63*G63,2)","v":5.01}]
[null,"der-pr",29990,"MAT","Ferramentas Manuais","unid",1,2.63,{"$f":"ROUND(H64*G64,2)","v":2.63}]
[null,"der-pr",150190,"MAT","Chapa nº 18 galvanizada (10 kg/m2) pré-pintada","m²",1,110.78,110.78]
[null,"der-pr",111070,"MAT","Madeira peroba 1\" x 3\"","m",1,14.13,14.13]
[null,"der-pr",133120,"MAT","Parafuso francês g.f. c/porca 5/8\" x 3.1/2\"","unid",2,5.18,10.36]
[null,"der-pr",126120,"MAT","Película refletiva - tipo IA (prismática)","m²",1.5,141.02000000000001,211.53]
[null,"der-pr",106040,"MAT","Tinta óleo (fundo)","l",1.1999999999999999E-3,42.07,{"$f":"ROUND(H69*G69,2)","v":0.05}]
[]
[null,"PLANILHA",null,"NOME","DESCRIÇÃO","UNID.","COEF.","R$/UNIT.","TOTAL","Material","Mão de obra","Código e Referência da Composição de Custos"]
[null,"DETRAN",null,"COMP.07","Placa tipo circular - D = 0,50m. Com película refletiva tipo I A (prismática) - Área: 0,21m²","m²",0.21,null,{"$f":"ROUND((I73+I74+I75+I76+I77+I78+I79+I80+I81+I82)*G72,2)","v":112.94},{"$f":"ROUND((I73+I77+I78+I79+I80+I81+I82)*G72,2)","v":101.88},{"$f":"ROUND((I74+I75+I76)*G72,2)","v":11.06},"DER/820000 - AGOSTO 2025\nADAPTADO"]
[null,"der-pr",346000,"MAT","Caminhão carroceria 1419 14 t","unid",1,135.66999999999999,{"$f":"ROUND(H73*G73,2)","v":135.66999999999999}]
[null,"der-pr",200270,"SER.AUX","Pintor","hr ",0.5,38.67,{"$f":"TRUNC(H74*G74,2)","v":19.329999999999998}]
[null,"der-pr",200130,"SER.AUX","Servente","hr ",1,28.33,{"$f":"ROUND(H75*G75,2)","v":28.33}]
[null,"der-pr",210060,"SER.AUX","Técnico de Campo I","hr ",0.1,50.16,{"$f":"TRUNC(H76*G76,2)","v":5.01}]
[null,"der-pr",29990,"MAT","Ferramentas Manuais","unid",1,2.63,{"$f":"ROUND(H77*G77,2)","v":2.63}]
[null,"der-pr",150190,"MAT","Chapa nº 18 galvanizada (10 kg/m2) pré-pintada","m²",1,110.78,110.78]
[null,"der-pr",111070,"MAT","Madeira peroba 1\" x 3\"","m",1,14.13,14.13]
[null,"der-pr",133120,"MAT","Parafuso francês g.f. c/porca 5/8\" x 3.1/2\"","unid",2,5.18,10.36]
[null,"der-pr",126120,"MAT","Película refletiva - tipo IA (prismática)","m²",1.5,141.02000000000001,211.53]
[null,"der-pr",106040,"MAT","Tinta óleo (fundo)","l",1.1999999999999999E-3,42.07,{"$f":"ROUND(H82*G82,2)","v":0.05}]
[]
[null,"PLANILHA",null,"NOME","DESCRIÇÃO","UNID.","COEF.","R$/UNIT.","TOTAL","Material","Mão de obra","Código e Referência da Composição de Custos"]
[null,"DETRAN",null,"COMP.08","Placa tipo de advertência - L = 0,50m. Com película refletiva tipo I A (prismática) - Área: 0,27 m²","m²",0.27,null,{"$f":"ROUND((I86+I87+I88+I89+I90+I91+I92+I93+I94+I95)*G85,2)","v":145.21},{"$f":"ROUND((I86+I90+I91+I92+I93+I94+I95)*G85,2)","v":130.99},{"$f":"ROUND((I87+I88+I89)*G85,2)","v":14.22},"DER/820000 - AGOSTO 2025\nADAPTADO"]
[null,"der-pr",346000,"MAT","Caminhão carroceria 1419 14 t","unid",1,135.66999999999999,{"$f":"ROUND(H86*G86,2)","v":135.66999999999999}]
[null,"der-pr",200270,"SER.AUX","Pintor","hr ",0.5,38.67,{"$f":"TRUNC(H87*G87,2)","v":19.329999999999998}]
[null,"der-pr",200130,"SER.AUX","Servente","hr ",1,28.33,{"$f":"ROUND(H88*G88,2)","v":28.33}]
[null,"der-pr",210060,"SER.AUX","Técnico de Campo I","hr ",0.1,50.16,{"$f":"TRUNC(H89*G89,2)","v":5.01}]
[null,"der-pr",29990,"MAT","Ferramentas Manuais","unid",1,2.63,{"$f":"ROUND(H90*G90,2)","v":2.63}]
[null,"der-pr",150190,"MAT","Chapa nº 18 galvanizada (10 kg/m2) pré-pintada","m²",1,110.78,110.78]
[null,"der-pr",111070,"MAT","Madeira peroba 1\" x 3\"","m",1,14.13,14.13]
[null,"der-pr",133120,"MAT","Parafuso francês g.f. c/porca 5/8\" x 3.1/2\"","unid",2,5.18,10.36]
[null,"der-pr",126120,"MAT","Película refletiva - tipo IA (prismática)","m²",1.5,141.02000000000001,211.53]
[null,"der-pr",106040,"MAT","Tinta óleo (fundo)","l",1.1999999999999999E-3,42.07,{"$f":"ROUND(H95*G95,2)","v":0.05}]
[]
[null,"PLANILHA",null,"NOME","DESCRIÇÃO","UNID.","COEF.","R$/UNIT.","TOTAL","Material","Mão de obra","Código e Referência da Composição de Custos"]
[null,"DETRAN",null,"COMP.09","Placa tipo retangular - L = 0,50m x h= 1,00 m. Com película refletiva tipo I A (prismática)","m²",0.5,null,{"$f":"SUM(I99:I108)*G98","v":268.90999999999997},{"$f":"ROUND((I99+I103+I104+I105+I106+I107+I108)*G98,2)","v":242.58},{"$f":"ROUND((I100+I101+I102)*G98,2)","v":26.34},"DER/820000 - AGOSTO 2025\nADAPTADO"]
[null,"der-pr",346000,"MAT","Caminhão carroceria 1419 14 t","unid",1,135.66999999999999,{"$f":"ROUND(H99*G99,2)","v":135.66999999999999}]
[null,"der-pr",200270,"SER.AUX","Pintor","hr ",0.5,38.67,{"$f":"TRUNC(H100*G100,2)","v":19.329999999999998}]
[null,"der-pr",200130,"SER.AUX","Servente","hr ",1,28.33,{"$f":"ROUND(H101*G101,2)","v":28.33}]
[null,"der-pr",210060,"SER.AUX","Técnico de Campo I","hr ",0.1,50.16,{"$f":"TRUNC(H102*G102,2)","v":5.01}]
[null,"der-pr",29990,"MAT","Ferramentas Manuais","unid",1,2.63,{"$f":"ROUND(H103*G103,2)","v":2.63}]
[null,"der-pr",150190,"MAT","Chapa nº 18 galvanizada (10 kg/m2) pré-pintada","m²",1,110.78,110.78]
[null,"der-pr",111070,"MAT","Madeira peroba 1\" x 3\"","m",1,14.13,14.13]
[null,"der-pr",133120,"MAT","Parafuso francês g.f. c/porca 5/8\" x 3.1/2\"","unid",2,5.18,10.36]
[null,"der-pr",126120,"MAT","Película refletiva - tipo IA (prismática)","m²",1.5,141.02000000000001,211.53]
[null,"der-pr",106040,"MAT","Tinta óleo (fundo)","l",1.1999999999999999E-3,42.07,{"$f":"ROUND(H108*G108,2)","v":0.05}]
[]
[null,"PLANILHA",null,"NOME","DESCRIÇÃO","m2","COEF.","R$/UNIT.","TOTAL","Material","Mão de obra","Código e Referência da Composição de Custos"]
[null,"DETRAN",null,"COMP.10","Faixa de sinalização horizontal c/tinta resina acrílica base água com limpeza do pavimento com jato d'água","m²",null,null,{"$f":"SUM(I112:I120,I121:I128)","v":24.73},{"$f":"SUM(I112:I113,I117:I120)","v":18.93},{"$f":"SUM(I114:I116,I121:I128)","v":5.7999999999999989},"DER/822100 - AGOSTO 2025\nADAPTADO"]
[null,"der-pr",346080,"MAT","Caminhão carroceria 815/37 6 t","unid",3.3333000000000002E-2,19.57,{"$f":"ROUND(H112*G112,2)","v":0.65}]
[null,"der-pr",370440,"MAT","Máquina pintura de faixas","unid",3.3333000000000002E-2,181.94,6.06]
[null,"der-pr",200130,"SER.AUX","Servente","hr ",{"$f":"G113*3","v":9.9999000000000005E-2},28.33,2.83]
[null,"der-pr",210060,"SER.AUX","Técnico de Campo I","hr ",{"$f":"G113*0.2","v":6.6666000000000008E-3},50.16,0.33]
[null,"der-pr",210080,"SER.AUX","Topógrafo","hr ",{"$f":"G113*0.1","v":3.3333000000000004E-3},43.84,0.15]
[null,"der-pr",29990,"MAT","Ferramentas Manuais","unid",3.3333000000000002E-2,4.97,0.17]
[null,"der-pr",100200,"MAT","Micro-esferas Drop-on","kg",0.27500000000000002,8.9,{"$f":"TRUNC(H118*G118,2)","v":2.44}]
[null,"der-pr",100100,"MAT","Micro-esferas Premix","kg",0.22500000000000001,8.52,{"$f":"TRUNC(H119*G119,2)","v":1.91}]
[null,"der-pr",100150,"MAT","Tinta base resina acrílica emuls. Água -2 anos","l",0.5,15.4,7.7]
[null,"der-pr",346070,"MAT","Caminhão pipa 6000 l","unid",3.0300000000000001E-3,250.42,{"$f":"ROUND(H121*G121,2)","v":0.76},null,null,"Código e Referência da Composição de Custos"]
[null,"der-pr",340800,"MAT","Compressor de ar 175 pcm","unid",3.0300000000000001E-3,54.43,0.16,null,null,"DER/515580 - AGOSTO 2025\nADAPTADO"]
[null,"der-pr",340400,"MAT","Grupo gerador 40 KVA","unid",3.0300000000000001E-3,54.08,0.16]
[null,"der-pr",337000,"MAT","Hidrocompressor 3700 lb/3,675 Kw","unid",3.0300000000000001E-3,6.64,0.02]
[null,"der-pr",341100,"MAT","Trator agrícola BH-174 4x4","unid",3.0300000000000001E-3,237.51,0.72]
[null,"der-pr",300090,"MAT","Vassoura mecânica rebocável","unid",3.0300000000000001E-3,15.15,0.05]
[null,"der-pr",200130,"SER.AUX","Servente","hr ",{"$f":"G121*6","v":1.8180000000000002E-2},28.33,0.52]
[null,"der-pr",210060,"SER.AUX","Técnico de Campo I","hr ",{"$f":"G121*0.7","v":2.1210000000000001E-3},50.16,{"$f":"TRUNC(H128*G128,2)","v":0.1}]
[]
[null,"PLANILHA",null,"NOME","DESCRIÇÃO","m2","COEF.","R$/UNIT.","TOTAL","Material","Mão de obra","Código e Referência da Composição de Custos"]
[null,"DETRAN",null,"COMP.11","Faixa de sinalização horizontal c/tinta resina acrílica base solvente com limpeza do pavimento com jato d'água","m²",null,null,{"$f":"SUM(I132:I141,I142:I149)","v":30.41},{"$f":"SUM(I132:I133,I137:I141)","v":24.61},{"$f":"SUM(I134:I136,I142:I149)","v":5.7999999999999989},"DER/822000 - AGOSTO 2025\nADAPTADO"]
[null,"der-pr",346080,"MAT","Caminhão carroceria 815/37 6 t","unid",3.3333000000000002E-2,19.57,{"$f":"ROUND(H132*G132,2)","v":0.65}]
[null,"der-pr",370440,"MAT","Máquina pintura de faixas","unid",3.3333000000000002E-2,181.94,6.06]
[null,"der-pr",200130,"SER.AUX","Servente","hr ",{"$f":"G132*3","v":9.9999000000000005E-2},28.33,2.83]
[null,"der-pr",210060,"SER.AUX","Técnico de Campo I","hr ",{"$f":"G132*0.2","v":6.6666000000000008E-3},50.16,0.33]
[null,"der-pr",210080,"SER.AUX","Topógrafo","hr ",{"$f":"G133*0.1","v":3.3333000000000004E-3},43.84,0.15]
[null,"der-pr",29990,"MAT","Ferramentas Manuais","unid",3.3333000000000002E-2,4.97,0.17]
[null,"der-pr",100200,"MAT","Micro-esferas Drop-on","kg",0.27500000000000002,8.9,{"$f":"TRUNC(H138*G138,2)","v":2.44}]
[null,"der-pr",100100,"MAT","Micro-esferas Premix","kg",0.22500000000000001,8.52,{"$f":"TRUNC(H139*G139,2)","v":1.91}]
[null,"der-pr",100110,"MAT","Solvente tolueno","L",0.03,14.96,{"$f":"TRUNC(H140*G140,2)","v":0.44}]
[null,"der-pr",100120,"MAT","Tinta base resina acrílica emuls. Água -2 anos","l",0.6,21.58,{"$f":"TRUNC(H141*G141,2)","v":12.94}]
[null,"der-pr",346070,"MAT","Caminhão pipa 6000 l","unid",3.0300000000000001E-3,250.42,{"$f":"ROUND(H142*G142,2)","v":0.76},null,null,"Código e Referência da Composição de Custos"]
[null,"der-pr",340800,"MAT","Compressor de ar 175 pcm","unid",3.0300000000000001E-3,54.43,0.16,null,null,"DER/515580 - AGOSTO 2025\nADAPTADO"]
[null,"der-pr",340400,"MAT","Grupo gerador 40 KVA","unid",3.0300000000000001E-3,54.08,0.16]
[null,"der-pr",337000,"MAT","Hidrocompressor 3700 lb/3,675 Kw","unid",3.0300000000000001E-3,6.64,0.02]
[null,"der-pr",341100,"MAT","Trator agrícola BH-174 4x4","unid",3.0300000000000001E-3,237.51,0.72]
[null,"der-pr",300090,"MAT","Vassoura mecânica rebocável","unid",3.0300000000000001E-3,15.15,0.05]
[null,"der-pr",200130,"SER.AUX","Servente","hr ",{"$f":"G142*6","v":1.8180000000000002E-2},28.33,0.52]
[null,"der-pr",210060,"SER.AUX","Técnico de Campo I","hr ",{"$f":"G142*0.7","v":2.1210000000000001E-3},50.16,{"$f":"TRUNC(H149*G149,2)","v":0.1}]
[]
[null,"PLANILHA",null,"NOME","DESCRIÇÃO","m2","COEF.","R$/UNIT.","TOTAL","Material","Mão de obra","Código e Referência da Composição de Custos"]
[null,"DETRAN",null,"COMP.12","Faixa de sinalização horizontal - termoplástico por aspersão - e=1,5mm com limpeza do pavimento com jato d'água","m²",null,null,{"$f":"SUM(I153:I168)","v":42.58},{"$f":"SUM(I153:I154,I158:I166)","v":34.779999999999994},{"$f":"SUM(I155:I157,I167:I168)","v":7.7999999999999989},"DER/822350- AGOSTO 2025\nADAPTADO"]
[null,"der-pr",342300,"MAT","Cam. chassi 18.210","unid",2.5000000000000001E-2,247.25,{"$f":"ROUND(H153*G153,2)","v":6.18}]
[null,"der-pr",370400,"MAT","Equipamento aplicação termoplástico Spray/ Extrusão","unid",2.5000000000000001E-2,184.07,4.5999999999999996]
[null,"der-pr",210070,"SER.AUX","Pré-marcador (Sinalização)","unid",2.5000000000000001E-2,38.67,0.97]
[null,"der-pr",200130,"SER.AUX","Servente","hr ",{"$f":"G153*7","v":0.17500000000000002},28.33,4.96]
[null,"der-pr",210060,"SER.AUX","Técnico de Campo I","hr ",{"$f":"G153*1","v":2.5000000000000001E-2},50.16,1.25]
[null,"der-pr",29990,"MAT","Ferramentas Manuais","unid",2.5000000000000001E-2,14.35,0.36]
[null,"der-pr",100170,"MAT","Material termoplástico p/aspersão","kg",3,6.07,{"$f":"TRUNC(H159*G159,2)","v":18.21}]
[null,"der-pr",100200,"MAT","Micro-esferas Drop-on","kg",0.4,8.9,3.56]
[null,"der-pr",346070,"MAT","Caminhão pipa 6000 l","unid",3.0300000000000001E-3,250.42,{"$f":"ROUND(H161*G161,2)","v":0.76},null,null,"Código e Referência da Composição de Custos"]
[null,"der-pr",340800,"MAT","Compressor de ar 175 pcm","unid",3.0300000000000001E-3,54.43,0.16,null,null,"DER/515580 - AGOSTO 2025\nADAPTADO"]
[null,"der-pr",340400,"MAT","Grupo gerador 40 KVA","unid",3.0300000000000001E-3,54.08,0.16]
[null,"der-pr",337000,"MAT","Hidrocompressor 3700 lb/3,675 Kw","unid",3.0300000000000001E-3,6.64,0.02]
[null,"der-pr",341100,"MAT","Trator agrícola BH-174 4x4","unid",3.0300000000000001E-3,237.51,0.72]
[null,"der-pr",300090,"MAT","Vassoura mecânica rebocável","unid",3.0300000000000001E-3,15.15,0.05]
[null,"der-pr",200130,"SER.AUX","Servente","hr ",{"$f":"G161*6","v":1.8180000000000002E-2},28.33,0.52]
[null,"der-pr",210060,"SER.AUX","Técnico de Campo I","hr ",{"$f":"G161*0.7","v":2.1210000000000001E-3},50.16,{"$f":"TRUNC(H168*G168,2)","v":0.1}]
[]
[null,"PLANILHA",null,"NOME","DESCRIÇÃO","m2","COEF.","R$/UNIT.","TOTAL","Material","Mão de obra","Código e Referência da Composição de Custos"]
[null,"DETRAN",null,"COMP.13","Pintura de setas e zebrados - termoplástico por extrusão - e=3mm com limpeza do pavimento com jato d'água","m²",null,null,{"$f":"SUM(I172:I187)","v":56.89},{"$f":"SUM(I172:I173,I177:I185)","v":49.089999999999996},{"$f":"SUM(I174:I176,I186:I187)","v":7.7999999999999989},"DER/822330- AGOSTO 2025\nADAPTADO"]
[null,"der-pr",342300,"MAT","Cam. chassi 18.210","unid",2.5000000000000001E-2,247.25,{"$f":"ROUND(H172*G172,2)","v":6.18}]
[null,"der-pr",370400,"MAT","Equipamento aplicação termoplástico Spray/ Extrusão","unid",2.5000000000000001E-2,184.07,4.5999999999999996]
[null,"der-pr",210070,"SER.AUX","Pré-marcador (Sinalização)","hr ",{"$f":"G172*1","v":2.5000000000000001E-2},38.67,0.97]
[null,"der-pr",200130,"SER.AUX","Servente","hr ",{"$f":"G172*7","v":0.17500000000000002},28.33,4.96]
[null,"der-pr",210060,"SER.AUX","Técnico de Campo I","hr ",{"$f":"G172*1","v":2.5000000000000001E-2},50.16,1.25]
[null,"der-pr",29990,"MAT","Ferramentas Manuais","unid",2.5000000000000001E-2,14.35,0.36]
[null,"der-pr",100180,"MAT","Material termoplástico p/extrusão","kg",6,5.42,{"$f":"TRUNC(H178*G178,2)","v":32.520000000000003}]
[null,"der-pr",100200,"MAT","Micro-esferas Drop-on","kg",0.4,8.9,3.56]
[null,"der-pr",346070,"MAT","Caminhão pipa 6000 l","unid",3.0300000000000001E-3,250.42,{"$f":"ROUND(H180*G180,2)","v":0.76},null,null,"Código e Referência da Composição de Custos"]
[null,"der-pr",340800,"MAT","Compressor de ar 175 pcm","unid",3.0300000000000001E-3,54.43,0.16,null,null,"DER/515580 - AGOSTO 2025\nADAPTADO"]
[null,"der-pr",340400,"MAT","Grupo gerador 40 KVA","unid",3.0300000000000001E-3,54.08,0.16]
[null,"der-pr",337000,"MAT","Hidrocompressor 3700 lb/3,675 Kw","unid",3.0300000000000001E-3,6.64,0.02]
[null,"der-pr",341100,"MAT","Trator agrícola BH-174 4x4","unid",3.0300000000000001E-3,237.51,0.72]
[null,"der-pr",300090,"MAT","Vassoura mecânica rebocável","unid",3.0300000000000001E-3,15.15,0.05]
[null,"der-pr",200130,"SER.AUX","Servente","hr ",{"$f":"G180*6","v":1.8180000000000002E-2},28.33,0.52]
[null,"der-pr",210060,"SER.AUX","Técnico de Campo I","hr ",{"$f":"G180*0.7","v":2.1210000000000001E-3},50.16,{"$f":"TRUNC(H187*G187,2)","v":0.1}]
[]
[null,"PLANILHA",null,"NOME","DESCRIÇÃO","m2","COEF.","R$/UNIT.","TOTAL","Material","Mão de obra","Código e Referência da Composição de Custos"]
[null,"DETRAN",null,"COMP.14","Pintura de setas e zebrados - termoplástico por extrusão - e=3mm com limpeza do pavimento com jato d'água","m²",null,null,{"$f":"SUM(I191:I206)","v":56.89},{"$f":"SUM(I191:I192,I196:I204)","v":49.089999999999996},{"$f":"SUM(I193:I195,I205:I206)","v":7.7999999999999989},"DER/822330- AGOSTO 2025\nADAPTADO"]
[null,"der-pr",342300,"MAT","Cam. chassi 18.210","unid",2.5000000000000001E-2,247.25,{"$f":"ROUND(H191*G191,2)","v":6.18}]
[null,"der-pr",370400,"MAT","Equipamento aplicação termoplástico Spray/ Extrusão","unid",2.5000000000000001E-2,184.07,4.5999999999999996]
[null,"der-pr",210070,"SER.AUX","Pré-marcador (Sinalização)","hr ",{"$f":"G191*1","v":2.5000000000000001E-2},38.67,0.97]
[null,"der-pr",200130,"SER.AUX","Servente","hr ",{"$f":"G191*7","v":0.17500000000000002},28.33,4.96]
[null,"der-pr",210060,"SER.AUX","Técnico de Campo I","hr ",{"$f":"G191*1","v":2.5000000000000001E-2},50.16,1.25]
[null,"der-pr",29990,"MAT","Ferramentas Manuais","unid",2.5000000000000001E-2,14.35,0.36]
[null,"der-pr",100180,"MAT","Material termoplástico p/extrusão","kg",6,5.42,{"$f":"TRUNC(H197*G197,2)","v":32.520000000000003}]
[null,"der-pr",100200,"MAT","Micro-esferas Drop-on","kg",0.4,8.9,3.56]
[null,"der-pr",346070,"MAT","Caminhão pipa 6000 l","unid",3.0300000000000001E-3,250.42,{"$f":"ROUND(H199*G199,2)","v":0.76},null,null,"Código e Referência da Composição de Custos"]
[null,"der-pr",340800,"MAT","Compressor de ar 175 pcm","unid",3.0300000000000001E-3,54.43,0.16,null,null,"DER/515580 - AGOSTO 2025\nADAPTADO"]
[null,"der-pr",340400,"MAT","Grupo gerador 40 KVA","unid",3.0300000000000001E-3,54.08,0.16]
[null,"der-pr",337000,"MAT","Hidrocompressor 3700 lb/3,675 Kw","unid",3.0300000000000001E-3,6.64,0.02]
[null,"der-pr",341100,"MAT","Trator agrícola BH-174 4x4","unid",3.0300000000000001E-3,237.51,0.72]
[null,"der-pr",300090,"MAT","Vassoura mecânica rebocável","unid",3.0300000000000001E-3,15.15,0.05]
[null,"der-pr",200130,"SER.AUX","Servente","hr ",{"$f":"G199*6","v":1.8180000000000002E-2},28.33,0.52]
[null,"der-pr",210060,"SER.AUX","Técnico de Campo I","hr ",{"$f":"G199*0.7","v":2.1210000000000001E-3},50.16,{"$f":"TRUNC(H206*G206,2)","v":0.1}]
[]
[null,"PLANILHA",null,"NOME","DESCRIÇÃO","m2","COEF.","R$/UNIT.","TOTAL","Material","Mão de obra","Código e Referência da Composição de Custos"]
[null,"DETRAN",null,"COMP.15","Pintura de faixa com plástico a frio bicomponente à base de resinas metacrílicas por extrusão (plano) - espessura de 1,5 mm com limpeza do pavimento com jato d'água","m²",null,null,{"$f":"SUM(I210:I226)","v":128.35999999999999},{"$f":"SUM(I210,I214:I224)","v":124.77},{"$f":"SUM(I211:I213,I225:I226)","v":3.59},"DENIT/5214009- OUTUBRO 2025\nADAPTADO"]
[null,"dnit","E9693","MAT","Caminhão de marcador de faixas com sistema de pintura Spray-129kW","unid",1.6603E-2,1058.6068,{"$f":"ROUND(H210*G210,2)","v":17.579999999999998}]
[null,"dnit","P9853","SER.AUX","Pré-marcador","hr ",{"$f":"G210*1","v":1.6603E-2},29.660599999999999,{"$f":"ROUND(H211*G211,2)","v":0.49}]
[null,"dnit","P9824","SER.AUX","Servente","hr ",{"$f":"G210*4","v":6.6411999999999999E-2},29.781700000000001,{"$f":"ROUND(H212*G212,2)","v":1.98}]
[null,"dnit","CustodoFIC:",null,null,null,null,null,0.5]
[null,"dnit","M2045","MAT","Microesferas refletivas de vidro tipo II-C","kg",0.35,11.3657,{"$f":"ROUND(G214*H214,2)","v":3.98}]
[null,"dnit","M2044","MAT","Tinta à base de resina acrílica emulsionada em água para pré-marcação viária","l",9.7000000000000005E-4,20.0427,{"$f":"ROUND(G215*H215,2)","v":0.02}]
[null,"dnit","M1577","MAT","Tinta plástica à base de resina metacrílica aplicada a frio por dispersão ou extrusão","kg",3,33.729399999999998,{"$f":"ROUND(G216*H216,2)","v":101.19}]
[null,"dnit","M2045","MAT","Microesferas refletivas de vidro tipo II-C- Caminhão carroceria 15t","t",3.5E-4,39.35,{"$f":"ROUND(G217*H217,2)","v":0.01}]
[null,"dnit","M1577","MAT","Tinta plástica à base de resinametacrílica a plicada a frio por dispersão ou extrusão-Caminhão carroceria 15t","t",3.0000000000000001E-3,39.35,{"$f":"ROUND(G218*H218,2)","v":0.12}]
[null,"der-pr",346070,"MAT","Caminhão pipa 6000 l","unid",3.0300000000000001E-3,250.42,{"$f":"ROUND(H219*G219,2)","v":0.76},null,null,"Código e Referência da Composição de Custos"]
[null,"der-pr",340800,"MAT","Compressor de ar 175 pcm","unid",3.0300000000000001E-3,54.43,0.16,null,null,"DER/515580 - AGOSTO 2025\nADAPTADO"]
[null,"der-pr",340400,"MAT","Grupo gerador 40 KVA","unid",3.0300000000000001E-3,54.08,0.16]
[null,"der-pr",337000,"MAT","Hidrocompressor 3700 lb/3,675 Kw","unid",3.0300000000000001E-3,6.64,0.02]
[null,"der-pr",341100,"MAT","Trator agrícola BH-174 4x4","unid",3.0300000000000001E-3,237.51,0.72]
[null,"der-pr",300090,"MAT","Vassoura mecânica rebocável","unid",3.0300000000000001E-3,15.15,0.05]
[null,"der-pr",200130,"SER.AUX","Servente","hr ",{"$f":"G219*6","v":1.8180000000000002E-2},28.33,0.52]
[null,"der-pr",210060,"SER.AUX","Técnico de Campo I","hr ",{"$f":"G219*0.7","v":2.1210000000000001E-3},50.16,{"$f":"TRUNC(H226*G226,2)","v":0.1}]
[]
[null,"PLANILHA",null,"NOME","DESCRIÇÃO","m2","COEF.","R$/UNIT.","TOTAL","Material","Mão de obra","Código e Referência da Composição de Custos"]
[null,"DETRAN",null,"COMP.16","Pintura de faixa com plástico a frio tricomponente à base de resinas metacrílicas por aspersão - espessura de 0,6 mm com limpeza do pavimento com jato d'água","m²",null,null,{"$f":"SUM(I230:I246)","v":71.449999999999989},{"$f":"SUM(I230,I234:I244)","v":69.180000000000007},{"$f":"SUM(I231:I233,I245:I246)","v":2.27},"DNIT/5213413 - OUTUBRO 2025\nADAPTADO"]
[null,"dnit","E9693","MAT"," CaminhãodemarcadordefaixascomsistemadepinturaSpray-129kW","unid",9.221E-3,1058.6068,{"$f":"ROUND(H230*G230,2)","v":9.76}]
[null,"dnit","P9853","SER.AUX","Pré-marcador","hr ",{"$f":"G230*1","v":9.221E-3},29.660599999999999,{"$f":"ROUND(H231*G231,2)","v":0.27}]
[null,"dnit","P9824","SER.AUX","Servente","hr ",{"$f":"G230*4","v":3.6884E-2},29.781700000000001,{"$f":"ROUND(H232*G232,2)","v":1.1000000000000001}]
[null,"dnit","CustodoFIC:",null,null,null,null,null,0.28000000000000003]
[null,"dnit","M2045","MAT","Microesferas refletivas de vidro tipo II-C","kg",0.35,11.3657,{"$f":"ROUND(H234*G234,2)","v":3.98}]
[null,"dnit","M2044","MAT","Tinta à base de resina acrílica emulsionada em água para pré-marcação viária","l",9.7000000000000005E-4,20.0427,{"$f":"ROUND(H235*G235,2)","v":0.02}]
[null,"dnit","M3245","MAT","Tinta plástica à base de resina metacrílica aplicada a frio por aspersão (spray)","kg",1.02,52.446199999999997,{"$f":"ROUND(H236*G236,2)","v":53.5}]
[null,"dnit","M2045","MAT","Microesferas refletivas de vidro tipo II-C- Caminhão carroceria 15t","t",3.5E-4,39.35,{"$f":"ROUND(H237*G237,2)","v":0.01}]
[null,"dnit","M3245","MAT","Tinta plástica à base de resina metacrílica aplicada a frio por aspersão (spray) - Caminhão carroceria 15t","t",1.0200000000000001E-3,39.35,{"$f":"ROUND(H238*G238,2)","v":0.04}]
[null,"der-pr",346070,"MAT","Caminhão pipa 6000 l","unid",3.0300000000000001E-3,250.42,{"$f":"ROUND(H239*G239,2)","v":0.76},null,null,"Código e Referência da Composição de Custos"]
[null,"der-pr",340800,"MAT","Compressor de ar 175 pcm","unid",3.0300000000000001E-3,54.43,0.16,null,null,"DER/515580 - AGOSTO 2025\nADAPTADO"]
[null,"der-pr",340400,"MAT","Grupo gerador 40 KVA","unid",3.0300000000000001E-3,54.08,0.16]
[null,"der-pr",337000,"MAT","Hidrocompressor 3700 lb/3,675 Kw","unid",3.0300000000000001E-3,6.64,0.02]
[null,"der-pr",341100,"MAT","Trator agrícola BH-174 4x4","unid",3.0300000000000001E-3,237.51,0.72]
[null,"der-pr",300090,"MAT","Vassoura mecânica rebocável","unid",3.0300000000000001E-3,15.15,0.05]
[null,"der-pr",200130,"SER.AUX","Servente","hr ",{"$f":"G239*6","v":1.8180000000000002E-2},28.33,0.52]
[null,"der-pr",210060,"SER.AUX","Técnico de Campo I","hr ",{"$f":"G239*0.7","v":2.1210000000000001E-3},50.16,{"$f":"TRUNC(H246*G246,2)","v":0.1}]
[]
[null,"PLANILHA",null,"NOME","DESCRIÇÃO","UNID.","COEF.","R$/UNIT.","TOTAL","Material","Mão de obra"]
[null,"DETRAN",null,"COMP.17",{"$f":"$E$250","v":"Placa sinalização ativa inteligente com iluminação interna, duplo módulo de iluminação de faixa, detecção automática de pedestres e alimentação híbrida (fotovoltaica e rede elétrica - A = 0,84m²"},{"$f":"VLOOKUP(C250,[1]COTAÇÕES!B:J,5,FALSE)","v":"Unid."},null,{"$f":"H250","v":23343.1},{"$f":"SUM(I250)","v":23343.1},{"$f":"I249*70%","v":16340.169999999998},{"$f":"I249*30%","v":7002.9299999999994}]
[null,"COTAÇÕES",{"$f":"Cotações!$B$12","v":"COT 001"},null,{"$f":"VLOOKUP(C250,Cotações!B:J,2,FALSE)","v":"Placa sinalização ativa inteligente com iluminação interna, duplo módulo de iluminação de faixa, detecção automática de pedestres e alimentação híbrida (fotovoltaica e rede elétrica - A = 0,84m²"},{"$f":"VLOOKUP(C250,Cotações!B:J,5,FALSE)","v":"Unid."},1,{"$f":"VLOOKUP(C250,Cotações!B:J,9,FALSE)","v":23343.1},{"$f":"ROUND(H250*G250,2)","v":23343.1}]
[]
[null,"PLANILHA",null,"NOME","DESCRIÇÃO","UNID.","COEF.","R$/UNIT.","TOTAL","Material","Mão de obra"]
[null,"DETRAN",null,"COMP.18",{"$f":"E254","v":"Placa sinalização piscante dupla ativa, alimentação fotovoltaica, em chapa de aço nº 18 galvanizada c/ película refletiva Tipo A (prismática) - A = 2m²"},{"$f":"VLOOKUP(C254,[1]COTAÇÕES!B:J,5,FALSE)","v":"Unid."},null,{"$f":"H254","v":13055.81},{"$f":"SUM(I254)","v":13055.81},{"$f":"ROUND(I253*70%,2)","v":9139.07},{"$f":"ROUND(I253*30%,2)","v":3916.74}]
[null,"COTAÇÕES",{"$f":"Cotações!$B$20","v":"COT 002"},null,{"$f":"VLOOKUP(C254,Cotações!B:J,2,FALSE)","v":"Placa sinalização piscante dupla ativa, alimentação fotovoltaica, em chapa de aço nº 18 galvanizada c/ película refletiva Tipo A (prismática) - A = 2m²"},{"$f":"VLOOKUP(C254,Cotações!B:J,5,FALSE)","v":"Unid."},1,{"$f":"VLOOKUP(C254,Cotações!B:J,9,FALSE)","v":13055.81},{"$f":"ROUND(H254*G254,2)","v":13055.81}]
[]
[null,"PLANILHA",null,"NOME","DESCRIÇÃO","UNID.","COEF.","R$/UNIT.","TOTAL","Material","Mão de obra"]
[null,"DETRAN",null,"COMP.19",{"$f":"E258","v":"Placa sinalização piscante mono ativa, em chapa de aço nº 18 galvanizada c/ película refletiva Tipo A (prismática) - A = 0,72m²"},{"$f":"VLOOKUP(C258,[1]COTAÇÕES!B:J,5,FALSE)","v":"Unid."},null,{"$f":"H258","v":3523.7},{"$f":"SUM(I258)","v":3523.7},{"$f":"I257*70%","v":2466.5899999999997},{"$f":"I257*30%","v":1057.1099999999999}]
[null,"COTAÇÕES",{"$f":"Cotações!$B$28","v":"COT 003"},null,{"$f":"VLOOKUP(C258,Cotações!B:J,2,FALSE)","v":"Placa sinalização piscante mono ativa, em chapa de aço nº 18 galvanizada c/ película refletiva Tipo A (prismática) - A = 0,72m²"},{"$f":"VLOOKUP(C258,Cotações!B:J,5,FALSE)","v":"Unid."},1,{"$f":"VLOOKUP(C258,Cotações!B:J,9,FALSE)","v":3523.7},{"$f":"ROUND(H258*G258,2)","v":3523.7}]
[]
[null,"PLANILHA",null,"NOME","DESCRIÇÃO","UNID.","COEF.","R$/UNIT.","TOTAL","Material","Mão de obra"]
[null,"DETRAN",null,"COMP.20",{"$f":"E262","v":"Placa sinalização piscante mono ativa, em chapa de aço nº 18 galvanizada c/ película refletiva Tipo A (prismática) - A = 0,84m²"},{"$f":"VLOOKUP(C262,[1]COTAÇÕES!B:J,5,FALSE)","v":"Unid."},null,{"$f":"H262","v":3134.76},{"$f":"SUM(I262)","v":3134.76},{"$f":"ROUND(I261*70%,2)","v":2194.33},{"$f":"ROUND(I261*30%,2)","v":940.43}]
[null,"COTAÇÕES",{"$f":"Cotações!$B$36","v":"COT 004"},null,{"$f":"VLOOKUP(C262,Cotações!B:J,2,FALSE)","v":"Placa sinalização piscante mono ativa, em chapa de aço nº 18 galvanizada c/ película refletiva Tipo A (prismática) - A = 0,84m²"},{"$f":"VLOOKUP(C262,Cotações!B:J,5,FALSE)","v":"Unid."},1,{"$f":"VLOOKUP(C262,Cotações!B:J,9,FALSE)","v":3134.76},{"$f":"ROUND(H262*G262,2)","v":3134.76}]

{"sheet":"RESUMO","index":3,"n_rows":22,"n_cols":13,"rows_kept":22,"cut":false,"hidden":false,"merged":[[3,12,6,17],[5,1,5,9],[21,1,21,3],[20,1,20,9],[11,1,11,9],[13,5,13,7],[15,2,15,4],[16,2,16,4],[13,9,14,9],[10,8,10,9],[13,1,14,1],[13,2,14,4],[13,8,14,8],[6,2,6,9],[7,2,7,9]]}
[]
[]
[]
[null,null,null,null,null,null,null,null,null,null,null,null,"EDITAR APENAS OS ITENS EM VERMELHO"]
[]
[null,"PLANILHA RESUMO DE SERVIÇOS "]
[null,null,"DEPARTAMENTO ESTADUAL DE TRÂNSITO - DETRAN PR"]
[null,null,"COORDENADORIA DE ENGENHARIA E ARQUITETURA - DIVISÃO DE SINALIZAÇÃO"]
[null,null,"PROJETO DE SINALIZAÇÃO VIÁRIA URBANA",null,null,{"$f":"'FOLHA FECHAMENTO'!D12","v":"lote 02"},null,null,"ART/RRT Nº:",{"$f":"'FOLHA FECHAMENTO'!M18","v":"16594464"}]
[null,null,"RESPONSÁVEL TÉCNICO: ",null,{"$f":"'FOLHA FECHAMENTO'!H17","v":"Amanda Patricia de Oliveira Henning"},null,null,"REG. CREA/CAU: ",{"$f":"'FOLHA FECHAMENTO'!M17","v":"A284127-4"}]
[null,null,"TABELAS DE REFERÊNCIA: SICRO (OUT/2025), DER (AGO/2025) e SCO-RIO (DEZ/2025), SIURB (OUT/2025) S. DESONERAÇÃO",null,null,null,null,"BDI",{"$f":"'POR LOTE'!H3","v":0.20924562860848761}]
[]
[]
[null,"ITEM","DESCRIÇÃO",null,null,"SEM BDI",null,null,"TOTAL COM BDI","%"]
[null,null,null,null,null,"MATERIAL","MÃO DE OBRA","TOTAL"]
[null,1,"SINALIZAÇÃO VERTICAL",null,null,{"$f":"PLANILHA_SINTÉTICA!M14","v":1631246.99},{"$f":"PLANILHA_SINTÉTICA!L14","v":326536.46000000002},{"$f":"F16+G16","v":1957783.45},{"$f":"ROUND(H16*(1+I11),2)","v":2367441.08},{"$f":"F20","v":0.83612938814277527}]
[null,2,"SINALIZAÇÃO HORIZONTAL",null,null,{"$f":"PLANILHA_SINTÉTICA!M39","v":1155975.76},{"$f":"PLANILHA_SINTÉTICA!L39","v":219723.37000000002},{"$f":"F17+G17","v":1375699.1300000001},{"$f":"ROUND(H17*(1+I11),2)","v":1663558.16},{"$f":"G20","v":0.16387061185722473}]
[]
[null,"TOTAL (R$) GERAL DA OBRA",null,null,null,{"$f":"F16+F17","v":2787222.75},{"$f":"G16+G17","v":546259.83000000007},{"$f":"SUM(H16:H17)","v":3333482.58},{"$f":"PLANILHA_SINTÉTICA!N54","v":4030999.25},{"$f":"SUM(J16:J17)","v":1}]
[null,"PERCENTAGEM (%)",null,null,null,{"$f":"F19/H19","v":0.83612938814277527},{"$f":"G19/H19","v":0.16387061185722473},1,"-","-"]
[]
[null,"PRAZO DE EXECUÇÃO (DIAS CORRIDOS):",null,null,{"$f":"'FOLHA FECHAMENTO'!G32","v":270}]

{"sheet":"FOLHA FECHAMENTO","index":4,"n_rows":58,"n_cols":16,"rows_kept":58,"cut":false,"hidden":false,"merged":[[56,2,56,5],[56,7,56,8],[56,9,56,13],[57,2,57,5],[57,7,57,8],[57,9,57,13],[44,7,44,13],[54,2,54,5],[54,7,54,8],[54,9,54,13],[55,7,55,8],[55,9,55,13],[36,6,36,7],[36,8,36,9],[40,1,40,4],[42,1,42,4],[42,7,42,13],[11,11,11,13],[34,6,34,7],[34,8,34,9],[12,3,12,8],[13,3,13,8],[13,11,13,13],[15,7,15,9],[15,12,15,13],[17,7,17,9],[25,4,25,5],[31,7,31,9],[3,15,6,20],[9,1,9,10],[9,12,9,13],[10,3,10,7],[10,11,10,13]]}
[]
[]
[]
[null,null,null,null,null,null,null,null,null,null,null,null,null,null,null,"EDITAR APENAS OS ITENS EM AMARELO"]
[null,null," "]
[]
[]
[]
[]
[null,"FOLHA RESUMO  PARA FECHAMENTO DE ORÇAMENTO",null,null,null,null,null,null,null,null,null,"DATA:",{"$f":"TODAY()","v":"2026-08-05"}]
[null,"PRÓPRIO:",null,"EXECUÇÃO DE SERVIÇOS DE SINALIZAÇÃO VIÁRIA"]
[null,"MUNICÍPIO:",null,{"$f":"PLANILHA_SINTÉTICA!C11","v":"lote 02"}]
[null,"ORGÃO:",null,"DETRAN PR"]
[]
[]
[]
[null,null,null,null,null,null,"RESPONSÁVEL TÉCNICO:","Amanda Patricia de Oliveira Henning",null,null,null,"CREA / CAU:","A284127-4"]
[null,null,null,null,null,null,null,null,null,null,null,"ART / RRT N°:","16594464"]
[null,"OBSERVAÇÃO:"]
[]
[]
[]
[]
[null,null,null,null,null,"Custo total dos serviços:","R$ ",{"$f":"PLANILHA_SINTÉTICA!N52","v":3333482.59}]
[]
[null,null,null,"BDI (%)= ",{"$f":"'POR LOTE'!H3","v":0.20924562860848761},null,"R$",{"$f":"PLANILHA_SINTÉTICA!N53","v":697516.66000000015}]
[]
[null,null,null,null,null,"Valor total dos serviços com BDI :","R$",{"$f":"PLANILHA_SINTÉTICA!N54","v":4030999.25}]
[]
[]
[]
[null,null,null,null,null,"Prazo de execução :",{"$f":"IF(RESUMO!I17<5000,30,IF(RESUMO!I17<4000,60,IF(RESUMO!I17<70000,90,IF(RESUMO!I17<20000000,270))))","v":270},"DIAS CORRIDOS"]
[]
[]
[null,null,null,null,null,"Relatório MAT+MO :","MATERIAL = ",null,{"$f":"RESUMO!F20","v":0.83612938814277527}]
[]
[null,null,null,null,null,null,"MÃO-DE-OBRA = ",null,{"$f":"IF(I35=0,\"\",1-I35)","v":0.16387061185722473}]
[]
[]
[]
[null,"Referencial utilizado:",null,null,null,"SICRO (OUT/2025), DER (AGO/2025) e SCO-RIO (DEZ/2025), SIURB (OUT/2025) S. DESONERAÇÃO"]
[]
[null,"Data-base:",null,null,null,null," ",{"$f":"M10","v":"2026-08-05"}]
[null," "]
[]
[]
[]
[]
[]
[]
[]
[]
[]
[]
[null,null,"_________________________",null,null,null,null,"_______________________"]
[null,null,{"$f":"H17","v":"Amanda Patricia de Oliveira Henning"},null,null,null,null,"Salles Barbosa Perreira"]
[null,null,"Responsável Técnico",null,null,null,null,"Chefe da Divisão"]
[null,null,"Carimbo e Assinatura",null,null,null,null,"Carimbo e Assinatura"]

{"sheet":"BDI","index":5,"n_rows":41,"n_cols":9,"rows_kept":41,"cut":false,"hidden":false,"merged":[[13,2,14,7],[37,5,37,7],[38,5,38,7],[39,5,39,7],[40,5,40,7],[2,16,5,21],[2,1,2,8],[3,1,3,8],[4,1,4,8],[11,1,11,7]]}
[]
[]
[null,"DEPARTAMENTO ESTADUAL DE TRÂNSITO\nCOORDENADORIA DE ENGENHARIA E ARQUITETURA\nDIVISÃO DE SINALIZAÇÃO\n"]
[null,"COORDENADORIA DE ENGENHARIA E ARQUITETURA"]
[null,"DIVISÃO DE SINALIZAÇÃO"]
[]
[]
[null,null,"EXECUÇÃO DE SERVIÇOS DE SINALIZAÇÃO VIÁRIA:","lote 02"]
[null,null,"PRAZO DE OBRA:",{"$f":"'[2]FOLHA FECHAMENTO'!G32","v":270},"DIAS CORRIDOS"]
[null,null,"COMPOSIÇÃO DE BDI PARA SERVIÇOS DE SINALIZAÇÃO VIÁRIA DO LOTE"]
[]
[null,"CUSTO TOTAL DO SERVIÇO SEM BDI DO LOTE (R$):",null,null,null,null,null,null,{"$f":"PLANILHA_SINTÉTICA!N52","v":3333482.59}]
[]
[null,null,"MÉDIA PONDERADA FINANCEIRA (BDI´s) DO LOTE"]
[]
[]
[]
[]
[]
[]
[]
[]
[]
[]
[]
[]
[]
[]
[]
[]
[]
[]
[]
[]
[]
[]
[]
[]
[null,null,null,null,null,{"$f":"'[2]FOLHA FECHAMENTO'!H17","v":"Amanda Patricia de Oliveira Henning"}]
[null,null,null,null,null,"Responsável Técnico"]
[null,null,null,null,null,"Carimbo e Assinatura"]

{"sheet":"QUANTITATIVO","index":6,"n_rows":43,"n_cols":8,"rows_kept":43,"cut":false,"hidden":true,"merged":[[1,1,2,1],[1,2,1,7]]}
[]
[null,"PLACAS"]
[null,null,1,2,3,4,5,"TOTAL"]
[null,"R-1"]
[null,"R-2"]
[null,"R-3"]
[null,"R-4a"]
[null,"R-4b"]
[null,"R-6a"]
[null,"R-6b TÁXI INICIO"]
[null,"R-6b TÁXI FIM"]
[null,"R-6b TÁXI 01"]
[null,"R-6b 45°"]
[null,"R-6b EXCETO CAMINHÕES"]
[null,"R-19/20"]
[null,"R-19/30"]
[null,"R-19/40"]
[null,"R-20"]
[null,"R-24a"]
[null,"R-28"]
[null,"R-33"]
[null,"R-35a"]
[null,"R-35b"]
[null,"A-18-SETA-G"]
[null,"A-18-50M-G"]
[null,"A-32b"]
[null,"A-32b-TE"]
[null,"A-33a"]
[null,"A-33b-TE"]
[null,"A-45"]
[null,"SUPORTES",null,null,null,null,null,"TOTAL"]
[null,"Suporte 3m"]
[null,"Suporte 3,5m"]
[null,"Remoção Placa"]
[null,"Remoção Suporte"]
[null,"Assentamento Suporte"]
[null,"TINTAS",null,null,null,null,null,"TOTAL"]
[null,"Acrílica Branca"]
[null,"Acrílica Amarela"]
[null,"Acrílica Azul"]
[null,"DISPOSITIVOS",null,null,null,null,null,"TOTAL"]
[null,"Tachão refletivo monodirecional Branco"]
[null,"Tachão refletivo bidirecional Amarelo"]

{"sheet":"CURVA ABC","index":7,"n_rows":47,"n_cols":15,"rows_kept":47,"cut":false,"hidden":false,"merged":[[5,1,5,11],[6,1,6,11],[7,1,7,11],[3,14,8,19],[3,4,3,6]]}
[]
[]
[]
[null,null,null,null,"ANEXO X - LOTE 2",null,null,null,null,null,null,null,null,null,"CLIQUE EM \"% DO ITEM\" E ORGANIZE DO MAIOR PARA O MENOR"]
[]
[null,"CURVA ABC DE SERVIÇOS"]
[null,"DEPARTAMENTO ESTADUAL DE TRÂNSITO - DETRAN PR"]
[null,"COORDENADORIA DE ENGENHARIA E ARQUITETURA - DIVISÃO DE SINALIZAÇÃO"]
[null,"PROJETO DE SINALIZAÇÃO VIÁRIA URBANA",null,null,{"$f":"'FOLHA FECHAMENTO'!D12","v":"lote 02"},null,null,null,null,"ART/RRT Nº:",{"$f":"'FOLHA FECHAMENTO'!M18","v":"16594464"}]
[null,"TABELAS DE REFERÊNCIA: SICRO (OUT/2025), DER (AGO/2025) e SCO-RIO (DEZ/2025), SIURB (OUT/2025) S. DESONERAÇÃO",null,null,"RESPONSÁVEL TÉCNICO: ",null,{"$f":"'FOLHA FECHAMENTO'!H17","v":"Amanda Patricia de Oliveira Henning"},null,null,"REG. CREA/CAU: ",{"$f":"'FOLHA FECHAMENTO'!M17","v":"A284127-4"}]
[]
[null,"ITEM","CÓDIGO DO SERVIÇO","DESCRIÇÃO DO SERVIÇO","UNIDADE DE MEDIDA","QUANTIDADE TOTAL","CUSTO UNITÁRIO","CUSTO TOTAL","CUSTO TOTAL ACUMULADO ","% DO ITEM","% ACUMULADO","FAIXA"]
[null,"1.9",{"$f":"VLOOKUP(Tabela1[[#This Row],[ITEM]],'PLANILHA REFERENCIA DETRAN PR'!$A$6:$I$43,4,FALSE)","v":821300},{"$f":"VLOOKUP(Tabela1[[#This Row],[ITEM]],'PLANILHA REFERENCIA DETRAN PR'!$A$6:$I$43,2,FALSE)","v":"Suporte metál.galv.fogo d=2,5\" c/tampa e aletas antigiro h=3,00m"},{"$f":"VLOOKUP(B13,'PLANILHA REFERENCIA DETRAN PR'!$A$6:$I$43,6,FALSE)","v":"ud"},{"$f":"VLOOKUP(B13,PLANILHA_SINTÉTICA!$B$14:$N$52,7,FALSE)","v":1184},{"$f":"VLOOKUP(B13,'PLANILHA REFERENCIA DETRAN PR'!$A$6:$I$43,9,FALSE)","v":409.61},{"$f":"VLOOKUP(B13,PLANILHA_SINTÉTICA!$B$14:$N$52,13,FALSE)","v":484978.24},{"$f":"IFERROR(IF((ISTEXT(I12))=TRUE,H13,H13+I12),\"\")","v":484978.24},{"$f":"IF(Tabela1[[#This Row],[CUSTO TOTAL ACUMULADO ]]=Tabela1[[#Headers],[CUSTO TOTAL ACUMULADO ]],\"\",H13/SUM($H$13:$H$47))","v":0.14548695796694397},{"$f":"IFERROR(IF((ISTEXT(K12))=TRUE,J13,K12+J13),\"\")","v":0.14548695796694397},{"$f":"IFERROR(IF(Tabela1[[#This Row],[% DO ITEM]]=0,\"\",IF((K13-J13)>0.8,\"C\",IF((K13-J13)<0.5,\"A\",\"B\"))),\"\")","v":"A"}]
[null,"2.2",{"$f":"VLOOKUP(Tabela1[[#This Row],[ITEM]],'PLANILHA REFERENCIA DETRAN PR'!$A$6:$I$43,4,FALSE)","v":"COMP.11"},{"$f":"VLOOKUP(Tabela1[[#This Row],[ITEM]],'PLANILHA REFERENCIA DETRAN PR'!$A$6:$I$43,2,FALSE)","v":"Faixa de sinalização horizontal c/tinta resina acrílica base solvente"},{"$f":"VLOOKUP(B14,'PLANILHA REFERENCIA DETRAN PR'!$A$6:$I$43,6,FALSE)","v":"m²"},{"$f":"VLOOKUP(B14,PLANILHA_SINTÉTICA!$B$14:$N$52,7,FALSE)","v":13274.2},{"$f":"VLOOKUP(B14,'PLANILHA REFERENCIA DETRAN PR'!$A$6:$I$43,9,FALSE)","v":30.41},{"$f":"VLOOKUP(B14,PLANILHA_SINTÉTICA!$B$14:$N$52,13,FALSE)","v":403668.42},888646.65999999992,{"$f":"IF(Tabela1[[#This Row],[CUSTO TOTAL ACUMULADO ]]=Tabela1[[#Headers],[CUSTO TOTAL ACUMULADO ]],\"\",H14/SUM($H$13:$H$47))","v":0.12109510408780956},0.26658206205475354,{"$f":"IFERROR(IF(Tabela1[[#This Row],[% DO ITEM]]=0,\"\",IF((K14-J14)>0.8,\"C\",IF((K14-J14)<0.5,\"A\",\"B\"))),\"\")","v":"A"}]
[null,"1.21",{"$f":"VLOOKUP(Tabela1[[#This Row],[ITEM]],'PLANILHA REFERENCIA DETRAN PR'!$A$6:$I$43,4,FALSE)","v":"COMP.17"},{"$f":"VLOOKUP(Tabela1[[#This Row],[ITEM]],'PLANILHA REFERENCIA DETRAN PR'!$A$6:$I$43,2,FALSE)","v":"Placa sinalização ativa inteligente com iluminação interna, duplo módulo de iluminação de faixa, detecção automática de pedestres e alimentação híbrida (fotovoltaica e rede elétrica - A = 0,84m²"},{"$f":"VLOOKUP(B15,'PLANILHA REFERENCIA DETRAN PR'!$A$6:$I$43,6,FALSE)","v":"Unid."},{"$f":"VLOOKUP(B15,PLANILHA_SINTÉTICA!$B$14:$N$52,7,FALSE)","v":17},{"$f":"VLOOKUP(B15,'PLANILHA REFERENCIA DETRAN PR'!$A$6:$I$43,9,FALSE)","v":23343.1},{"$f":"VLOOKUP(B15,PLANILHA_SINTÉTICA!$B$14:$N$52,13,FALSE)","v":396832.7},1285479.3599999999,{"$f":"IF(Tabela1[[#This Row],[CUSTO TOTAL ACUMULADO ]]=Tabela1[[#Headers],[CUSTO TOTAL ACUMULADO ]],\"\",H15/SUM($H$13:$H$47))","v":0.11904447990245685},0.38562654195721041,{"$f":"IFERROR(IF(Tabela1[[#This Row],[% DO ITEM]]=0,\"\",IF((K15-J15)>0.8,\"C\",IF((K15-J15)<0.5,\"A\",\"B\"))),\"\")","v":"A"}]
[null,"2.4",{"$f":"VLOOKUP(Tabela1[[#This Row],[ITEM]],'PLANILHA REFERENCIA DETRAN PR'!$A$6:$I$43,4,FALSE)","v":"COMP.13"},{"$f":"VLOOKUP(Tabela1[[#This Row],[ITEM]],'PLANILHA REFERENCIA DETRAN PR'!$A$6:$I$43,2,FALSE)","v":"Pintura de setas e zebrados - termoplástico por extrusão - e=3mm"},{"$f":"VLOOKUP(B16,'PLANILHA REFERENCIA DETRAN PR'!$A$6:$I$43,6,FALSE)","v":"m²"},{"$f":"VLOOKUP(B16,PLANILHA_SINTÉTICA!$B$14:$N$52,7,FALSE)","v":6530.9600000000009},{"$f":"VLOOKUP(B16,'PLANILHA REFERENCIA DETRAN PR'!$A$6:$I$43,9,FALSE)","v":56.89},{"$f":"VLOOKUP(B16,PLANILHA_SINTÉTICA!$B$14:$N$52,13,FALSE)","v":371546.31},1657025.67,{"$f":"IF(Tabela1[[#This Row],[CUSTO TOTAL ACUMULADO ]]=Tabela1[[#Headers],[CUSTO TOTAL ACUMULADO ]],\"\",H16/SUM($H$13:$H$47))","v":0.11145890253909771},0.49708544449630809,{"$f":"IFERROR(IF(Tabela1[[#This Row],[% DO ITEM]]=0,\"\",IF((K16-J16)>0.8,\"C\",IF((K16-J16)<0.5,\"A\",\"B\"))),\"\")","v":"A"}]
[null,"1.14",{"$f":"VLOOKUP(Tabela1[[#This Row],[ITEM]],'PLANILHA REFERENCIA DETRAN PR'!$A$6:$I$43,4,FALSE)","v":"COMP.04"},{"$f":"VLOOKUP(Tabela1[[#This Row],[ITEM]],'PLANILHA REFERENCIA DETRAN PR'!$A$6:$I$43,2,FALSE)","v":"Conjunto para placa indicativa (Coluna, Braço, Montagem, Fundação) para placas até 4,50m² - Coluna Tipo II com projeção de 6,00m"},{"$f":"VLOOKUP(B17,'PLANILHA REFERENCIA DETRAN PR'!$A$6:$I$43,6,FALSE)","v":"unid"},{"$f":"VLOOKUP(B17,PLANILHA_SINTÉTICA!$B$14:$N$52,7,FALSE)","v":12},{"$f":"VLOOKUP(B17,'PLANILHA REFERENCIA DETRAN PR'!$A$6:$I$43,9,FALSE)","v":18439.760000000002},{"$f":"VLOOKUP(B17,PLANILHA_SINTÉTICA!$B$14:$N$52,13,FALSE)","v":221277.12},1878302.79,{"$f":"IF(Tabela1[[#This Row],[CUSTO TOTAL ACUMULADO ]]=Tabela1[[#Headers],[CUSTO TOTAL ACUMULADO ]],\"\",H17/SUM($H$13:$H$47))","v":6.638016389454178E-2},0.56346560839084991,{"$f":"IFERROR(IF(Tabela1[[#This Row],[% DO ITEM]]=0,\"\",IF((K17-J17)>0.8,\"C\",IF((K17-J17)<0.5,\"A\",\"B\"))),\"\")","v":"A"}]
[null,"2.1",{"$f":"VLOOKUP(Tabela1[[#This Row],[ITEM]],'PLANILHA REFERENCIA DETRAN PR'!$A$6:$I$43,4,FALSE)","v":"COMP.10"},{"$f":"VLOOKUP(Tabela1[[#This Row],[ITEM]],'PLANILHA REFERENCIA DETRAN PR'!$A$6:$I$43,2,FALSE)","v":"Faixa de sinalização horizontal c/tinta resina acrílica base água com limpeza do pavimento com jato d'água"},{"$f":"VLOOKUP(B18,'PLANILHA REFERENCIA DETRAN PR'!$A$6:$I$43,6,FALSE)","v":"m²"},{"$f":"VLOOKUP(B18,PLANILHA_SINTÉTICA!$B$14:$N$52,7,FALSE)","v":8480.81},{"$f":"VLOOKUP(B18,'PLANILHA REFERENCIA DETRAN PR'!$A$6:$I$43,9,FALSE)","v":24.73},{"$f":"VLOOKUP(B18,PLANILHA_SINTÉTICA!$B$14:$N$52,13,FALSE)","v":209730.43},2088033.22,{"$f":"IF(Tabela1[[#This Row],[CUSTO TOTAL ACUMULADO ]]=Tabela1[[#Headers],[CUSTO TOTAL ACUMULADO ]],\"\",H18/SUM($H$13:$H$47))","v":6.2916311985047171E-2},0.62638192037589713,{"$f":"IFERROR(IF(Tabela1[[#This Row],[% DO ITEM]]=0,\"\",IF((K18-J18)>0.8,\"C\",IF((K18-J18)<0.5,\"A\",\"B\"))),\"\")","v":"B"}]
[null,"2.6",{"$f":"VLOOKUP(Tabela1[[#This Row],[ITEM]],'PLANILHA REFERENCIA DETRAN PR'!$A$6:$I$43,4,FALSE)","v":"COMP.16"},{"$f":"VLOOKUP(Tabela1[[#This Row],[ITEM]],'PLANILHA REFERENCIA DETRAN PR'!$A$6:$I$43,2,FALSE)","v":"Pintura de faixa - plástico a frio tricomponente à base de resinas metacrílicas - espessura de 0,6 mm - aspersão"},{"$f":"VLOOKUP(B19,'PLANILHA REFERENCIA DETRAN PR'!$A$6:$I$43,6,FALSE)","v":"m²"},{"$f":"VLOOKUP(B19,PLANILHA_SINTÉTICA!$B$14:$N$52,7,FALSE)","v":2699.56},{"$f":"VLOOKUP(B19,'PLANILHA REFERENCIA DETRAN PR'!$A$6:$I$43,9,FALSE)","v":71.449999999999989},{"$f":"VLOOKUP(B19,PLANILHA_SINTÉTICA!$B$14:$N$52,13,FALSE)","v":192883.56},2280916.7799999998,{"$f":"IF(Tabela1[[#This Row],[CUSTO TOTAL ACUMULADO ]]=Tabela1[[#Headers],[CUSTO TOTAL ACUMULADO ]],\"\",H19/SUM($H$13:$H$47))","v":5.7862477265442913E-2},0.68424439764134004,{"$f":"IFERROR(IF(Tabela1[[#This Row],[% DO ITEM]]=0,\"\",IF((K19-J19)>0.8,\"C\",IF((K19-J19)<0.5,\"A\",\"B\"))),\"\")","v":"B"}]
[null,"2.3",{"$f":"VLOOKUP(Tabela1[[#This Row],[ITEM]],'PLANILHA REFERENCIA DETRAN PR'!$A$6:$I$43,4,FALSE)","v":"COMP.12"},{"$f":"VLOOKUP(Tabela1[[#This Row],[ITEM]],'PLANILHA REFERENCIA DETRAN PR'!$A$6:$I$43,2,FALSE)","v":"Faixa de sinalização horizontal - termoplástico por aspersão - e=1,5mm"},{"$f":"VLOOKUP(B20,'PLANILHA REFERENCIA DETRAN PR'!$A$6:$I$43,6,FALSE)","v":"m²"},{"$f":"VLOOKUP(B20,PLANILHA_SINTÉTICA!$B$14:$N$52,7,FALSE)","v":3705.57},{"$f":"VLOOKUP(B20,'PLANILHA REFERENCIA DETRAN PR'!$A$6:$I$43,9,FALSE)","v":42.58},{"$f":"VLOOKUP(B20,PLANILHA_SINTÉTICA!$B$14:$N$52,13,FALSE)","v":157783.17000000001},2438699.9499999997,{"$f":"IF(Tabela1[[#This Row],[CUSTO TOTAL ACUMULADO ]]=Tabela1[[#Headers],[CUSTO TOTAL ACUMULADO ]],\"\",H20/SUM($H$13:$H$47))","v":4.7332831719792579E-2},0.73157722936113267,{"$f":"IFERROR(IF(Tabela1[[#This Row],[% DO ITEM]]=0,\"\",IF((K20-J20)>0.8,\"C\",IF((K20-J20)<0.5,\"A\",\"B\"))),\"\")","v":"B"}]
[null,"1.10",{"$f":"VLOOKUP(Tabela1[[#This Row],[ITEM]],'PLANILHA REFERENCIA DETRAN PR'!$A$6:$I$43,4,FALSE)","v":821350},{"$f":"VLOOKUP(Tabela1[[#This Row],[ITEM]],'PLANILHA REFERENCIA DETRAN PR'!$A$6:$I$43,2,FALSE)","v":"Suporte metál.galv.fogo d=2,5\" c/tampa e aletas antigiro h=3,50m"},{"$f":"VLOOKUP(B21,'PLANILHA REFERENCIA DETRAN PR'!$A$6:$I$43,6,FALSE)","v":"ud"},{"$f":"VLOOKUP(B21,PLANILHA_SINTÉTICA!$B$14:$N$52,7,FALSE)","v":298},{"$f":"VLOOKUP(B21,'PLANILHA REFERENCIA DETRAN PR'!$A$6:$I$43,9,FALSE)","v":465.61},{"$f":"VLOOKUP(B21,PLANILHA_SINTÉTICA!$B$14:$N$52,13,FALSE)","v":138751.78},2577451.7299999995,{"$f":"IF(Tabela1[[#This Row],[CUSTO TOTAL ACUMULADO ]]=Tabela1[[#Headers],[CUSTO TOTAL ACUMULADO ]],\"\",H21/SUM($H$13:$H$47))","v":4.1623670341784116E-2},0.77320089970291683,{"$f":"IFERROR(IF(Tabela1[[#This Row],[% DO ITEM]]=0,\"\",IF((K21-J21)>0.8,\"C\",IF((K21-J21)<0.5,\"A\",\"B\"))),\"\")","v":"B"}]
[null,"1.13",{"$f":"VLOOKUP(Tabela1[[#This Row],[ITEM]],'PLANILHA REFERENCIA DETRAN PR'!$A$6:$I$43,4,FALSE)","v":"COMP.03"},{"$f":"VLOOKUP(Tabela1[[#This Row],[ITEM]],'PLANILHA REFERENCIA DETRAN PR'!$A$6:$I$43,2,FALSE)","v":"Conjunto para placa indicativa (Coluna, Braço, Montagem, Fundação) para placas até 3,00m² - Coluna Tipo I com projeção de 3,70m"},{"$f":"VLOOKUP(B22,'PLANILHA REFERENCIA DETRAN PR'!$A$6:$I$43,6,FALSE)","v":"unid"},{"$f":"VLOOKUP(B22,PLANILHA_SINTÉTICA!$B$14:$N$52,7,FALSE)","v":9},{"$f":"VLOOKUP(B22,'PLANILHA REFERENCIA DETRAN PR'!$A$6:$I$43,9,FALSE)","v":12814.630000000001},{"$f":"VLOOKUP(B22,PLANILHA_SINTÉTICA!$B$14:$N$52,13,FALSE)","v":115331.67},2692783.3999999994,{"$f":"IF(Tabela1[[#This Row],[CUSTO TOTAL ACUMULADO ]]=Tabela1[[#Headers],[CUSTO TOTAL ACUMULADO ]],\"\",H22/SUM($H$13:$H$47))","v":3.459795191130112E-2},0.80779885161421794,{"$f":"IFERROR(IF(Tabela1[[#This Row],[% DO ITEM]]=0,\"\",IF((K22-J22)>0.8,\"C\",IF((K22-J22)<0.5,\"A\",\"B\"))),\"\")","v":"B"}]
[null,"1.6",{"$f":"VLOOKUP(Tabela1[[#This Row],[ITEM]],'PLANILHA REFERENCIA DETRAN PR'!$A$6:$I$43,4,FALSE)","v":820000},{"$f":"VLOOKUP(Tabela1[[#This Row],[ITEM]],'PLANILHA REFERENCIA DETRAN PR'!$A$6:$I$43,2,FALSE)","v":"Placa sinalização em chapa de aço nº18 galvanizada c/ película refletiva Tipo I A (prismática) - Utilizar apenas para placas não listadas no orçamento"},{"$f":"VLOOKUP(B23,'PLANILHA REFERENCIA DETRAN PR'!$A$6:$I$43,6,FALSE)","v":"m2"},{"$f":"VLOOKUP(B23,PLANILHA_SINTÉTICA!$B$14:$N$52,7,FALSE)","v":173.47},{"$f":"VLOOKUP(B23,'PLANILHA REFERENCIA DETRAN PR'!$A$6:$I$43,9,FALSE)","v":537.82000000000005},{"$f":"VLOOKUP(B23,PLANILHA_SINTÉTICA!$B$14:$N$52,13,FALSE)","v":93295.64},2786079.0399999996,{"$f":"IF(Tabela1[[#This Row],[CUSTO TOTAL ACUMULADO ]]=Tabela1[[#Headers],[CUSTO TOTAL ACUMULADO ]],\"\",H23/SUM($H$13:$H$47))","v":2.798743889041112E-2},0.83578629050462905,{"$f":"IFERROR(IF(Tabela1[[#This Row],[% DO ITEM]]=0,\"\",IF((K23-J23)>0.8,\"C\",IF((K23-J23)<0.5,\"A\",\"B\"))),\"\")","v":"C"}]
[null,"1.5",{"$f":"VLOOKUP(Tabela1[[#This Row],[ITEM]],'PLANILHA REFERENCIA DETRAN PR'!$A$6:$I$43,4,FALSE)","v":"COMP.09"},{"$f":"VLOOKUP(Tabela1[[#This Row],[ITEM]],'PLANILHA REFERENCIA DETRAN PR'!$A$6:$I$43,2,FALSE)","v":"Placa tipo retangular - L = 0,50m x h= 1,00 m. Com película refletiva tipo I A (prismática)"},{"$f":"VLOOKUP(B24,'PLANILHA REFERENCIA DETRAN PR'!$A$6:$I$43,6,FALSE)","v":"m²"},{"$f":"VLOOKUP(B24,PLANILHA_SINTÉTICA!$B$14:$N$52,7,FALSE)","v":318},{"$f":"VLOOKUP(B24,'PLANILHA REFERENCIA DETRAN PR'!$A$6:$I$43,9,FALSE)","v":268.90999999999997},{"$f":"VLOOKUP(B24,PLANILHA_SINTÉTICA!$B$14:$N$52,13,FALSE)","v":85516.56},2871595.5999999996,{"$f":"IF(Tabela1[[#This Row],[CUSTO TOTAL ACUMULADO ]]=Tabela1[[#Headers],[CUSTO TOTAL ACUMULADO ]],\"\",H24/SUM($H$13:$H$47))","v":2.5653819375891264E-2},0.86144010988052033,{"$f":"IFERROR(IF(Tabela1[[#This Row],[% DO ITEM]]=0,\"\",IF((K24-J24)>0.8,\"C\",IF((K24-J24)<0.5,\"A\",\"B\"))),\"\")","v":"C"}]
[null,"1.12",{"$f":"VLOOKUP(Tabela1[[#This Row],[ITEM]],'PLANILHA REFERENCIA DETRAN PR'!$A$6:$I$43,4,FALSE)","v":"COMP.02"},{"$f":"VLOOKUP(Tabela1[[#This Row],[ITEM]],'PLANILHA REFERENCIA DETRAN PR'!$A$6:$I$43,2,FALSE)","v":"Conjunto para placa indicativa (Coluna, Braço, Montagem, Fundação) para placas até 3,00m² - Coluna Tipo I com projeção de 2,80m"},{"$f":"VLOOKUP(B25,'PLANILHA REFERENCIA DETRAN PR'!$A$6:$I$43,6,FALSE)","v":"unid"},{"$f":"VLOOKUP(B25,PLANILHA_SINTÉTICA!$B$14:$N$52,7,FALSE)","v":6},{"$f":"VLOOKUP(B25,'PLANILHA REFERENCIA DETRAN PR'!$A$6:$I$43,9,FALSE)","v":12422.95},{"$f":"VLOOKUP(B25,PLANILHA_SINTÉTICA!$B$14:$N$52,13,FALSE)","v":74537.7},2946133.3,{"$f":"IF(Tabela1[[#This Row],[CUSTO TOTAL ACUMULADO ]]=Tabela1[[#Headers],[CUSTO TOTAL ACUMULADO ]],\"\",H25/SUM($H$13:$H$47))","v":2.2360308839532016E-2},0.88380041872005233,{"$f":"IFERROR(IF(Tabela1[[#This Row],[% DO ITEM]]=0,\"\",IF((K25-J25)>0.8,\"C\",IF((K25-J25)<0.5,\"A\",\"B\"))),\"\")","v":"C"}]
[null,"1.3",{"$f":"VLOOKUP(Tabela1[[#This Row],[ITEM]],'PLANILHA REFERENCIA DETRAN PR'!$A$6:$I$43,4,FALSE)","v":"COMP.07"},{"$f":"VLOOKUP(Tabela1[[#This Row],[ITEM]],'PLANILHA REFERENCIA DETRAN PR'!$A$6:$I$43,2,FALSE)","v":"Placa tipo circular - D = 0,50m. Com película refletiva tipo I A (prismática) - Área: 0,21m²"},{"$f":"VLOOKUP(B26,'PLANILHA REFERENCIA DETRAN PR'!$A$6:$I$43,6,FALSE)","v":"m²"},{"$f":"VLOOKUP(B26,PLANILHA_SINTÉTICA!$B$14:$N$52,7,FALSE)","v":497},{"$f":"VLOOKUP(B26,'PLANILHA REFERENCIA DETRAN PR'!$A$6:$I$43,9,FALSE)","v":112.94},{"$f":"VLOOKUP(B26,PLANILHA_SINTÉTICA!$B$14:$N$52,13,FALSE)","v":56131.18},3002264.48,{"$f":"IF(Tabela1[[#This Row],[CUSTO TOTAL ACUMULADO ]]=Tabela1[[#Headers],[CUSTO TOTAL ACUMULADO ]],\"\",H26/SUM($H$13:$H$47))","v":1.6838600068520532E-2},0.90063901878857289,{"$f":"IFERROR(IF(Tabela1[[#This Row],[% DO ITEM]]=0,\"\",IF((K26-J26)>0.8,\"C\",IF((K26-J26)<0.5,\"A\",\"B\"))),\"\")","v":"C"}]
[null,"1.1",{"$f":"VLOOKUP(Tabela1[[#This Row],[ITEM]],'PLANILHA REFERENCIA DETRAN PR'!$A$6:$I$43,4,FALSE)","v":"COMP.05"},{"$f":"VLOOKUP(Tabela1[[#This Row],[ITEM]],'PLANILHA REFERENCIA DETRAN PR'!$A$6:$I$43,2,FALSE)","v":"Placa tipo R-1 - L = 0,25m. Com película refletiva tipo I A (prismática) - Área: 0,32 m²"},{"$f":"VLOOKUP(B27,'PLANILHA REFERENCIA DETRAN PR'!$A$6:$I$43,6,FALSE)","v":"m²"},{"$f":"VLOOKUP(B27,PLANILHA_SINTÉTICA!$B$14:$N$52,7,FALSE)","v":316},{"$f":"VLOOKUP(B27,'PLANILHA REFERENCIA DETRAN PR'!$A$6:$I$43,9,FALSE)","v":172.1},{"$f":"VLOOKUP(B27,PLANILHA_SINTÉTICA!$B$14:$N$52,13,FALSE)","v":54383.6},3056648.08,{"$f":"IF(Tabela1[[#This Row],[CUSTO TOTAL ACUMULADO ]]=Tabela1[[#Headers],[CUSTO TOTAL ACUMULADO ]],\"\",H27/SUM($H$13:$H$47))","v":1.6314349541313635E-2},0.9169533683298865,{"$f":"IFERROR(IF(Tabela1[[#This Row],[% DO ITEM]]=0,\"\",IF((K27-J27)>0.8,\"C\",IF((K27-J27)<0.5,\"A\",\"B\"))),\"\")","v":"C"}]
[null,"1.24",{"$f":"VLOOKUP(Tabela1[[#This Row],[ITEM]],'PLANILHA REFERENCIA DETRAN PR'!$A$6:$I$43,4,FALSE)","v":"COMP.20"},{"$f":"VLOOKUP(Tabela1[[#This Row],[ITEM]],'PLANILHA REFERENCIA DETRAN PR'!$A$6:$I$43,2,FALSE)","v":"Placa sinalização piscante mono ativa, em chapa de aço nº 18 galvanizada c/ película refletiva Tipo A (prismática) - A = 0,84m²"},{"$f":"VLOOKUP(B28,'PLANILHA REFERENCIA DETRAN PR'!$A$6:$I$43,6,FALSE)","v":"Unid."},{"$f":"VLOOKUP(B28,PLANILHA_SINTÉTICA!$B$14:$N$52,7,FALSE)","v":17},{"$f":"VLOOKUP(B28,'PLANILHA REFERENCIA DETRAN PR'!$A$6:$I$43,9,FALSE)","v":3134.76},{"$f":"VLOOKUP(B28,PLANILHA_SINTÉTICA!$B$14:$N$52,13,FALSE)","v":53290.92},3109939,{"$f":"IF(Tabela1[[#This Row],[CUSTO TOTAL ACUMULADO ]]=Tabela1[[#Headers],[CUSTO TOTAL ACUMULADO ]],\"\",H28/SUM($H$13:$H$47))","v":1.5986560217752809E-2},0.9329399285476393,{"$f":"IFERROR(IF(Tabela1[[#This Row],[% DO ITEM]]=0,\"\",IF((K28-J28)>0.8,\"C\",IF((K28-J28)<0.5,\"A\",\"B\"))),\"\")","v":"C"}]
[null,"1.4",{"$f":"VLOOKUP(Tabela1[[#This Row],[ITEM]],'PLANILHA REFERENCIA DETRAN PR'!$A$6:$I$43,4,FALSE)","v":"COMP.08"},{"$f":"VLOOKUP(Tabela1[[#This Row],[ITEM]],'PLANILHA REFERENCIA DETRAN PR'!$A$6:$I$43,2,FALSE)","v":"Placa tipo de advertência - L = 0,50m. Com película refletiva tipo I A (prismática) - Área: 0,27 m²"},{"$f":"VLOOKUP(B29,'PLANILHA REFERENCIA DETRAN PR'!$A$6:$I$43,6,FALSE)","v":"m²"},{"$f":"VLOOKUP(B29,PLANILHA_SINTÉTICA!$B$14:$N$52,7,FALSE)","v":210},{"$f":"VLOOKUP(B29,'PLANILHA REFERENCIA DETRAN PR'!$A$6:$I$43,9,FALSE)","v":145.21},{"$f":"VLOOKUP(B29,PLANILHA_SINTÉTICA!$B$14:$N$52,13,FALSE)","v":30494.1},3140433.1,{"$f":"IF(Tabela1[[#This Row],[CUSTO TOTAL ACUMULADO ]]=Tabela1[[#Headers],[CUSTO TOTAL ACUMULADO ]],\"\",H29/SUM($H$13:$H$47))","v":9.1478204154887156E-3},0.94208774896312797,{"$f":"IFERROR(IF(Tabela1[[#This Row],[% DO ITEM]]=0,\"\",IF((K29-J29)>0.8,\"C\",IF((K29-J29)<0.5,\"A\",\"B\"))),\"\")","v":"C"}]
[null,"2.9",{"$f":"VLOOKUP(Tabela1[[#This Row],[ITEM]],'PLANILHA REFERENCIA DETRAN PR'!$A$6:$I$43,4,FALSE)","v":872000},{"$f":"VLOOKUP(Tabela1[[#This Row],[ITEM]],'PLANILHA REFERENCIA DETRAN PR'!$A$6:$I$43,2,FALSE)","v":"Tachão refletivo monodirecional"},{"$f":"VLOOKUP(B30,'PLANILHA REFERENCIA DETRAN PR'!$A$6:$I$43,6,FALSE)","v":"ud"},{"$f":"VLOOKUP(B30,PLANILHA_SINTÉTICA!$B$14:$N$52,7,FALSE)","v":712},{"$f":"VLOOKUP(B30,'PLANILHA REFERENCIA DETRAN PR'!$A$6:$I$43,9,FALSE)","v":38.28},{"$f":"VLOOKUP(B30,PLANILHA_SINTÉTICA!$B$14:$N$52,13,FALSE)","v":27255.360000000001},3167688.46,{"$f":"IF(Tabela1[[#This Row],[CUSTO TOTAL ACUMULADO ]]=Tabela1[[#Headers],[CUSTO TOTAL ACUMULADO ]],\"\",H30/SUM($H$13:$H$47))","v":8.17624191694441E-3},0.95026399088007241,{"$f":"IFERROR(IF(Tabela1[[#This Row],[% DO ITEM]]=0,\"\",IF((K30-J30)>0.8,\"C\",IF((K30-J30)<0.5,\"A\",\"B\"))),\"\")","v":"C"}]
[null,"1.11",{"$f":"VLOOKUP(Tabela1[[#This Row],[ITEM]],'PLANILHA REFERENCIA DETRAN PR'!$A$6:$I$43,4,FALSE)","v":821400},{"$f":"VLOOKUP(Tabela1[[#This Row],[ITEM]],'PLANILHA REFERENCIA DETRAN PR'!$A$6:$I$43,2,FALSE)","v":"Suporte metál.galv.fogo d=2,5\" c/tampa e aletas anti-giro h=4,00m"},{"$f":"VLOOKUP(B31,'PLANILHA REFERENCIA DETRAN PR'!$A$6:$I$43,6,FALSE)","v":"ud"},{"$f":"VLOOKUP(B31,PLANILHA_SINTÉTICA!$B$14:$N$52,7,FALSE)","v":52},{"$f":"VLOOKUP(B31,'PLANILHA REFERENCIA DETRAN PR'!$A$6:$I$43,9,FALSE)","v":520.75},{"$f":"VLOOKUP(B31,PLANILHA_SINTÉTICA!$B$14:$N$52,13,FALSE)","v":27079},3194767.46,{"$f":"IF(Tabela1[[#This Row],[CUSTO TOTAL ACUMULADO ]]=Tabela1[[#Headers],[CUSTO TOTAL ACUMULADO ]],\"\",H31/SUM($H$13:$H$47))","v":8.1233362857411427E-3},0.95838732716581354,{"$f":"IFERROR(IF(Tabela1[[#This Row],[% DO ITEM]]=0,\"\",IF((K31-J31)>0.8,\"C\",IF((K31-J31)<0.5,\"A\",\"B\"))),\"\")","v":"C"}]
[null,"1.22",{"$f":"VLOOKUP(Tabela1[[#This Row],[ITEM]],'PLANILHA REFERENCIA DETRAN PR'!$A$6:$I$43,4,FALSE)","v":"COMP.18"},{"$f":"VLOOKUP(Tabela1[[#This Row],[ITEM]],'PLANILHA REFERENCIA DETRAN PR'!$A$6:$I$43,2,FALSE)","v":"Placa sinalização piscante dupla ativa, alimentação fotovoltaica, em chapa de aço nº 18 galvanizada c/ película refletiva Tipo A (prismática) - A = 2m²"},{"$f":"VLOOKUP(B32,'PLANILHA REFERENCIA DETRAN PR'!$A$6:$I$43,6,FALSE)","v":"Unid."},{"$f":"VLOOKUP(B32,PLANILHA_SINTÉTICA!$B$14:$N$52,7,FALSE)","v":2},{"$f":"VLOOKUP(B32,'PLANILHA REFERENCIA DETRAN PR'!$A$6:$I$43,9,FALSE)","v":13055.81},{"$f":"VLOOKUP(B32,PLANILHA_SINTÉTICA!$B$14:$N$52,13,FALSE)","v":26111.62},3220879.08,{"$f":"IF(Tabela1[[#This Row],[CUSTO TOTAL ACUMULADO ]]=Tabela1[[#Headers],[CUSTO TOTAL ACUMULADO ]],\"\",H32/SUM($H$13:$H$47))","v":7.8331352792010093E-3},0.96622046244501458,{"$f":"IFERROR(IF(Tabela1[[#This Row],[% DO ITEM]]=0,\"\",IF((K32-J32)>0.8,\"C\",IF((K32-J32)<0.5,\"A\",\"B\"))),\"\")","v":"C"}]
[null,"1.16",{"$f":"VLOOKUP(Tabela1[[#This Row],[ITEM]],'PLANILHA REFERENCIA DETRAN PR'!$A$6:$I$43,4,FALSE)","v":"ST 64.15.0200 (A)"},{"$f":"VLOOKUP(Tabela1[[#This Row],[ITEM]],'PLANILHA REFERENCIA DETRAN PR'!$A$6:$I$43,2,FALSE)","v":"Retirada de poste simples de aço, diâmetro de 2\" (desonerado)"},{"$f":"VLOOKUP(B33,'PLANILHA REFERENCIA DETRAN PR'!$A$6:$I$43,6,FALSE)","v":"un"},{"$f":"VLOOKUP(B33,PLANILHA_SINTÉTICA!$B$14:$N$52,7,FALSE)","v":457},{"$f":"VLOOKUP(B33,'PLANILHA REFERENCIA DETRAN PR'!$A$6:$I$43,9,FALSE)","v":53.26},{"$f":"VLOOKUP(B33,PLANILHA_SINTÉTICA!$B$14:$N$52,13,FALSE)","v":24339.82},3245218.9,{"$f":"IF(Tabela1[[#This Row],[CUSTO TOTAL ACUMULADO ]]=Tabela1[[#Headers],[CUSTO TOTAL ACUMULADO ]],\"\",H33/SUM($H$13:$H$47))","v":7.3016190773074327E-3},0.973522081522322,{"$f":"IFERROR(IF(Tabela1[[#This Row],[% DO ITEM]]=0,\"\",IF((K33-J33)>0.8,\"C\",IF((K33-J33)<0.5,\"A\",\"B\"))),\"\")","v":"C"}]
[null,"1.7",{"$f":"VLOOKUP(Tabela1[[#This Row],[ITEM]],'PLANILHA REFERENCIA DETRAN PR'!$A$6:$I$43,4,FALSE)","v":"5213351-ed"},{"$f":"VLOOKUP(Tabela1[[#This Row],[ITEM]],'PLANILHA REFERENCIA DETRAN PR'!$A$6:$I$43,2,FALSE)","v":"Suporte polimérico ecológico maciço colapsível D = 6,5 cm para placa de sinalização - fornecimento e implantação - 3,00 m"},{"$f":"VLOOKUP(B34,'PLANILHA REFERENCIA DETRAN PR'!$A$6:$I$43,6,FALSE)","v":"un"},{"$f":"VLOOKUP(B34,PLANILHA_SINTÉTICA!$B$14:$N$52,7,FALSE)","v":28},{"$f":"VLOOKUP(B34,'PLANILHA REFERENCIA DETRAN PR'!$A$6:$I$43,9,FALSE)","v":810.79},{"$f":"VLOOKUP(B34,PLANILHA_SINTÉTICA!$B$14:$N$52,13,FALSE)","v":22702.12},3267921.02,{"$f":"IF(Tabela1[[#This Row],[CUSTO TOTAL ACUMULADO ]]=Tabela1[[#Headers],[CUSTO TOTAL ACUMULADO ]],\"\",H34/SUM($H$13:$H$47))","v":6.8103310742364817E-3},0.98033241259655846,{"$f":"IFERROR(IF(Tabela1[[#This Row],[% DO ITEM]]=0,\"\",IF((K34-J34)>0.8,\"C\",IF((K34-J34)<0.5,\"A\",\"B\"))),\"\")","v":"C"}]
[null,"1.8",{"$f":"VLOOKUP(Tabela1[[#This Row],[ITEM]],'PLANILHA REFERENCIA DETRAN PR'!$A$6:$I$43,4,FALSE)","v":5213351},{"$f":"VLOOKUP(Tabela1[[#This Row],[ITEM]],'PLANILHA REFERENCIA DETRAN PR'!$A$6:$I$43,2,FALSE)","v":"Suporte polimérico ecológico maciço colapsível D = 6,5 cm para placa de sinalização - fornecimento e implantação - 3,60 m"},{"$f":"VLOOKUP(B35,'PLANILHA REFERENCIA DETRAN PR'!$A$6:$I$43,6,FALSE)","v":"un"},{"$f":"VLOOKUP(B35,PLANILHA_SINTÉTICA!$B$14:$N$52,7,FALSE)","v":28},{"$f":"VLOOKUP(B35,'PLANILHA REFERENCIA DETRAN PR'!$A$6:$I$43,9,FALSE)","v":675.66},{"$f":"VLOOKUP(B35,PLANILHA_SINTÉTICA!$B$14:$N$52,13,FALSE)","v":18918.48},3286839.5,{"$f":"IF(Tabela1[[#This Row],[CUSTO TOTAL ACUMULADO ]]=Tabela1[[#Headers],[CUSTO TOTAL ACUMULADO ]],\"\",H35/SUM($H$13:$H$47))","v":5.6752898945702599E-3},0.98600770249112868,{"$f":"IFERROR(IF(Tabela1[[#This Row],[% DO ITEM]]=0,\"\",IF((K35-J35)>0.8,\"C\",IF((K35-J35)<0.5,\"A\",\"B\"))),\"\")","v":"C"}]
[null,"1.2",{"$f":"VLOOKUP(Tabela1[[#This Row],[ITEM]],'PLANILHA REFERENCIA DETRAN PR'!$A$6:$I$43,4,FALSE)","v":"COMP.06"},{"$f":"VLOOKUP(Tabela1[[#This Row],[ITEM]],'PLANILHA REFERENCIA DETRAN PR'!$A$6:$I$43,2,FALSE)","v":"Placa tipo R-2 - L = 0,75m. Com película refletiva tipo I A (prismática) - Área: 0,24m²"},{"$f":"VLOOKUP(B36,'PLANILHA REFERENCIA DETRAN PR'!$A$6:$I$43,6,FALSE)","v":"m²"},{"$f":"VLOOKUP(B36,PLANILHA_SINTÉTICA!$B$14:$N$52,7,FALSE)","v":145},{"$f":"VLOOKUP(B36,'PLANILHA REFERENCIA DETRAN PR'!$A$6:$I$43,9,FALSE)","v":129.08000000000001},{"$f":"VLOOKUP(B36,PLANILHA_SINTÉTICA!$B$14:$N$52,13,FALSE)","v":18716.599999999999},3305556.1,{"$f":"IF(Tabela1[[#This Row],[CUSTO TOTAL ACUMULADO ]]=Tabela1[[#Headers],[CUSTO TOTAL ACUMULADO ]],\"\",H36/SUM($H$13:$H$47))","v":5.6147286061413882E-3},0.99162243109727011,{"$f":"IFERROR(IF(Tabela1[[#This Row],[% DO ITEM]]=0,\"\",IF((K36-J36)>0.8,\"C\",IF((K36-J36)<0.5,\"A\",\"B\"))),\"\")","v":"C"}]
[null,"2.11",{"$f":"VLOOKUP(Tabela1[[#This Row],[ITEM]],'PLANILHA REFERENCIA DETRAN PR'!$A$6:$I$43,4,FALSE)","v":"09.04.00"},{"$f":"VLOOKUP(Tabela1[[#This Row],[ITEM]],'PLANILHA REFERENCIA DETRAN PR'!$A$6:$I$43,2,FALSE)","v":"Fresagem de pavimento asfáltico com espessura de até 5cm, em vias arteriais, inclusive remoção do material fresado até 10km e varrição"},{"$f":"VLOOKUP(B37,'PLANILHA REFERENCIA DETRAN PR'!$A$6:$I$43,6,FALSE)","v":"M2"},{"$f":"VLOOKUP(B37,PLANILHA_SINTÉTICA!$B$14:$N$52,7,FALSE)","v":376.81},{"$f":"VLOOKUP(B37,'PLANILHA REFERENCIA DETRAN PR'!$A$6:$I$43,9,FALSE)","v":20.040000000000003},{"$f":"VLOOKUP(B37,PLANILHA_SINTÉTICA!$B$14:$N$52,13,FALSE)","v":7551.27},3313107.37,{"$f":"IF(Tabela1[[#This Row],[CUSTO TOTAL ACUMULADO ]]=Tabela1[[#Headers],[CUSTO TOTAL ACUMULADO ]],\"\",H37/SUM($H$13:$H$47))","v":2.2652795743723373E-3},0.9938877106716425,{"$f":"IFERROR(IF(Tabela1[[#This Row],[% DO ITEM]]=0,\"\",IF((K37-J37)>0.8,\"C\",IF((K37-J37)<0.5,\"A\",\"B\"))),\"\")","v":"C"}]
[null,"1.23",{"$f":"VLOOKUP(Tabela1[[#This Row],[ITEM]],'PLANILHA REFERENCIA DETRAN PR'!$A$6:$I$43,4,FALSE)","v":"COMP.19"},{"$f":"VLOOKUP(Tabela1[[#This Row],[ITEM]],'PLANILHA REFERENCIA DETRAN PR'!$A$6:$I$43,2,FALSE)","v":"Placa sinalização piscante mono ativa, em chapa de aço nº 18 galvanizada c/ película refletiva Tipo A (prismática) - A = 0,72m²"},{"$f":"VLOOKUP(B38,'PLANILHA REFERENCIA DETRAN PR'!$A$6:$I$43,6,FALSE)","v":"Unid."},{"$f":"VLOOKUP(B38,PLANILHA_SINTÉTICA!$B$14:$N$52,7,FALSE)","v":2},{"$f":"VLOOKUP(B38,'PLANILHA REFERENCIA DETRAN PR'!$A$6:$I$43,9,FALSE)","v":3523.7},{"$f":"VLOOKUP(B38,PLANILHA_SINTÉTICA!$B$14:$N$52,13,FALSE)","v":7047.4},3320154.77,{"$f":"IF(Tabela1[[#This Row],[CUSTO TOTAL ACUMULADO ]]=Tabela1[[#Headers],[CUSTO TOTAL ACUMULADO ]],\"\",H38/SUM($H$13:$H$47))","v":2.1141253421519302E-3},0.99600183601379444,{"$f":"IFERROR(IF(Tabela1[[#This Row],[% DO ITEM]]=0,\"\",IF((K38-J38)>0.8,\"C\",IF((K38-J38)<0.5,\"A\",\"B\"))),\"\")","v":"C"}]
[null,"2.10",{"$f":"VLOOKUP(Tabela1[[#This Row],[ITEM]],'PLANILHA REFERENCIA DETRAN PR'!$A$6:$I$43,4,FALSE)","v":873000},{"$f":"VLOOKUP(Tabela1[[#This Row],[ITEM]],'PLANILHA REFERENCIA DETRAN PR'!$A$6:$I$43,2,FALSE)","v":"Tachão refletivo bidirecional"},{"$f":"VLOOKUP(B39,'PLANILHA REFERENCIA DETRAN PR'!$A$6:$I$43,6,FALSE)","v":"ud"},{"$f":"VLOOKUP(B39,PLANILHA_SINTÉTICA!$B$14:$N$52,7,FALSE)","v":110},{"$f":"VLOOKUP(B39,'PLANILHA REFERENCIA DETRAN PR'!$A$6:$I$43,9,FALSE)","v":40.9},{"$f":"VLOOKUP(B39,PLANILHA_SINTÉTICA!$B$14:$N$52,13,FALSE)","v":4499},3324653.77,{"$f":"IF(Tabela1[[#This Row],[CUSTO TOTAL ACUMULADO ]]=Tabela1[[#Headers],[CUSTO TOTAL ACUMULADO ]],\"\",H39/SUM($H$13:$H$47))","v":1.3496395712378373E-3},0.99735147558503223,{"$f":"IFERROR(IF(Tabela1[[#This Row],[% DO ITEM]]=0,\"\",IF((K39-J39)>0.8,\"C\",IF((K39-J39)<0.5,\"A\",\"B\"))),\"\")","v":"C"}]
[null,"1.17",{"$f":"VLOOKUP(Tabela1[[#This Row],[ITEM]],'PLANILHA REFERENCIA DETRAN PR'!$A$6:$I$43,4,FALSE)","v":5213364},{"$f":"VLOOKUP(Tabela1[[#This Row],[ITEM]],'PLANILHA REFERENCIA DETRAN PR'!$A$6:$I$43,2,FALSE)","v":"Remoção de placa de sinalização"},{"$f":"VLOOKUP(B40,'PLANILHA REFERENCIA DETRAN PR'!$A$6:$I$43,6,FALSE)","v":"m²"},{"$f":"VLOOKUP(B40,PLANILHA_SINTÉTICA!$B$14:$N$52,7,FALSE)","v":170.99},{"$f":"VLOOKUP(B40,'PLANILHA REFERENCIA DETRAN PR'!$A$6:$I$43,9,FALSE)","v":26.2},{"$f":"VLOOKUP(B40,PLANILHA_SINTÉTICA!$B$14:$N$52,13,FALSE)","v":4479.9399999999996},3329133.71,{"$f":"IF(Tabela1[[#This Row],[CUSTO TOTAL ACUMULADO ]]=Tabela1[[#Headers],[CUSTO TOTAL ACUMULADO ]],\"\",H40/SUM($H$13:$H$47))","v":1.3439218272441069E-3},0.99869539741227631,{"$f":"IFERROR(IF(Tabela1[[#This Row],[% DO ITEM]]=0,\"\",IF((K40-J40)>0.8,\"C\",IF((K40-J40)<0.5,\"A\",\"B\"))),\"\")","v":"C"}]
[null,"1.18",{"$f":"VLOOKUP(Tabela1[[#This Row],[ITEM]],'PLANILHA REFERENCIA DETRAN PR'!$A$6:$I$43,4,FALSE)","v":"COMP.01"},{"$f":"VLOOKUP(Tabela1[[#This Row],[ITEM]],'PLANILHA REFERENCIA DETRAN PR'!$A$6:$I$43,2,FALSE)","v":"Suporte metálico galv. fogo d=2,5\" c/tampa e aletas anti-giro, h=2,00"},{"$f":"VLOOKUP(B41,'PLANILHA REFERENCIA DETRAN PR'!$A$6:$I$43,6,FALSE)","v":"unid"},{"$f":"VLOOKUP(B41,PLANILHA_SINTÉTICA!$B$14:$N$52,7,FALSE)","v":9},{"$f":"VLOOKUP(B41,'PLANILHA REFERENCIA DETRAN PR'!$A$6:$I$43,9,FALSE)","v":299.64999999999998},{"$f":"VLOOKUP(B41,PLANILHA_SINTÉTICA!$B$14:$N$52,13,FALSE)","v":2696.85},3331830.56,{"$f":"IF(Tabela1[[#This Row],[CUSTO TOTAL ACUMULADO ]]=Tabela1[[#Headers],[CUSTO TOTAL ACUMULADO ]],\"\",H41/SUM($H$13:$H$47))","v":8.0901877699327885E-4},0.99950441618926955,{"$f":"IFERROR(IF(Tabela1[[#This Row],[% DO ITEM]]=0,\"\",IF((K41-J41)>0.8,\"C\",IF((K41-J41)<0.5,\"A\",\"B\"))),\"\")","v":"C"}]
[null,"1.15",{"$f":"VLOOKUP(Tabela1[[#This Row],[ITEM]],'PLANILHA REFERENCIA DETRAN PR'!$A$6:$I$43,4,FALSE)","v":"ST 64.15.0300 (/)"},{"$f":"VLOOKUP(Tabela1[[#This Row],[ITEM]],'PLANILHA REFERENCIA DETRAN PR'!$A$6:$I$43,2,FALSE)","v":" Retirada de poste simples de aco, diametro maior que 4\".(desonerado)"},{"$f":"VLOOKUP(B42,'PLANILHA REFERENCIA DETRAN PR'!$A$6:$I$43,6,FALSE)","v":"un"},{"$f":"VLOOKUP(B42,PLANILHA_SINTÉTICA!$B$14:$N$52,7,FALSE)","v":2},{"$f":"VLOOKUP(B42,'PLANILHA REFERENCIA DETRAN PR'!$A$6:$I$43,9,FALSE)","v":435.21},{"$f":"VLOOKUP(B42,PLANILHA_SINTÉTICA!$B$14:$N$52,13,FALSE)","v":870.42},3332700.98,{"$f":"IF(Tabela1[[#This Row],[CUSTO TOTAL ACUMULADO ]]=Tabela1[[#Headers],[CUSTO TOTAL ACUMULADO ]],\"\",H42/SUM($H$13:$H$47))","v":2.6111430886793471E-4},0.99976553049813743,{"$f":"IFERROR(IF(Tabela1[[#This Row],[% DO ITEM]]=0,\"\",IF((K42-J42)>0.8,\"C\",IF((K42-J42)<0.5,\"A\",\"B\"))),\"\")","v":"C"}]
[null,"2.8",{"$f":"VLOOKUP(Tabela1[[#This Row],[ITEM]],'PLANILHA REFERENCIA DETRAN PR'!$A$6:$I$43,4,FALSE)","v":871000},{"$f":"VLOOKUP(Tabela1[[#This Row],[ITEM]],'PLANILHA REFERENCIA DETRAN PR'!$A$6:$I$43,2,FALSE)","v":"Tacha refletiva bidirecional"},{"$f":"VLOOKUP(B43,'PLANILHA REFERENCIA DETRAN PR'!$A$6:$I$43,6,FALSE)","v":"ud"},{"$f":"VLOOKUP(B43,PLANILHA_SINTÉTICA!$B$14:$N$52,7,FALSE)","v":27},{"$f":"VLOOKUP(B43,'PLANILHA REFERENCIA DETRAN PR'!$A$6:$I$43,9,FALSE)","v":16.8},{"$f":"VLOOKUP(B43,PLANILHA_SINTÉTICA!$B$14:$N$52,13,FALSE)","v":453.6},3333154.58,{"$f":"IF(Tabela1[[#This Row],[CUSTO TOTAL ACUMULADO ]]=Tabela1[[#Headers],[CUSTO TOTAL ACUMULADO ]],\"\",H43/SUM($H$13:$H$47))","v":1.3607390742686887E-4},0.9999016044055643,{"$f":"IFERROR(IF(Tabela1[[#This Row],[% DO ITEM]]=0,\"\",IF((K43-J43)>0.8,\"C\",IF((K43-J43)<0.5,\"A\",\"B\"))),\"\")","v":"C"}]
[null,"2.7",{"$f":"VLOOKUP(Tabela1[[#This Row],[ITEM]],'PLANILHA REFERENCIA DETRAN PR'!$A$6:$I$43,4,FALSE)","v":870000},{"$f":"VLOOKUP(Tabela1[[#This Row],[ITEM]],'PLANILHA REFERENCIA DETRAN PR'!$A$6:$I$43,2,FALSE)","v":"Tacha refletiva monodirecional"},{"$f":"VLOOKUP(B44,'PLANILHA REFERENCIA DETRAN PR'!$A$6:$I$43,6,FALSE)","v":"ud"},{"$f":"VLOOKUP(B44,PLANILHA_SINTÉTICA!$B$14:$N$52,7,FALSE)","v":20},{"$f":"VLOOKUP(B44,'PLANILHA REFERENCIA DETRAN PR'!$A$6:$I$43,9,FALSE)","v":16.399999999999999},{"$f":"VLOOKUP(B44,PLANILHA_SINTÉTICA!$B$14:$N$52,13,FALSE)","v":328},3333482.58,{"$f":"IF(Tabela1[[#This Row],[CUSTO TOTAL ACUMULADO ]]=Tabela1[[#Headers],[CUSTO TOTAL ACUMULADO ]],\"\",H44/SUM($H$13:$H$47))","v":9.8395594435654734E-5},1,{"$f":"IFERROR(IF(Tabela1[[#This Row],[% DO ITEM]]=0,\"\",IF((K44-J44)>0.8,\"C\",IF((K44-J44)<0.5,\"A\",\"B\"))),\"\")","v":"C"}]
[null,"1.19",{"$f":"VLOOKUP(Tabela1[[#This Row],[ITEM]],'PLANILHA REFERENCIA DETRAN PR'!$A$6:$I$43,4,FALSE)","v":822030},{"$f":"VLOOKUP(Tabela1[[#This Row],[ITEM]],'PLANILHA REFERENCIA DETRAN PR'!$A$6:$I$43,2,FALSE)","v":"Suporte metálico galv. fogo perfil \"C\" 250x85x25x2,70mm, h=5,00m"},{"$f":"VLOOKUP(B45,'PLANILHA REFERENCIA DETRAN PR'!$A$6:$I$43,6,FALSE)","v":"ud"},{"$f":"VLOOKUP(B45,PLANILHA_SINTÉTICA!$B$14:$N$52,7,FALSE)","v":0},{"$f":"VLOOKUP(B45,'PLANILHA REFERENCIA DETRAN PR'!$A$6:$I$43,9,FALSE)","v":1439.15},{"$f":"VLOOKUP(B45,PLANILHA_SINTÉTICA!$B$14:$N$52,13,FALSE)","v":0},3333482.58,{"$f":"IF(Tabela1[[#This Row],[CUSTO TOTAL ACUMULADO ]]=Tabela1[[#Headers],[CUSTO TOTAL ACUMULADO ]],\"\",H45/SUM($H$13:$H$47))","v":0},1,{"$f":"IFERROR(IF(Tabela1[[#This Row],[% DO ITEM]]=0,\"\",IF((K45-J45)>0.8,\"C\",IF((K45-J45)<0.5,\"A\",\"B\"))),\"\")","v":""}]
[null,"1.20",{"$f":"VLOOKUP(Tabela1[[#This Row],[ITEM]],'PLANILHA REFERENCIA DETRAN PR'!$A$6:$I$43,4,FALSE)","v":5213837},{"$f":"VLOOKUP(Tabela1[[#This Row],[ITEM]],'PLANILHA REFERENCIA DETRAN PR'!$A$6:$I$43,2,FALSE)","v":"Cilindro flexível delimitador de tráfego com duas faixas refletivas e chumbador - D = 20 cm e H = 80 cm"},{"$f":"VLOOKUP(B46,'PLANILHA REFERENCIA DETRAN PR'!$A$6:$I$43,6,FALSE)","v":"un"},{"$f":"VLOOKUP(B46,PLANILHA_SINTÉTICA!$B$14:$N$52,7,FALSE)","v":0},{"$f":"VLOOKUP(B46,'PLANILHA REFERENCIA DETRAN PR'!$A$6:$I$43,9,FALSE)","v":203.93},{"$f":"VLOOKUP(B46,PLANILHA_SINTÉTICA!$B$14:$N$52,13,FALSE)","v":0},3333482.58,{"$f":"IF(Tabela1[[#This Row],[CUSTO TOTAL ACUMULADO ]]=Tabela1[[#Headers],[CUSTO TOTAL ACUMULADO ]],\"\",H46/SUM($H$13:$H$47))","v":0},1,{"$f":"IFERROR(IF(Tabela1[[#This Row],[% DO ITEM]]=0,\"\",IF((K46-J46)>0.8,\"C\",IF((K46-J46)<0.5,\"A\",\"B\"))),\"\")","v":""}]
[null,"2.5",{"$f":"VLOOKUP(Tabela1[[#This Row],[ITEM]],'PLANILHA REFERENCIA DETRAN PR'!$A$6:$I$43,4,FALSE)","v":"COMP.15"},{"$f":"VLOOKUP(Tabela1[[#This Row],[ITEM]],'PLANILHA REFERENCIA DETRAN PR'!$A$6:$I$43,2,FALSE)","v":"Pintura de faixa - plástico a frio bicomponente à base de resinas metacrílicas - espessura de 1,5 mm - plano"},{"$f":"VLOOKUP(B47,'PLANILHA REFERENCIA DETRAN PR'!$A$6:$I$43,6,FALSE)","v":"m²"},{"$f":"VLOOKUP(B47,PLANILHA_SINTÉTICA!$B$14:$N$52,7,FALSE)","v":0},{"$f":"VLOOKUP(B47,'PLANILHA REFERENCIA DETRAN PR'!$A$6:$I$43,9,FALSE)","v":128.35999999999999},{"$f":"VLOOKUP(B47,PLANILHA_SINTÉTICA!$B$14:$N$52,13,FALSE)","v":0},3333482.58,{"$f":"IF(Tabela1[[#This Row],[CUSTO TOTAL ACUMULADO ]]=Tabela1[[#Headers],[CUSTO TOTAL ACUMULADO ]],\"\",H47/SUM($H$13:$H$47))","v":0},1,{"$f":"IFERROR(IF(Tabela1[[#This Row],[% DO ITEM]]=0,\"\",IF((K47-J47)>0.8,\"C\",IF((K47-J47)<0.5,\"A\",\"B\"))),\"\")","v":""}]

{"sheet":"DECLARAÇÃO","index":8,"n_rows":43,"n_cols":12,"rows_kept":43,"cut":false,"hidden":true,"merged":[[3,11,6,16],[5,1,5,8],[6,1,6,8],[8,3,8,7],[11,1,11,8],[39,2,39,4],[39,5,39,7],[15,3,15,6],[25,2,25,4],[26,2,26,4],[26,5,26,7],[17,2,23,7],[33,2,36,7],[31,2,31,7],[38,2,38,4]]}
[]
[]
[]
[null,null,null,null,null,null,null,null,null,null,null,"EDITAR APENAS OS ITENS EM VERMELHO"]
[]
[]
[]
[]
[null,null,"PRÓPRIO:","EXECUÇÃO DE SERVIÇOS DE SINALIZAÇÃO VIÁRIA"]
[null,null,"MUNICÍPIO:",{"$f":"'FOLHA FECHAMENTO'!D12:I12","v":"lote 02"}]
[null,null,"EMPRESA:",{"$f":"IF([3]DADOS!D32<>\"\",[3]DADOS!D32,\" \")","v":"DETRAN"}]
[]
[]
[]
[]
[null,null,null,"TERMO DE RESPONSABILIDADE"]
[]
[null,null,"O profissional signatário deste, abaixo identificado, se responsabiliza pelo atendimento integral do contido na Portaria PRED, que determina os procedimentos para elaboração e apresentação de orçamentos/projetos, bem como pelo correto uso dos modelos e tabelas DER PR / SICRO / SCO RJ vigentes. O objeto deste Termo refere-se à correspondente ART abaixo"]
[]
[]
[]
[]
[]
[]
[]
[null,null,"ART/RRT nº :",null,null,{"$f":"'FOLHA FECHAMENTO'!M18","v":"16594464"}]
[null,null,"CREA:",null,null,{"$f":"'FOLHA FECHAMENTO'!M17","v":"A284127-4"}]
[]
[null,null,null,null,null,"______________________________"]
[null,null,null,null,null,null,{"$f":"'FOLHA FECHAMENTO'!H17","v":"Amanda Patricia de Oliveira Henning"}]
[]
[null,null,"TERMO DE LIBERAÇÃO DOS DIREITOS AUTORAIS"]
[]
[null,null,"O profissional signatário deste, abaixo identificado, concede ao DETRAN PR a liberação dos direitos autorais relativos às composições de serviços por ele elaboradas correspondente a ART/RRT abaixo"]
[]
[]
[]
[]
[null,null,"ART/RRT nº :",null,null,{"$f":"'FOLHA FECHAMENTO'!M18","v":"16594464"}]
[null,null,"CREA:",null,null,{"$f":"'FOLHA FECHAMENTO'!M17","v":"A284127-4"}]
[]
[null,null,null,null,null,"______________________________"]
[null,null,null,null,null,{"$f":"G30","v":"Amanda Patricia de Oliveira Henning"}]

{"sheet":"PLANILHA REFERENCIA DETRAN PR","index":9,"n_rows":42,"n_cols":9,"rows_kept":42,"cut":false,"hidden":true,"merged":[[0,0,0,8],[3,0,4,0],[3,1,4,1],[3,2,3,4],[3,5,4,5],[3,6,4,6],[3,7,4,7],[3,8,4,8]]}
["PLANILHA DE CUSTOS DETRAN/PR"]
[]
[]
["ITEM","DESCRIÇÃO","FONTE",null,null,"UNIDADE","MÃO DE OBRA","MATERIAL","CUSTO UNITÁRIO"]
[null,null,"ÓRGÃO","CÓDIGO","DATA BASE"]
[1,"SINALIZAÇÃO VERTICAL"]
["1.1",{"$f":"IF(C7=\"derpr\",VLOOKUP(D7,der!A:J,3,FALSE),IF(C7=\"dnit\",VLOOKUP(D7,dnit!A:D,3,FALSE),IF(C7=\"detran-pr\",VLOOKUP(D7,Composições!D:K,2,FALSE),IF(C7=\"sco/rj\",VLOOKUP(D7,scorj!B:G,3,FALSE)))))","v":"Placa tipo R-1 - L = 0,25m. Com película refletiva tipo I A (prismática) - Área: 0,32 m²"},"DETRAN-PR","COMP.05",{"$f":"IF(C7=\"derpr\",der!$L$1,IF(C7=\"dnit\",dnit!$A$1,IF(C7=\"detran-pr\",scorj!$B$1,IF(C7=\"sco/rj\",scorj!$B$1))))","v":"2025-12-30"},{"$f":"IF(C7=\"derpr\",VLOOKUP(D7,der!A:J,3,FALSE),IF(C7=\"dnit\",VLOOKUP(D7,dnit!A:D,3,FALSE),IF(C7=\"detran-pr\",VLOOKUP(D7,Composições!D:K,3,FALSE),IF(C7=\"sco/rj\",VLOOKUP(D7,scorj!B:G,3,FALSE)))))","v":"m²"},{"$f":"IF(C7=\"derpr\",VLOOKUP(D7,der!A:J,9,FALSE),IF(C7=\"dnit\",VLOOKUP(D7,dnit!A:E,5,FALSE),IF(C7=\"detran-pr\",VLOOKUP(D7,Composições!D:K,8,FALSE),IF(C7=\"sco/rj\",VLOOKUP(D7,scorj!B:G,5,FALSE)))))","v":16.850000000000001},{"$f":"IF(C7=\"derpr\",VLOOKUP(D7,der!A:J,10,FALSE),IF(C7=\"dnit\",VLOOKUP(D7,dnit!A:E,4,FALSE),IF(C7=\"detran-pr\",VLOOKUP(D7,Composições!D:K,7,FALSE),IF(C7=\"sco/rj\",VLOOKUP(D7,scorj!B:G,4,FALSE)))))","v":155.25},{"$f":"IF(C7=\"derpr\",VLOOKUP(D7,der!A:J,7,FALSE),IF(C7=\"dnit\",VLOOKUP(D7,dnit!A:E,4,FALSE),IF(C7=\"detran-pr\",VLOOKUP(D7,Composições!D:K,6,FALSE),IF(C7=\"sco/rj\",VLOOKUP(D7,scorj!B:G,4,FALSE)))))","v":172.1}]
["1.2",{"$f":"IF(C8=\"derpr\",VLOOKUP(D8,der!A:J,3,FALSE),IF(C8=\"dnit\",VLOOKUP(D8,dnit!A:D,3,FALSE),IF(C8=\"detran-pr\",VLOOKUP(D8,Composições!D:K,2,FALSE),IF(C8=\"sco/rj\",VLOOKUP(D8,scorj!B:G,3,FALSE)))))","v":"Placa tipo R-2 - L = 0,75m. Com película refletiva tipo I A (prismática) - Área: 0,24m²"},"DETRAN-PR","COMP.06",{"$f":"IF(C8=\"derpr\",der!$L$1,IF(C8=\"dnit\",dnit!$A$1,IF(C8=\"detran-pr\",scorj!$B$1,IF(C8=\"sco/rj\",scorj!$B$1))))","v":"2025-12-30"},{"$f":"IF(C8=\"derpr\",VLOOKUP(D8,der!A:J,3,FALSE),IF(C8=\"dnit\",VLOOKUP(D8,dnit!A:D,3,FALSE),IF(C8=\"detran-pr\",VLOOKUP(D8,Composições!D:K,3,FALSE),IF(C8=\"sco/rj\",VLOOKUP(D8,scorj!B:G,3,FALSE)))))","v":"m²"},{"$f":"IF(C8=\"derpr\",VLOOKUP(D8,der!A:J,9,FALSE),IF(C8=\"dnit\",VLOOKUP(D8,dnit!A:E,5,FALSE),IF(C8=\"detran-pr\",VLOOKUP(D8,Composições!D:K,8,FALSE),IF(C8=\"sco/rj\",VLOOKUP(D8,scorj!B:G,5,FALSE)))))","v":12.64},{"$f":"IF(C8=\"derpr\",VLOOKUP(D8,der!A:J,10,FALSE),IF(C8=\"dnit\",VLOOKUP(D8,dnit!A:E,4,FALSE),IF(C8=\"detran-pr\",VLOOKUP(D8,Composições!D:K,7,FALSE),IF(C8=\"sco/rj\",VLOOKUP(D8,scorj!B:G,4,FALSE)))))","v":116.44},{"$f":"IF(C8=\"derpr\",VLOOKUP(D8,der!A:J,7,FALSE),IF(C8=\"dnit\",VLOOKUP(D8,dnit!A:E,4,FALSE),IF(C8=\"detran-pr\",VLOOKUP(D8,Composições!D:K,6,FALSE),IF(C8=\"sco/rj\",VLOOKUP(D8,scorj!B:G,4,FALSE)))))","v":129.08000000000001}]
["1.3",{"$f":"IF(C9=\"derpr\",VLOOKUP(D9,der!A:J,3,FALSE),IF(C9=\"dnit\",VLOOKUP(D9,dnit!A:D,3,FALSE),IF(C9=\"detran-pr\",VLOOKUP(D9,Composições!D:K,2,FALSE),IF(C9=\"sco/rj\",VLOOKUP(D9,scorj!B:G,3,FALSE)))))","v":"Placa tipo circular - D = 0,50m. Com película refletiva tipo I A (prismática) - Área: 0,21m²"},"DETRAN-PR","COMP.07",{"$f":"IF(C9=\"derpr\",der!$L$1,IF(C9=\"dnit\",dnit!$A$1,IF(C9=\"detran-pr\",scorj!$B$1,IF(C9=\"sco/rj\",scorj!$B$1))))","v":"2025-12-30"},{"$f":"IF(C9=\"derpr\",VLOOKUP(D9,der!A:J,3,FALSE),IF(C9=\"dnit\",VLOOKUP(D9,dnit!A:D,3,FALSE),IF(C9=\"detran-pr\",VLOOKUP(D9,Composições!D:K,3,FALSE),IF(C9=\"sco/rj\",VLOOKUP(D9,scorj!B:G,3,FALSE)))))","v":"m²"},{"$f":"IF(C9=\"derpr\",VLOOKUP(D9,der!A:J,9,FALSE),IF(C9=\"dnit\",VLOOKUP(D9,dnit!A:E,5,FALSE),IF(C9=\"detran-pr\",VLOOKUP(D9,Composições!D:K,8,FALSE),IF(C9=\"sco/rj\",VLOOKUP(D9,scorj!B:G,5,FALSE)))))","v":11.06},{"$f":"IF(C9=\"derpr\",VLOOKUP(D9,der!A:J,10,FALSE),IF(C9=\"dnit\",VLOOKUP(D9,dnit!A:E,4,FALSE),IF(C9=\"detran-pr\",VLOOKUP(D9,Composições!D:K,7,FALSE),IF(C9=\"sco/rj\",VLOOKUP(D9,scorj!B:G,4,FALSE)))))","v":101.88},{"$f":"IF(C9=\"derpr\",VLOOKUP(D9,der!A:J,7,FALSE),IF(C9=\"dnit\",VLOOKUP(D9,dnit!A:E,4,FALSE),IF(C9=\"detran-pr\",VLOOKUP(D9,Composições!D:K,6,FALSE),IF(C9=\"sco/rj\",VLOOKUP(D9,scorj!B:G,4,FALSE)))))","v":112.94}]
["1.4",{"$f":"IF(C10=\"derpr\",VLOOKUP(D10,der!A:J,3,FALSE),IF(C10=\"dnit\",VLOOKUP(D10,dnit!A:D,3,FALSE),IF(C10=\"detran-pr\",VLOOKUP(D10,Composições!D:K,2,FALSE),IF(C10=\"sco/rj\",VLOOKUP(D10,scorj!B:G,3,FALSE)))))","v":"Placa tipo de advertência - L = 0,50m. Com película refletiva tipo I A (prismática) - Área: 0,27 m²"},"DETRAN-PR","COMP.08",{"$f":"IF(C10=\"derpr\",der!$L$1,IF(C10=\"dnit\",dnit!$A$1,IF(C10=\"detran-pr\",scorj!$B$1,IF(C10=\"sco/rj\",scorj!$B$1))))","v":"2025-12-30"},{"$f":"IF(C10=\"derpr\",VLOOKUP(D10,der!A:J,3,FALSE),IF(C10=\"dnit\",VLOOKUP(D10,dnit!A:D,3,FALSE),IF(C10=\"detran-pr\",VLOOKUP(D10,Composições!D:K,3,FALSE),IF(C10=\"sco/rj\",VLOOKUP(D10,scorj!B:G,3,FALSE)))))","v":"m²"},{"$f":"IF(C10=\"derpr\",VLOOKUP(D10,der!A:J,9,FALSE),IF(C10=\"dnit\",VLOOKUP(D10,dnit!A:E,5,FALSE),IF(C10=\"detran-pr\",VLOOKUP(D10,Composições!D:K,8,FALSE),IF(C10=\"sco/rj\",VLOOKUP(D10,scorj!B:G,5,FALSE)))))","v":14.22},{"$f":"IF(C10=\"derpr\",VLOOKUP(D10,der!A:J,10,FALSE),IF(C10=\"dnit\",VLOOKUP(D10,dnit!A:E,4,FALSE),IF(C10=\"detran-pr\",VLOOKUP(D10,Composições!D:K,7,FALSE),IF(C10=\"sco/rj\",VLOOKUP(D10,scorj!B:G,4,FALSE)))))","v":130.99},{"$f":"IF(C10=\"derpr\",VLOOKUP(D10,der!A:J,7,FALSE),IF(C10=\"dnit\",VLOOKUP(D10,dnit!A:E,4,FALSE),IF(C10=\"detran-pr\",VLOOKUP(D10,Composições!D:K,6,FALSE),IF(C10=\"sco/rj\",VLOOKUP(D10,scorj!B:G,4,FALSE)))))","v":145.21}]
["1.5",{"$f":"IF(C11=\"derpr\",VLOOKUP(D11,der!A:J,3,FALSE),IF(C11=\"dnit\",VLOOKUP(D11,dnit!A:D,3,FALSE),IF(C11=\"detran-pr\",VLOOKUP(D11,Composições!D:K,2,FALSE),IF(C11=\"sco/rj\",VLOOKUP(D11,scorj!B:G,3,FALSE)))))","v":"Placa tipo retangular - L = 0,50m x h= 1,00 m. Com película refletiva tipo I A (prismática)"},"DETRAN-PR","COMP.09",{"$f":"IF(C11=\"derpr\",der!$L$1,IF(C11=\"dnit\",dnit!$A$1,IF(C11=\"detran-pr\",scorj!$B$1,IF(C11=\"sco/rj\",scorj!$B$1))))","v":"2025-12-30"},{"$f":"IF(C11=\"derpr\",VLOOKUP(D11,der!A:J,3,FALSE),IF(C11=\"dnit\",VLOOKUP(D11,dnit!A:D,3,FALSE),IF(C11=\"detran-pr\",VLOOKUP(D11,Composições!D:K,3,FALSE),IF(C11=\"sco/rj\",VLOOKUP(D11,scorj!B:G,3,FALSE)))))","v":"m²"},{"$f":"IF(C11=\"derpr\",VLOOKUP(D11,der!A:J,9,FALSE),IF(C11=\"dnit\",VLOOKUP(D11,dnit!A:E,5,FALSE),IF(C11=\"detran-pr\",VLOOKUP(D11,Composições!D:K,8,FALSE),IF(C11=\"sco/rj\",VLOOKUP(D11,scorj!B:G,5,FALSE)))))","v":26.34},{"$f":"IF(C11=\"derpr\",VLOOKUP(D11,der!A:J,10,FALSE),IF(C11=\"dnit\",VLOOKUP(D11,dnit!A:E,4,FALSE),IF(C11=\"detran-pr\",VLOOKUP(D11,Composições!D:K,7,FALSE),IF(C11=\"sco/rj\",VLOOKUP(D11,scorj!B:G,4,FALSE)))))","v":242.58},{"$f":"IF(C11=\"derpr\",VLOOKUP(D11,der!A:J,7,FALSE),IF(C11=\"dnit\",VLOOKUP(D11,dnit!A:E,4,FALSE),IF(C11=\"detran-pr\",VLOOKUP(D11,Composições!D:K,6,FALSE),IF(C11=\"sco/rj\",VLOOKUP(D11,scorj!B:G,4,FALSE)))))","v":268.90999999999997}]
["1.6","Placa sinalização em chapa de aço nº18 galvanizada c/ película refletiva Tipo I A (prismática) - Utilizar apenas para placas não listadas no orçamento","DERPR",820000,{"$f":"IF(C12=\"derpr\",der!$L$1,IF(C12=\"dnit\",dnit!$A$1,IF(C12=\"detran-pr\",scorj!$B$1,IF(C12=\"sco/rj\",scorj!$B$1))))","v":"2025-08-31"},{"$f":"IF(C12=\"derpr\",VLOOKUP(D12,der!A:J,3,FALSE),IF(C12=\"dnit\",VLOOKUP(D12,dnit!A:D,3,FALSE),IF(C12=\"detran-pr\",VLOOKUP(D12,Composições!D:K,3,FALSE),IF(C12=\"sco/rj\",VLOOKUP(D12,scorj!B:G,3,FALSE)))))","v":"m2"},{"$f":"IF(C12=\"derpr\",VLOOKUP(D12,der!A:J,9,FALSE),IF(C12=\"dnit\",VLOOKUP(D12,dnit!A:E,5,FALSE),IF(C12=\"detran-pr\",VLOOKUP(D12,Composições!D:K,8,FALSE),IF(C12=\"sco/rj\",VLOOKUP(D12,scorj!B:G,5,FALSE)))))","v":190.97},{"$f":"IF(C12=\"derpr\",VLOOKUP(D12,der!A:J,10,FALSE),IF(C12=\"dnit\",VLOOKUP(D12,dnit!A:E,4,FALSE),IF(C12=\"detran-pr\",VLOOKUP(D12,Composições!D:K,7,FALSE),IF(C12=\"sco/rj\",VLOOKUP(D12,scorj!B:G,4,FALSE)))))","v":346.85},{"$f":"IF(C12=\"derpr\",VLOOKUP(D12,der!A:J,7,FALSE),IF(C12=\"dnit\",VLOOKUP(D12,dnit!A:E,4,FALSE),IF(C12=\"detran-pr\",VLOOKUP(D12,Composições!D:K,6,FALSE),IF(C12=\"sco/rj\",VLOOKUP(D12,scorj!B:G,4,FALSE)))))","v":537.82000000000005}]
["1.7","Suporte polimérico ecológico maciço colapsível D = 6,5 cm para placa de sinalização - fornecimento e implantação - 3,00 m","DNIT","5213351-ed",{"$f":"IF(C13=\"derpr\",der!$L$1,IF(C13=\"dnit\",dnit!$A$1,IF(C13=\"detran-pr\",scorj!$B$1,IF(C13=\"sco/rj\",scorj!$B$1))))","v":"2025-10-01"},{"$f":"IF(C13=\"derpr\",VLOOKUP(D13,der!A:J,3,FALSE),IF(C13=\"dnit\",VLOOKUP(D13,dnit!A:D,3,FALSE),IF(C13=\"detran-pr\",VLOOKUP(D13,Composições!D:K,3,FALSE),IF(C13=\"sco/rj\",VLOOKUP(D13,scorj!B:G,3,FALSE)))))","v":"un"},{"$f":"IF(C13=\"derpr\",VLOOKUP(D13,der!A:J,9,FALSE),IF(C13=\"dnit\",VLOOKUP(D13,dnit!A:E,5,FALSE),IF(C13=\"detran-pr\",VLOOKUP(D13,Composições!D:K,8,FALSE),IF(C13=\"sco/rj\",VLOOKUP(D13,scorj!B:G,5,FALSE)))))","v":0},{"$f":"IF(C13=\"derpr\",VLOOKUP(D13,der!A:J,10,FALSE),IF(C13=\"dnit\",VLOOKUP(D13,dnit!A:E,4,FALSE),IF(C13=\"detran-pr\",VLOOKUP(D13,Composições!D:K,7,FALSE),IF(C13=\"sco/rj\",VLOOKUP(D13,scorj!B:G,4,FALSE)))))","v":810.79},{"$f":"IF(C13=\"derpr\",VLOOKUP(D13,der!A:J,7,FALSE),IF(C13=\"dnit\",VLOOKUP(D13,dnit!A:E,4,FALSE),IF(C13=\"detran-pr\",VLOOKUP(D13,Composições!D:K,6,FALSE),IF(C13=\"sco/rj\",VLOOKUP(D13,scorj!B:G,4,FALSE)))))","v":810.79}]
["1.8","Suporte polimérico ecológico maciço colapsível D = 6,5 cm para placa de sinalização - fornecimento e implantação - 3,60 m","DNIT",5213351,{"$f":"IF(C14=\"derpr\",der!$L$1,IF(C14=\"dnit\",dnit!$A$1,IF(C14=\"detran-pr\",scorj!$B$1,IF(C14=\"sco/rj\",scorj!$B$1))))","v":"2025-10-01"},{"$f":"IF(C14=\"derpr\",VLOOKUP(D14,der!A:J,3,FALSE),IF(C14=\"dnit\",VLOOKUP(D14,dnit!A:D,3,FALSE),IF(C14=\"detran-pr\",VLOOKUP(D14,Composições!D:K,3,FALSE),IF(C14=\"sco/rj\",VLOOKUP(D14,scorj!B:G,3,FALSE)))))","v":"un"},{"$f":"IF(C14=\"derpr\",VLOOKUP(D14,der!A:J,9,FALSE),IF(C14=\"dnit\",VLOOKUP(D14,dnit!A:E,5,FALSE),IF(C14=\"detran-pr\",VLOOKUP(D14,Composições!D:K,8,FALSE),IF(C14=\"sco/rj\",VLOOKUP(D14,scorj!B:G,5,FALSE)))))","v":0},{"$f":"IF(C14=\"derpr\",VLOOKUP(D14,der!A:J,10,FALSE),IF(C14=\"dnit\",VLOOKUP(D14,dnit!A:E,4,FALSE),IF(C14=\"detran-pr\",VLOOKUP(D14,Composições!D:K,7,FALSE),IF(C14=\"sco/rj\",VLOOKUP(D14,scorj!B:G,4,FALSE)))))","v":675.66},{"$f":"IF(C14=\"derpr\",VLOOKUP(D14,der!A:J,7,FALSE),IF(C14=\"dnit\",VLOOKUP(D14,dnit!A:E,4,FALSE),IF(C14=\"detran-pr\",VLOOKUP(D14,Composições!D:K,6,FALSE),IF(C14=\"sco/rj\",VLOOKUP(D14,scorj!B:G,4,FALSE)))))","v":675.66}]
["1.9","Suporte metál.galv.fogo d=2,5\" c/tampa e aletas antigiro h=3,00m","DERPR",821300,{"$f":"IF(C15=\"derpr\",der!$L$1,IF(C15=\"dnit\",dnit!$A$1,IF(C15=\"detran-pr\",scorj!$B$1,IF(C15=\"sco/rj\",scorj!$B$1))))","v":"2025-08-31"},{"$f":"IF(C15=\"derpr\",VLOOKUP(D15,der!A:J,3,FALSE),IF(C15=\"dnit\",VLOOKUP(D15,dnit!A:D,3,FALSE),IF(C15=\"detran-pr\",VLOOKUP(D15,Composições!D:K,3,FALSE),IF(C15=\"sco/rj\",VLOOKUP(D15,scorj!B:G,3,FALSE)))))","v":"ud"},{"$f":"IF(C15=\"derpr\",VLOOKUP(D15,der!A:J,9,FALSE),IF(C15=\"dnit\",VLOOKUP(D15,dnit!A:E,5,FALSE),IF(C15=\"detran-pr\",VLOOKUP(D15,Composições!D:K,8,FALSE),IF(C15=\"sco/rj\",VLOOKUP(D15,scorj!B:G,5,FALSE)))))","v":72.92},{"$f":"IF(C15=\"derpr\",VLOOKUP(D15,der!A:J,10,FALSE),IF(C15=\"dnit\",VLOOKUP(D15,dnit!A:E,4,FALSE),IF(C15=\"detran-pr\",VLOOKUP(D15,Composições!D:K,7,FALSE),IF(C15=\"sco/rj\",VLOOKUP(D15,scorj!B:G,4,FALSE)))))","v":336.69},{"$f":"IF(C15=\"derpr\",VLOOKUP(D15,der!A:J,7,FALSE),IF(C15=\"dnit\",VLOOKUP(D15,dnit!A:E,4,FALSE),IF(C15=\"detran-pr\",VLOOKUP(D15,Composições!D:K,6,FALSE),IF(C15=\"sco/rj\",VLOOKUP(D15,scorj!B:G,4,FALSE)))))","v":409.61}]
["1.10","Suporte metál.galv.fogo d=2,5\" c/tampa e aletas antigiro h=3,50m","DERPR",821350,{"$f":"IF(C16=\"derpr\",der!$L$1,IF(C16=\"dnit\",dnit!$A$1,IF(C16=\"detran-pr\",scorj!$B$1,IF(C16=\"sco/rj\",scorj!$B$1))))","v":"2025-08-31"},{"$f":"IF(C16=\"derpr\",VLOOKUP(D16,der!A:J,3,FALSE),IF(C16=\"dnit\",VLOOKUP(D16,dnit!A:D,3,FALSE),IF(C16=\"detran-pr\",VLOOKUP(D16,Composições!D:K,3,FALSE),IF(C16=\"sco/rj\",VLOOKUP(D16,scorj!B:G,3,FALSE)))))","v":"ud"},{"$f":"IF(C16=\"derpr\",VLOOKUP(D16,der!A:J,9,FALSE),IF(C16=\"dnit\",VLOOKUP(D16,dnit!A:E,5,FALSE),IF(C16=\"detran-pr\",VLOOKUP(D16,Composições!D:K,8,FALSE),IF(C16=\"sco/rj\",VLOOKUP(D16,scorj!B:G,5,FALSE)))))","v":72.92},{"$f":"IF(C16=\"derpr\",VLOOKUP(D16,der!A:J,10,FALSE),IF(C16=\"dnit\",VLOOKUP(D16,dnit!A:E,4,FALSE),IF(C16=\"detran-pr\",VLOOKUP(D16,Composições!D:K,7,FALSE),IF(C16=\"sco/rj\",VLOOKUP(D16,scorj!B:G,4,FALSE)))))","v":392.69},{"$f":"IF(C16=\"derpr\",VLOOKUP(D16,der!A:J,7,FALSE),IF(C16=\"dnit\",VLOOKUP(D16,dnit!A:E,4,FALSE),IF(C16=\"detran-pr\",VLOOKUP(D16,Composições!D:K,6,FALSE),IF(C16=\"sco/rj\",VLOOKUP(D16,scorj!B:G,4,FALSE)))))","v":465.61}]
["1.11","Suporte metál.galv.fogo d=2,5\" c/tampa e aletas anti-giro h=4,00m","DERPR",821400,{"$f":"IF(C17=\"derpr\",der!$L$1,IF(C17=\"dnit\",dnit!$A$1,IF(C17=\"detran-pr\",scorj!$B$1,IF(C17=\"sco/rj\",scorj!$B$1))))","v":"2025-08-31"},{"$f":"IF(C17=\"derpr\",VLOOKUP(D17,der!A:J,3,FALSE),IF(C17=\"dnit\",VLOOKUP(D17,dnit!A:D,3,FALSE),IF(C17=\"detran-pr\",VLOOKUP(D17,Composições!D:K,3,FALSE),IF(C17=\"sco/rj\",VLOOKUP(D17,scorj!B:G,3,FALSE)))))","v":"ud"},{"$f":"IF(C17=\"derpr\",VLOOKUP(D17,der!A:J,9,FALSE),IF(C17=\"dnit\",VLOOKUP(D17,dnit!A:E,5,FALSE),IF(C17=\"detran-pr\",VLOOKUP(D17,Composições!D:K,8,FALSE),IF(C17=\"sco/rj\",VLOOKUP(D17,scorj!B:G,5,FALSE)))))","v":72.92},{"$f":"IF(C17=\"derpr\",VLOOKUP(D17,der!A:J,10,FALSE),IF(C17=\"dnit\",VLOOKUP(D17,dnit!A:E,4,FALSE),IF(C17=\"detran-pr\",VLOOKUP(D17,Composições!D:K,7,FALSE),IF(C17=\"sco/rj\",VLOOKUP(D17,scorj!B:G,4,FALSE)))))","v":447.83},{"$f":"IF(C17=\"derpr\",VLOOKUP(D17,der!A:J,7,FALSE),IF(C17=\"dnit\",VLOOKUP(D17,dnit!A:E,4,FALSE),IF(C17=\"detran-pr\",VLOOKUP(D17,Composições!D:K,6,FALSE),IF(C17=\"sco/rj\",VLOOKUP(D17,scorj!B:G,4,FALSE)))))","v":520.75}]
["1.12","Conjunto para placa indicativa (Coluna, Braço, Montagem, Fundação) para placas até 3,00m² - Coluna Tipo I com projeção de 2,80m","DETRAN-PR","COMP.02",{"$f":"IF(C18=\"derpr\",der!$L$1,IF(C18=\"dnit\",dnit!$A$1,IF(C18=\"detran-pr\",scorj!$B$1,IF(C18=\"sco/rj\",scorj!$B$1))))","v":"2025-12-30"},{"$f":"IF(C18=\"derpr\",VLOOKUP(D18,der!A:J,3,FALSE),IF(C18=\"dnit\",VLOOKUP(D18,dnit!A:D,3,FALSE),IF(C18=\"detran-pr\",VLOOKUP(D18,Composições!D:K,3,FALSE),IF(C18=\"sco/rj\",VLOOKUP(D18,scorj!B:G,3,FALSE)))))","v":"unid"},{"$f":"IF(C18=\"derpr\",VLOOKUP(D18,der!A:J,9,FALSE),IF(C18=\"dnit\",VLOOKUP(D18,dnit!A:E,5,FALSE),IF(C18=\"detran-pr\",VLOOKUP(D18,Composições!D:K,8,FALSE),IF(C18=\"sco/rj\",VLOOKUP(D18,scorj!B:G,5,FALSE)))))","v":411.30000000000109},{"$f":"IF(C18=\"derpr\",VLOOKUP(D18,der!A:J,10,FALSE),IF(C18=\"dnit\",VLOOKUP(D18,dnit!A:E,4,FALSE),IF(C18=\"detran-pr\",VLOOKUP(D18,Composições!D:K,7,FALSE),IF(C18=\"sco/rj\",VLOOKUP(D18,scorj!B:G,4,FALSE)))))","v":12011.65},{"$f":"IF(C18=\"derpr\",VLOOKUP(D18,der!A:J,7,FALSE),IF(C18=\"dnit\",VLOOKUP(D18,dnit!A:E,4,FALSE),IF(C18=\"detran-pr\",VLOOKUP(D18,Composições!D:K,6,FALSE),IF(C18=\"sco/rj\",VLOOKUP(D18,scorj!B:G,4,FALSE)))))","v":12422.95}]
["1.13","Conjunto para placa indicativa (Coluna, Braço, Montagem, Fundação) para placas até 3,00m² - Coluna Tipo I com projeção de 3,70m","DETRAN-PR","COMP.03",{"$f":"IF(C19=\"derpr\",der!$L$1,IF(C19=\"dnit\",dnit!$A$1,IF(C19=\"detran-pr\",scorj!$B$1,IF(C19=\"sco/rj\",scorj!$B$1))))","v":"2025-12-30"},{"$f":"IF(C19=\"derpr\",VLOOKUP(D19,der!A:J,3,FALSE),IF(C19=\"dnit\",VLOOKUP(D19,dnit!A:D,3,FALSE),IF(C19=\"detran-pr\",VLOOKUP(D19,Composições!D:K,3,FALSE),IF(C19=\"sco/rj\",VLOOKUP(D19,scorj!B:G,3,FALSE)))))","v":"unid"},{"$f":"IF(C19=\"derpr\",VLOOKUP(D19,der!A:J,9,FALSE),IF(C19=\"dnit\",VLOOKUP(D19,dnit!A:E,5,FALSE),IF(C19=\"detran-pr\",VLOOKUP(D19,Composições!D:K,8,FALSE),IF(C19=\"sco/rj\",VLOOKUP(D19,scorj!B:G,5,FALSE)))))","v":411.30000000000109},{"$f":"IF(C19=\"derpr\",VLOOKUP(D19,der!A:J,10,FALSE),IF(C19=\"dnit\",VLOOKUP(D19,dnit!A:E,4,FALSE),IF(C19=\"detran-pr\",VLOOKUP(D19,Composições!D:K,7,FALSE),IF(C19=\"sco/rj\",VLOOKUP(D19,scorj!B:G,4,FALSE)))))","v":12403.33},{"$f":"IF(C19=\"derpr\",VLOOKUP(D19,der!A:J,7,FALSE),IF(C19=\"dnit\",VLOOKUP(D19,dnit!A:E,4,FALSE),IF(C19=\"detran-pr\",VLOOKUP(D19,Composições!D:K,6,FALSE),IF(C19=\"sco/rj\",VLOOKUP(D19,scorj!B:G,4,FALSE)))))","v":12814.630000000001}]
["1.14","Conjunto para placa indicativa (Coluna, Braço, Montagem, Fundação) para placas até 4,50m² - Coluna Tipo II com projeção de 6,00m","DETRAN-PR","COMP.04",{"$f":"IF(C20=\"derpr\",der!$L$1,IF(C20=\"dnit\",dnit!$A$1,IF(C20=\"detran-pr\",scorj!$B$1,IF(C20=\"sco/rj\",scorj!$B$1))))","v":"2025-12-30"},{"$f":"IF(C20=\"derpr\",VLOOKUP(D20,der!A:J,3,FALSE),IF(C20=\"dnit\",VLOOKUP(D20,dnit!A:D,3,FALSE),IF(C20=\"detran-pr\",VLOOKUP(D20,Composições!D:K,3,FALSE),IF(C20=\"sco/rj\",VLOOKUP(D20,scorj!B:G,3,FALSE)))))","v":"unid"},{"$f":"IF(C20=\"derpr\",VLOOKUP(D20,der!A:J,9,FALSE),IF(C20=\"dnit\",VLOOKUP(D20,dnit!A:E,5,FALSE),IF(C20=\"detran-pr\",VLOOKUP(D20,Composições!D:K,8,FALSE),IF(C20=\"sco/rj\",VLOOKUP(D20,scorj!B:G,5,FALSE)))))","v":502.68000000000029},{"$f":"IF(C20=\"derpr\",VLOOKUP(D20,der!A:J,10,FALSE),IF(C20=\"dnit\",VLOOKUP(D20,dnit!A:E,4,FALSE),IF(C20=\"detran-pr\",VLOOKUP(D20,Composições!D:K,7,FALSE),IF(C20=\"sco/rj\",VLOOKUP(D20,scorj!B:G,4,FALSE)))))","v":17937.080000000002},{"$f":"IF(C20=\"derpr\",VLOOKUP(D20,der!A:J,7,FALSE),IF(C20=\"dnit\",VLOOKUP(D20,dnit!A:E,4,FALSE),IF(C20=\"detran-pr\",VLOOKUP(D20,Composições!D:K,6,FALSE),IF(C20=\"sco/rj\",VLOOKUP(D20,scorj!B:G,4,FALSE)))))","v":18439.760000000002}]
["1.15"," Retirada de poste simples de aco, diametro maior que 4\".(desonerado)","SCO/RJ","ST 64.15.0300 (/)",{"$f":"IF(C21=\"derpr\",der!$L$1,IF(C21=\"dnit\",dnit!$A$1,IF(C21=\"detran-pr\",scorj!$B$1,IF(C21=\"sco/rj\",scorj!$B$1))))","v":"2025-12-30"},{"$f":"IF(C21=\"derpr\",VLOOKUP(D21,der!A:J,3,FALSE),IF(C21=\"dnit\",VLOOKUP(D21,dnit!A:D,3,FALSE),IF(C21=\"detran-pr\",VLOOKUP(D21,Composições!D:K,3,FALSE),IF(C21=\"sco/rj\",VLOOKUP(D21,scorj!B:G,3,FALSE)))))","v":"un"},{"$f":"IF(C21=\"derpr\",VLOOKUP(D21,der!A:J,9,FALSE),IF(C21=\"dnit\",VLOOKUP(D21,dnit!A:E,5,FALSE),IF(C21=\"detran-pr\",VLOOKUP(D21,Composições!D:K,8,FALSE),IF(C21=\"sco/rj\",VLOOKUP(D21,scorj!B:G,5,FALSE)))))","v":0},{"$f":"IF(C21=\"derpr\",VLOOKUP(D21,der!A:J,10,FALSE),IF(C21=\"dnit\",VLOOKUP(D21,dnit!A:E,4,FALSE),IF(C21=\"detran-pr\",VLOOKUP(D21,Composições!D:K,7,FALSE),IF(C21=\"sco/rj\",VLOOKUP(D21,scorj!B:G,4,FALSE)))))","v":435.21},{"$f":"IF(C21=\"derpr\",VLOOKUP(D21,der!A:J,7,FALSE),IF(C21=\"dnit\",VLOOKUP(D21,dnit!A:E,4,FALSE),IF(C21=\"detran-pr\",VLOOKUP(D21,Composições!D:K,6,FALSE),IF(C21=\"sco/rj\",VLOOKUP(D21,scorj!B:G,4,FALSE)))))","v":435.21}]
["1.16","Retirada de poste simples de aço, diâmetro de 2\" (desonerado)","SCO/RJ","ST 64.15.0200 (A)",{"$f":"IF(C22=\"derpr\",der!$L$1,IF(C22=\"dnit\",dnit!$A$1,IF(C22=\"detran-pr\",scorj!$B$1,IF(C22=\"sco/rj\",scorj!$B$1))))","v":"2025-12-30"},{"$f":"IF(C22=\"derpr\",VLOOKUP(D22,der!A:J,3,FALSE),IF(C22=\"dnit\",VLOOKUP(D22,dnit!A:D,3,FALSE),IF(C22=\"detran-pr\",VLOOKUP(D22,Composições!D:K,3,FALSE),IF(C22=\"sco/rj\",VLOOKUP(D22,scorj!B:G,3,FALSE)))))","v":"un"},{"$f":"IF(C22=\"derpr\",VLOOKUP(D22,der!A:J,9,FALSE),IF(C22=\"dnit\",VLOOKUP(D22,dnit!A:E,5,FALSE),IF(C22=\"detran-pr\",VLOOKUP(D22,Composições!D:K,8,FALSE),IF(C22=\"sco/rj\",VLOOKUP(D22,scorj!B:G,5,FALSE)))))","v":0},{"$f":"IF(C22=\"derpr\",VLOOKUP(D22,der!A:J,10,FALSE),IF(C22=\"dnit\",VLOOKUP(D22,dnit!A:E,4,FALSE),IF(C22=\"detran-pr\",VLOOKUP(D22,Composições!D:K,7,FALSE),IF(C22=\"sco/rj\",VLOOKUP(D22,scorj!B:G,4,FALSE)))))","v":53.26},{"$f":"IF(C22=\"derpr\",VLOOKUP(D22,der!A:J,7,FALSE),IF(C22=\"dnit\",VLOOKUP(D22,dnit!A:E,4,FALSE),IF(C22=\"detran-pr\",VLOOKUP(D22,Composições!D:K,6,FALSE),IF(C22=\"sco/rj\",VLOOKUP(D22,scorj!B:G,4,FALSE)))))","v":53.26}]
["1.17","Remoção de placa de sinalização","DNIT",5213364,{"$f":"IF(C23=\"derpr\",der!$L$1,IF(C23=\"dnit\",dnit!$A$1,IF(C23=\"detran-pr\",scorj!$B$1,IF(C23=\"sco/rj\",scorj!$B$1))))","v":"2025-10-01"},{"$f":"IF(C23=\"derpr\",VLOOKUP(D23,der!A:J,3,FALSE),IF(C23=\"dnit\",VLOOKUP(D23,dnit!A:D,3,FALSE),IF(C23=\"detran-pr\",VLOOKUP(D23,Composições!D:K,3,FALSE),IF(C23=\"sco/rj\",VLOOKUP(D23,scorj!B:G,3,FALSE)))))","v":"m²"},{"$f":"IF(C23=\"derpr\",VLOOKUP(D23,der!A:J,9,FALSE),IF(C23=\"dnit\",VLOOKUP(D23,dnit!A:E,5,FALSE),IF(C23=\"detran-pr\",VLOOKUP(D23,Composições!D:K,8,FALSE),IF(C23=\"sco/rj\",VLOOKUP(D23,scorj!B:G,5,FALSE)))))","v":0},{"$f":"IF(C23=\"derpr\",VLOOKUP(D23,der!A:J,10,FALSE),IF(C23=\"dnit\",VLOOKUP(D23,dnit!A:E,4,FALSE),IF(C23=\"detran-pr\",VLOOKUP(D23,Composições!D:K,7,FALSE),IF(C23=\"sco/rj\",VLOOKUP(D23,scorj!B:G,4,FALSE)))))","v":26.2},{"$f":"IF(C23=\"derpr\",VLOOKUP(D23,der!A:J,7,FALSE),IF(C23=\"dnit\",VLOOKUP(D23,dnit!A:E,4,FALSE),IF(C23=\"detran-pr\",VLOOKUP(D23,Composições!D:K,6,FALSE),IF(C23=\"sco/rj\",VLOOKUP(D23,scorj!B:G,4,FALSE)))))","v":26.2}]
["1.18","Suporte metálico galv. fogo d=2,5\" c/tampa e aletas anti-giro, h=2,00","DETRAN-PR","COMP.01",{"$f":"IF(C24=\"derpr\",der!$L$1,IF(C24=\"dnit\",dnit!$A$1,IF(C24=\"detran-pr\",scorj!$B$1,IF(C24=\"sco/rj\",scorj!$B$1))))","v":"2025-12-30"},{"$f":"IF(C24=\"derpr\",VLOOKUP(D24,der!A:J,3,FALSE),IF(C24=\"dnit\",VLOOKUP(D24,dnit!A:D,3,FALSE),IF(C24=\"detran-pr\",VLOOKUP(D24,Composições!D:K,3,FALSE),IF(C24=\"sco/rj\",VLOOKUP(D24,scorj!B:G,3,FALSE)))))","v":"unid"},{"$f":"IF(C24=\"derpr\",VLOOKUP(D24,der!A:J,9,FALSE),IF(C24=\"dnit\",VLOOKUP(D24,dnit!A:E,5,FALSE),IF(C24=\"detran-pr\",VLOOKUP(D24,Composições!D:K,8,FALSE),IF(C24=\"sco/rj\",VLOOKUP(D24,scorj!B:G,5,FALSE)))))","v":38.51},{"$f":"IF(C24=\"derpr\",VLOOKUP(D24,der!A:J,10,FALSE),IF(C24=\"dnit\",VLOOKUP(D24,dnit!A:E,4,FALSE),IF(C24=\"detran-pr\",VLOOKUP(D24,Composições!D:K,7,FALSE),IF(C24=\"sco/rj\",VLOOKUP(D24,scorj!B:G,4,FALSE)))))","v":261.14},{"$f":"IF(C24=\"derpr\",VLOOKUP(D24,der!A:J,7,FALSE),IF(C24=\"dnit\",VLOOKUP(D24,dnit!A:E,4,FALSE),IF(C24=\"detran-pr\",VLOOKUP(D24,Composições!D:K,6,FALSE),IF(C24=\"sco/rj\",VLOOKUP(D24,scorj!B:G,4,FALSE)))))","v":299.64999999999998}]
["1.19","Suporte metálico galv. fogo perfil \"C\" 250x85x25x2,70mm, h=5,00m","DERPR",822030,{"$f":"IF(C25=\"derpr\",der!$L$1,IF(C25=\"dnit\",dnit!$A$1,IF(C25=\"detran-pr\",scorj!$B$1,IF(C25=\"sco/rj\",scorj!$B$1))))","v":"2025-08-31"},{"$f":"IF(C25=\"derpr\",VLOOKUP(D25,der!A:J,3,FALSE),IF(C25=\"dnit\",VLOOKUP(D25,dnit!A:D,3,FALSE),IF(C25=\"detran-pr\",VLOOKUP(D25,Composições!D:K,3,FALSE),IF(C25=\"sco/rj\",VLOOKUP(D25,scorj!B:G,3,FALSE)))))","v":"ud"},{"$f":"IF(C25=\"derpr\",VLOOKUP(D25,der!A:J,9,FALSE),IF(C25=\"dnit\",VLOOKUP(D25,dnit!A:E,5,FALSE),IF(C25=\"detran-pr\",VLOOKUP(D25,Composições!D:K,8,FALSE),IF(C25=\"sco/rj\",VLOOKUP(D25,scorj!B:G,5,FALSE)))))","v":115.39},{"$f":"IF(C25=\"derpr\",VLOOKUP(D25,der!A:J,10,FALSE),IF(C25=\"dnit\",VLOOKUP(D25,dnit!A:E,4,FALSE),IF(C25=\"detran-pr\",VLOOKUP(D25,Composições!D:K,7,FALSE),IF(C25=\"sco/rj\",VLOOKUP(D25,scorj!B:G,4,FALSE)))))","v":1323.76},{"$f":"IF(C25=\"derpr\",VLOOKUP(D25,der!A:J,7,FALSE),IF(C25=\"dnit\",VLOOKUP(D25,dnit!A:E,4,FALSE),IF(C25=\"detran-pr\",VLOOKUP(D25,Composições!D:K,6,FALSE),IF(C25=\"sco/rj\",VLOOKUP(D25,scorj!B:G,4,FALSE)))))","v":1439.15}]
["1.20","Cilindro flexível delimitador de tráfego com duas faixas refletivas e chumbador - D = 20 cm e H = 80 cm","DNIT",5213837,{"$f":"IF(C26=\"derpr\",der!$L$1,IF(C26=\"dnit\",dnit!$A$1,IF(C26=\"detran-pr\",scorj!$B$1,IF(C26=\"sco/rj\",scorj!$B$1))))","v":"2025-10-01"},{"$f":"IF(C26=\"derpr\",VLOOKUP(D26,der!A:J,3,FALSE),IF(C26=\"dnit\",VLOOKUP(D26,dnit!A:D,3,FALSE),IF(C26=\"detran-pr\",VLOOKUP(D26,Composições!D:K,3,FALSE),IF(C26=\"sco/rj\",VLOOKUP(D26,scorj!B:G,3,FALSE)))))","v":"un"},{"$f":"ROUND(I26-H26,2)","v":6.51},{"$f":"ROUND(197.2935+0.1259,2)","v":197.42},{"$f":"IF(C26=\"derpr\",VLOOKUP(D26,der!A:J,7,FALSE),IF(C26=\"dnit\",VLOOKUP(D26,dnit!A:E,4,FALSE),IF(C26=\"detran-pr\",VLOOKUP(D26,Composições!D:K,6,FALSE),IF(C26=\"sco/rj\",VLOOKUP(D26,scorj!B:G,4,FALSE)))))","v":203.93}]
["1.21","Placa sinalização ativa inteligente com iluminação interna, duplo módulo de iluminação de faixa, detecção automática de pedestres e alimentação híbrida (fotovoltaica e rede elétrica - A = 0,84m²","DETRAN-PR",{"$f":"Composições!$D$249","v":"COMP.17"},{"$f":"IF(C27=\"derpr\",der!$L$1,IF(C27=\"dnit\",dnit!$A$1,IF(C27=\"detran-pr\",scorj!$B$1,IF(C27=\"sco/rj\",scorj!$B$1))))","v":"2025-12-30"},{"$f":"IF(C27=\"derpr\",VLOOKUP(D27,der!A:J,3,FALSE),IF(C27=\"dnit\",VLOOKUP(D27,dnit!A:D,3,FALSE),IF(C27=\"detran-pr\",VLOOKUP(D27,Composições!D:K,3,FALSE),IF(C27=\"sco/rj\",VLOOKUP(D27,scorj!B:G,3,FALSE)))))","v":"Unid."},{"$f":"ROUND(I27-H27,2)","v":7002.93},{"$f":"IF(C27=\"derpr\",VLOOKUP(D27,der!A:J,10,FALSE),IF(C27=\"dnit\",VLOOKUP(D27,dnit!A:E,4,FALSE),IF(C27=\"detran-pr\",VLOOKUP(D27,Composições!D:K,7,FALSE),IF(C27=\"sco/rj\",VLOOKUP(D27,scorj!B:G,4,FALSE)))))","v":16340.169999999998},{"$f":"IF(C27=\"derpr\",VLOOKUP(D27,der!A:J,7,FALSE),IF(C27=\"dnit\",VLOOKUP(D27,dnit!A:E,4,FALSE),IF(C27=\"detran-pr\",VLOOKUP(D27,Composições!D:K,6,FALSE),IF(C27=\"sco/rj\",VLOOKUP(D27,scorj!B:G,4,FALSE)))))","v":23343.1}]
["1.22","Placa sinalização piscante dupla ativa, alimentação fotovoltaica, em chapa de aço nº 18 galvanizada c/ película refletiva Tipo A (prismática) - A = 2m²","DETRAN-PR",{"$f":"Composições!$D$253","v":"COMP.18"},{"$f":"IF(C28=\"derpr\",der!$L$1,IF(C28=\"dnit\",dnit!$A$1,IF(C28=\"detran-pr\",scorj!$B$1,IF(C28=\"sco/rj\",scorj!$B$1))))","v":"2025-12-30"},{"$f":"IF(C28=\"derpr\",VLOOKUP(D28,der!A:J,3,FALSE),IF(C28=\"dnit\",VLOOKUP(D28,dnit!A:D,3,FALSE),IF(C28=\"detran-pr\",VLOOKUP(D28,Composições!D:K,3,FALSE),IF(C28=\"sco/rj\",VLOOKUP(D28,scorj!B:G,3,FALSE)))))","v":"Unid."},{"$f":"ROUND(I28-H28,2)","v":3916.74},{"$f":"IF(C28=\"derpr\",VLOOKUP(D28,der!A:J,10,FALSE),IF(C28=\"dnit\",VLOOKUP(D28,dnit!A:E,4,FALSE),IF(C28=\"detran-pr\",VLOOKUP(D28,Composições!D:K,7,FALSE),IF(C28=\"sco/rj\",VLOOKUP(D28,scorj!B:G,4,FALSE)))))","v":9139.07},{"$f":"IF(C28=\"derpr\",VLOOKUP(D28,der!A:J,7,FALSE),IF(C28=\"dnit\",VLOOKUP(D28,dnit!A:E,4,FALSE),IF(C28=\"detran-pr\",VLOOKUP(D28,Composições!D:K,6,FALSE),IF(C28=\"sco/rj\",VLOOKUP(D28,scorj!B:G,4,FALSE)))))","v":13055.81}]
["1.23","Placa sinalização piscante mono ativa, em chapa de aço nº 18 galvanizada c/ película refletiva Tipo A (prismática) - A = 0,72m²","DETRAN-PR","COMP.19",{"$f":"IF(C29=\"derpr\",der!$L$1,IF(C29=\"dnit\",dnit!$A$1,IF(C29=\"detran-pr\",scorj!$B$1,IF(C29=\"sco/rj\",scorj!$B$1))))","v":"2025-12-30"},{"$f":"IF(C29=\"derpr\",VLOOKUP(D29,der!A:J,3,FALSE),IF(C29=\"dnit\",VLOOKUP(D29,dnit!A:D,3,FALSE),IF(C29=\"detran-pr\",VLOOKUP(D29,Composições!D:K,3,FALSE),IF(C29=\"sco/rj\",VLOOKUP(D29,scorj!B:G,3,FALSE)))))","v":"Unid."},{"$f":"ROUND(I29-H29,2)","v":1057.1099999999999},{"$f":"IF(C29=\"derpr\",VLOOKUP(D29,der!A:J,10,FALSE),IF(C29=\"dnit\",VLOOKUP(D29,dnit!A:E,4,FALSE),IF(C29=\"detran-pr\",VLOOKUP(D29,Composições!D:K,7,FALSE),IF(C29=\"sco/rj\",VLOOKUP(D29,scorj!B:G,4,FALSE)))))","v":2466.5899999999997},{"$f":"IF(C29=\"derpr\",VLOOKUP(D29,der!A:J,7,FALSE),IF(C29=\"dnit\",VLOOKUP(D29,dnit!A:E,4,FALSE),IF(C29=\"detran-pr\",VLOOKUP(D29,Composições!D:K,6,FALSE),IF(C29=\"sco/rj\",VLOOKUP(D29,scorj!B:G,4,FALSE)))))","v":3523.7}]
["1.24","Placa sinalização piscante mono ativa, em chapa de aço nº 18 galvanizada c/ película refletiva Tipo A (prismática) - A = 0,84m²","DETRAN-PR","COMP.20",{"$f":"IF(C30=\"derpr\",der!$L$1,IF(C30=\"dnit\",dnit!$A$1,IF(C30=\"detran-pr\",scorj!$B$1,IF(C30=\"sco/rj\",scorj!$B$1))))","v":"2025-12-30"},{"$f":"IF(C30=\"derpr\",VLOOKUP(D30,der!A:J,3,FALSE),IF(C30=\"dnit\",VLOOKUP(D30,dnit!A:D,3,FALSE),IF(C30=\"detran-pr\",VLOOKUP(D30,Composições!D:K,3,FALSE),IF(C30=\"sco/rj\",VLOOKUP(D30,scorj!B:G,3,FALSE)))))","v":"Unid."},{"$f":"ROUND(I30-H30,2)","v":940.43},{"$f":"IF(C30=\"derpr\",VLOOKUP(D30,der!A:J,10,FALSE),IF(C30=\"dnit\",VLOOKUP(D30,dnit!A:E,4,FALSE),IF(C30=\"detran-pr\",VLOOKUP(D30,Composições!D:K,7,FALSE),IF(C30=\"sco/rj\",VLOOKUP(D30,scorj!B:G,4,FALSE)))))","v":2194.33},{"$f":"IF(C30=\"derpr\",VLOOKUP(D30,der!A:J,7,FALSE),IF(C30=\"dnit\",VLOOKUP(D30,dnit!A:E,4,FALSE),IF(C30=\"detran-pr\",VLOOKUP(D30,Composições!D:K,6,FALSE),IF(C30=\"sco/rj\",VLOOKUP(D30,scorj!B:G,4,FALSE)))))","v":3134.76}]
[2,"SINALIZAÇÃO HORIZONTAL"]
["2.1","Faixa de sinalização horizontal c/tinta resina acrílica base água com limpeza do pavimento com jato d'água","DETRAN-PR",{"$f":"Composições!$D$111","v":"COMP.10"},{"$f":"IF(C32=\"derpr\",der!$L$1,IF(C32=\"dnit\",dnit!$A$1,IF(C32=\"detran-pr\",scorj!$B$1,IF(C32=\"sco/rj\",scorj!$B$1))))","v":"2025-12-30"},{"$f":"IF(C32=\"derpr\",VLOOKUP(D32,der!A:J,3,FALSE),IF(C32=\"dnit\",VLOOKUP(D32,dnit!A:D,3,FALSE),IF(C32=\"detran-pr\",VLOOKUP(D32,Composições!D:K,3,FALSE),IF(C32=\"sco/rj\",VLOOKUP(D32,scorj!B:G,3,FALSE)))))","v":"m²"},{"$f":"IF(C32=\"derpr\",VLOOKUP(D32,der!A:J,9,FALSE),IF(C32=\"dnit\",VLOOKUP(D32,dnit!A:E,5,FALSE),IF(C32=\"detran-pr\",VLOOKUP(D32,Composições!D:K,8,FALSE),IF(C32=\"sco/rj\",VLOOKUP(D32,scorj!B:G,5,FALSE)))))","v":5.7999999999999989},{"$f":"IF(C32=\"derpr\",VLOOKUP(D32,der!A:J,10,FALSE),IF(C32=\"dnit\",VLOOKUP(D32,dnit!A:E,4,FALSE),IF(C32=\"detran-pr\",VLOOKUP(D32,Composições!D:K,7,FALSE),IF(C32=\"sco/rj\",VLOOKUP(D32,scorj!B:G,4,FALSE)))))","v":18.93},{"$f":"IF(C32=\"derpr\",VLOOKUP(D32,der!A:J,7,FALSE),IF(C32=\"dnit\",VLOOKUP(D32,dnit!A:E,4,FALSE),IF(C32=\"detran-pr\",VLOOKUP(D32,Composições!D:K,6,FALSE),IF(C32=\"sco/rj\",VLOOKUP(D32,scorj!B:G,4,FALSE)))))","v":24.73}]
["2.2","Faixa de sinalização horizontal c/tinta resina acrílica base solvente","DETRAN-PR",{"$f":"Composições!$D$131","v":"COMP.11"},{"$f":"IF(C33=\"derpr\",der!$L$1,IF(C33=\"dnit\",dnit!$A$1,IF(C33=\"detran-pr\",scorj!$B$1,IF(C33=\"sco/rj\",scorj!$B$1))))","v":"2025-12-30"},{"$f":"IF(C33=\"derpr\",VLOOKUP(D33,der!A:J,3,FALSE),IF(C33=\"dnit\",VLOOKUP(D33,dnit!A:D,3,FALSE),IF(C33=\"detran-pr\",VLOOKUP(D33,Composições!D:K,3,FALSE),IF(C33=\"sco/rj\",VLOOKUP(D33,scorj!B:G,3,FALSE)))))","v":"m²"},{"$f":"IF(C33=\"derpr\",VLOOKUP(D33,der!A:J,9,FALSE),IF(C33=\"dnit\",VLOOKUP(D33,dnit!A:E,5,FALSE),IF(C33=\"detran-pr\",VLOOKUP(D33,Composições!D:K,8,FALSE),IF(C33=\"sco/rj\",VLOOKUP(D33,scorj!B:G,5,FALSE)))))","v":5.7999999999999989},{"$f":"IF(C33=\"derpr\",VLOOKUP(D33,der!A:J,10,FALSE),IF(C33=\"dnit\",VLOOKUP(D33,dnit!A:E,4,FALSE),IF(C33=\"detran-pr\",VLOOKUP(D33,Composições!D:K,7,FALSE),IF(C33=\"sco/rj\",VLOOKUP(D33,scorj!B:G,4,FALSE)))))","v":24.61},{"$f":"IF(C33=\"derpr\",VLOOKUP(D33,der!A:J,7,FALSE),IF(C33=\"dnit\",VLOOKUP(D33,dnit!A:E,4,FALSE),IF(C33=\"detran-pr\",VLOOKUP(D33,Composições!D:K,6,FALSE),IF(C33=\"sco/rj\",VLOOKUP(D33,scorj!B:G,4,FALSE)))))","v":30.41}]
["2.3","Faixa de sinalização horizontal - termoplástico por aspersão - e=1,5mm","DETRAN-PR",{"$f":"Composições!$D$152","v":"COMP.12"},{"$f":"IF(C34=\"derpr\",der!$L$1,IF(C34=\"dnit\",dnit!$A$1,IF(C34=\"detran-pr\",scorj!$B$1,IF(C34=\"sco/rj\",scorj!$B$1))))","v":"2025-12-30"},{"$f":"IF(C34=\"derpr\",VLOOKUP(D34,der!A:J,3,FALSE),IF(C34=\"dnit\",VLOOKUP(D34,dnit!A:D,3,FALSE),IF(C34=\"detran-pr\",VLOOKUP(D34,Composições!D:K,3,FALSE),IF(C34=\"sco/rj\",VLOOKUP(D34,scorj!B:G,3,FALSE)))))","v":"m²"},{"$f":"IF(C34=\"derpr\",VLOOKUP(D34,der!A:J,9,FALSE),IF(C34=\"dnit\",VLOOKUP(D34,dnit!A:E,5,FALSE),IF(C34=\"detran-pr\",VLOOKUP(D34,Composições!D:K,8,FALSE),IF(C34=\"sco/rj\",VLOOKUP(D34,scorj!B:G,5,FALSE)))))","v":7.7999999999999989},{"$f":"IF(C34=\"derpr\",VLOOKUP(D34,der!A:J,10,FALSE),IF(C34=\"dnit\",VLOOKUP(D34,dnit!A:E,4,FALSE),IF(C34=\"detran-pr\",VLOOKUP(D34,Composições!D:K,7,FALSE),IF(C34=\"sco/rj\",VLOOKUP(D34,scorj!B:G,4,FALSE)))))","v":34.779999999999994},{"$f":"IF(C34=\"derpr\",VLOOKUP(D34,der!A:J,7,FALSE),IF(C34=\"dnit\",VLOOKUP(D34,dnit!A:E,4,FALSE),IF(C34=\"detran-pr\",VLOOKUP(D34,Composições!D:K,6,FALSE),IF(C34=\"sco/rj\",VLOOKUP(D34,scorj!B:G,4,FALSE)))))","v":42.58}]
["2.4","Pintura de setas e zebrados - termoplástico por extrusão - e=3mm","DETRAN-PR",{"$f":"Composições!$D$171","v":"COMP.13"},{"$f":"IF(C35=\"derpr\",der!$L$1,IF(C35=\"dnit\",dnit!$A$1,IF(C35=\"detran-pr\",scorj!$B$1,IF(C35=\"sco/rj\",scorj!$B$1))))","v":"2025-12-30"},{"$f":"IF(C35=\"derpr\",VLOOKUP(D35,der!A:J,3,FALSE),IF(C35=\"dnit\",VLOOKUP(D35,dnit!A:D,3,FALSE),IF(C35=\"detran-pr\",VLOOKUP(D35,Composições!D:K,3,FALSE),IF(C35=\"sco/rj\",VLOOKUP(D35,scorj!B:G,3,FALSE)))))","v":"m²"},{"$f":"IF(C35=\"derpr\",VLOOKUP(D35,der!A:J,9,FALSE),IF(C35=\"dnit\",VLOOKUP(D35,dnit!A:E,5,FALSE),IF(C35=\"detran-pr\",VLOOKUP(D35,Composições!D:K,8,FALSE),IF(C35=\"sco/rj\",VLOOKUP(D35,scorj!B:G,5,FALSE)))))","v":7.7999999999999989},{"$f":"IF(C35=\"derpr\",VLOOKUP(D35,der!A:J,10,FALSE),IF(C35=\"dnit\",VLOOKUP(D35,dnit!A:E,4,FALSE),IF(C35=\"detran-pr\",VLOOKUP(D35,Composições!D:K,7,FALSE),IF(C35=\"sco/rj\",VLOOKUP(D35,scorj!B:G,4,FALSE)))))","v":49.089999999999996},{"$f":"IF(C35=\"derpr\",VLOOKUP(D35,der!A:J,7,FALSE),IF(C35=\"dnit\",VLOOKUP(D35,dnit!A:E,4,FALSE),IF(C35=\"detran-pr\",VLOOKUP(D35,Composições!D:K,6,FALSE),IF(C35=\"sco/rj\",VLOOKUP(D35,scorj!B:G,4,FALSE)))))","v":56.89}]
["2.5","Pintura de faixa - plástico a frio bicomponente à base de resinas metacrílicas - espessura de 1,5 mm - plano","DETRAN-PR",{"$f":"Composições!$D$209","v":"COMP.15"},{"$f":"IF(C36=\"derpr\",der!$L$1,IF(C36=\"dnit\",dnit!$A$1,IF(C36=\"detran-pr\",scorj!$B$1,IF(C36=\"sco/rj\",scorj!$B$1))))","v":"2025-12-30"},{"$f":"IF(C36=\"derpr\",VLOOKUP(D36,der!A:J,3,FALSE),IF(C36=\"dnit\",VLOOKUP(D36,dnit!A:D,3,FALSE),IF(C36=\"detran-pr\",VLOOKUP(D36,Composições!D:K,3,FALSE),IF(C36=\"sco/rj\",VLOOKUP(D36,scorj!B:G,3,FALSE)))))","v":"m²"},{"$f":"IF(C36=\"derpr\",VLOOKUP(D36,der!A:J,9,FALSE),IF(C36=\"dnit\",VLOOKUP(D36,dnit!A:E,5,FALSE),IF(C36=\"detran-pr\",VLOOKUP(D36,Composições!D:K,8,FALSE),IF(C36=\"sco/rj\",VLOOKUP(D36,scorj!B:G,5,FALSE)))))","v":3.59},{"$f":"IF(C36=\"derpr\",VLOOKUP(D36,der!A:J,10,FALSE),IF(C36=\"dnit\",VLOOKUP(D36,dnit!A:E,4,FALSE),IF(C36=\"detran-pr\",VLOOKUP(D36,Composições!D:K,7,FALSE),IF(C36=\"sco/rj\",VLOOKUP(D36,scorj!B:G,4,FALSE)))))","v":124.77},{"$f":"IF(C36=\"derpr\",VLOOKUP(D36,der!A:J,7,FALSE),IF(C36=\"dnit\",VLOOKUP(D36,dnit!A:E,4,FALSE),IF(C36=\"detran-pr\",VLOOKUP(D36,Composições!D:K,6,FALSE),IF(C36=\"sco/rj\",VLOOKUP(D36,scorj!B:G,4,FALSE)))))","v":128.35999999999999}]
["2.6","Pintura de faixa - plástico a frio tricomponente à base de resinas metacrílicas - espessura de 0,6 mm - aspersão","DETRAN-PR",{"$f":"Composições!$D$229","v":"COMP.16"},{"$f":"IF(C37=\"derpr\",der!$L$1,IF(C37=\"dnit\",dnit!$A$1,IF(C37=\"detran-pr\",scorj!$B$1,IF(C37=\"sco/rj\",scorj!$B$1))))","v":"2025-12-30"},{"$f":"IF(C37=\"derpr\",VLOOKUP(D37,der!A:J,3,FALSE),IF(C37=\"dnit\",VLOOKUP(D37,dnit!A:D,3,FALSE),IF(C37=\"detran-pr\",VLOOKUP(D37,Composições!D:K,3,FALSE),IF(C37=\"sco/rj\",VLOOKUP(D37,scorj!B:G,3,FALSE)))))","v":"m²"},{"$f":"IF(C37=\"derpr\",VLOOKUP(D37,der!A:J,9,FALSE),IF(C37=\"dnit\",VLOOKUP(D37,dnit!A:E,5,FALSE),IF(C37=\"detran-pr\",VLOOKUP(D37,Composições!D:K,8,FALSE),IF(C37=\"sco/rj\",VLOOKUP(D37,scorj!B:G,5,FALSE)))))","v":2.27},{"$f":"IF(C37=\"derpr\",VLOOKUP(D37,der!A:J,10,FALSE),IF(C37=\"dnit\",VLOOKUP(D37,dnit!A:E,4,FALSE),IF(C37=\"detran-pr\",VLOOKUP(D37,Composições!D:K,7,FALSE),IF(C37=\"sco/rj\",VLOOKUP(D37,scorj!B:G,4,FALSE)))))","v":69.180000000000007},{"$f":"IF(C37=\"derpr\",VLOOKUP(D37,der!A:J,7,FALSE),IF(C37=\"dnit\",VLOOKUP(D37,dnit!A:E,4,FALSE),IF(C37=\"detran-pr\",VLOOKUP(D37,Composições!D:K,6,FALSE),IF(C37=\"sco/rj\",VLOOKUP(D37,scorj!B:G,4,FALSE)))))","v":71.449999999999989}]
["2.7","Tacha refletiva monodirecional","DERPR",870000,{"$f":"IF(C38=\"derpr\",der!$L$1,IF(C38=\"dnit\",dnit!$A$1,IF(C38=\"detran-pr\",scorj!$B$1,IF(C38=\"sco/rj\",scorj!$B$1))))","v":"2025-08-31"},{"$f":"IF(C38=\"derpr\",VLOOKUP(D38,der!A:J,3,FALSE),IF(C38=\"dnit\",VLOOKUP(D38,dnit!A:D,3,FALSE),IF(C38=\"detran-pr\",VLOOKUP(D38,Composições!D:K,3,FALSE),IF(C38=\"sco/rj\",VLOOKUP(D38,scorj!B:G,3,FALSE)))))","v":"ud"},{"$f":"VLOOKUP(D38,der!A:J,9,FALSE)","v":8.6},{"$f":"VLOOKUP(D38,der!A:J,10,FALSE)","v":7.8},{"$f":"VLOOKUP('PLANILHA REFERENCIA DETRAN PR'!D38,der!A:J,7,FALSE)","v":16.399999999999999}]
["2.8","Tacha refletiva bidirecional","DERPR",871000,{"$f":"IF(C39=\"derpr\",der!$L$1,IF(C39=\"dnit\",dnit!$A$1,IF(C39=\"detran-pr\",scorj!$B$1,IF(C39=\"sco/rj\",scorj!$B$1))))","v":"2025-08-31"},{"$f":"IF(C39=\"derpr\",VLOOKUP(D39,der!A:J,3,FALSE),IF(C39=\"dnit\",VLOOKUP(D39,dnit!A:D,3,FALSE),IF(C39=\"detran-pr\",VLOOKUP(D39,Composições!D:K,3,FALSE),IF(C39=\"sco/rj\",VLOOKUP(D39,scorj!B:G,3,FALSE)))))","v":"ud"},{"$f":"VLOOKUP(D39,der!A:J,9,FALSE)","v":8.6},{"$f":"VLOOKUP(D39,der!A:J,10,FALSE)","v":8.1999999999999993},{"$f":"VLOOKUP('PLANILHA REFERENCIA DETRAN PR'!D39,der!A:J,7,FALSE)","v":16.8}]
["2.9","Tachão refletivo monodirecional","DERPR",872000,{"$f":"IF(C40=\"derpr\",der!$L$1,IF(C40=\"dnit\",dnit!$A$1,IF(C40=\"detran-pr\",scorj!$B$1,IF(C40=\"sco/rj\",scorj!$B$1))))","v":"2025-08-31"},{"$f":"IF(C40=\"derpr\",VLOOKUP(D40,der!A:J,3,FALSE),IF(C40=\"dnit\",VLOOKUP(D40,dnit!A:D,3,FALSE),IF(C40=\"detran-pr\",VLOOKUP(D40,Composições!D:K,3,FALSE),IF(C40=\"sco/rj\",VLOOKUP(D40,scorj!B:G,3,FALSE)))))","v":"ud"},{"$f":"VLOOKUP(D40,der!A:J,9,FALSE)","v":8.6},{"$f":"VLOOKUP(D40,der!A:J,10,FALSE)","v":29.68},{"$f":"VLOOKUP('PLANILHA REFERENCIA DETRAN PR'!D40,der!A:J,7,FALSE)","v":38.28}]
["2.10","Tachão refletivo bidirecional","DERPR",873000,{"$f":"IF(C41=\"derpr\",der!$L$1,IF(C41=\"dnit\",dnit!$A$1,IF(C41=\"detran-pr\",scorj!$B$1,IF(C41=\"sco/rj\",scorj!$B$1))))","v":"2025-08-31"},{"$f":"IF(C41=\"derpr\",VLOOKUP(D41,der!A:J,3,FALSE),IF(C41=\"dnit\",VLOOKUP(D41,dnit!A:D,3,FALSE),IF(C41=\"detran-pr\",VLOOKUP(D41,Composições!D:K,3,FALSE),IF(C41=\"sco/rj\",VLOOKUP(D41,scorj!B:G,3,FALSE)))))","v":"ud"},{"$f":"VLOOKUP(D41,der!A:J,9,FALSE)","v":8.6},{"$f":"VLOOKUP(D41,der!A:J,10,FALSE)","v":32.299999999999997},{"$f":"VLOOKUP('PLANILHA REFERENCIA DETRAN PR'!D41,der!A:J,7,FALSE)","v":40.9}]
["2.11","Fresagem de pavimento asfáltico com espessura de até 5cm, em vias arteriais, inclusive remoção do material fresado até 10km e varrição","SIURB-INFRA","09.04.00","2025-10-01","M2",{"$f":"0.26","v":0.26},{"$f":"ROUND(20.04-G42,2)","v":19.78},{"$f":"H42+G42","v":20.040000000000003}]

{"sheet":"POR LOTE","index":10,"n_rows":107,"n_cols":43,"rows_kept":107,"cut":false,"hidden":true,"merged":[[67,3,68,6]]}
[null,null,null,null,null,"Com BDI","Sem BDI","BDI"]
[null,null,null,null,"Lote 01",{"$f":"SUMIF(E10:E61,\"Lote 01\",F10:F61)","v":4793631.9000000004},{"$f":"TRUNC(SUMIF(E10:E61,\"Lote 01\",B10:B61),2)","v":3925182.14},{"$f":"F2/G2-1","v":0.22125081818496195}]
[null,null,null,null,"Lote 02",{"$f":"SUMIF(E10:E61,\"Lote 02\",F10:F61)","v":4030999.25},{"$f":"SUMIF(E10:E61,\"Lote 02\",B10:B61)","v":3333482.5900000003},{"$f":"F3/G3-1","v":0.20924562860848761}]
[null,null,null,null,"Lote 03",{"$f":"SUMIF(E10:E61,\"Lote 03\",F10:F61)","v":4723765.4300000006},{"$f":"SUMIF(E10:E61,\"Lote 03\",B10:B61)","v":3887224.1899999995},{"$f":"F4/G4-1","v":0.21520272541831487}]
[null,null,null,null,"Lote 04",{"$f":"SUMIF(E10:E61,\"Lote 04\",F10:F61)","v":4057588.1599999997},{"$f":"SUMIF(E10:E61,\"Lote 04\",B10:B61)","v":3318853.1599999997},{"$f":"F5/G5-1","v":0.22258743137644577}]
[null,null,null,null,null,{"$f":"ROUND(SUM(F2:F5),2)","v":17605984.739999998}]
[null,null,null,null,null,null,null,null,null,null,null,null,null,null,null,null,null,null,null,null,null,null,null,null,null,null,null,null,null,null,null,null,"2.1","2.2","2.3","2.4","2.5","2.6","2.7","2.8","2.9","2.10","2.11"]
[null,null,null,null,null,null,null,172.1,129.08000000000001,112.94,145.21,268.92,537.82000000000005,810.79,675.66,409.61,465.61,520.75,12422.95,12814.63,18439.759999999998,435.21,53.26,26.2,299.64999999999998,1439.15,203.93,23343.1,13055.81,3523.7,3134.76,null,24.73,30.41,42.58,56.89,128.36000000000001,71.45,16.399999999999999,16.8,38.28,40.9,20.04]
["BDI","Valor sem Bdi","BDI","Cidade","Lote","Valor Previsto",1,"1.1","1.2","1.3","1.4","1.5","1.6","1.7","1.8","1.9","1.10","1.11","1.12","1.13","1.14","1.15","1.16","1.17","1.18","1.19","1.20","1.21","1.22","1.23","1.24",2,"2.1","2.2","2.3","2.4","2.5","2.6","2.7","2.8","2.9","2.10","2.11"]
[{"$f":"TRUNC((B10*C10),2)","v":62673.58},{"$f":"TRUNC(SUMPRODUCT($H$8:$AQ$8,H10:AQ10),2)","v":277801.96999999997},0.22560524532019688,"Anahy","Lote 01",{"$f":"ROUND(B10+(B10*C10),2)","v":340475.55},"-",17,1,77,26,null,47.32,null,null,111,42,null,8,1,1,null,10,2.63,null,null,null,null,null,null,null,null,null,1309.53,null,null,null,null,null,null,null,null,36.979999999999997]
[{"$f":"ROUND((B11*C11),2)","v":55348.22},{"$f":"ROUND(SUMPRODUCT($H$8:$AQ$8,H11:AQ11),2)","v":282182.17},0.19614358076923066,"Atalaia","Lote 03",337530.39,"-",31,28,76,92,13,null,null,null,150,53,null,null,null,null,47,10.9,null,null,null,null,null,null,null,null,null,null,3677,null,375,null,null,null,50,null,92,144]
[{"$f":"ROUND(B12*C12,2)","v":57514.52},{"$f":"ROUND(SUMPRODUCT($H$8:$AQ$8,H12:AQ12),2)","v":237433.39},0.24223433326191768,"Campina da Lagoa","Lote 01",294947.90999999997,"-",33,null,30,23,19,null,null,null,65,20,null,null,null,null,null,3,6.28,null,null,null,null,null,null,null,null,null,6039.31]
[{"$f":"ROUND(B13*C13,2)","v":85870.27},{"$f":"ROUND(SUMPRODUCT($H$8:$AQ$8,H13:AQ13),2)","v":380621.77},0.22560524532019688,"Cruz Machado","Lote 01",466492.04,"-",9,59,89,111,27,null,null,null,140,91,null,null,null,null,null,53,20.399999999999999,null,null,null,null,null,null,null,null,null,5237,null,1320,null,null,null,null,null,null,30]
[{"$f":"ROUND(B14*C14,2)","v":39839.269999999997},{"$f":"ROUND(SUMPRODUCT($H$8:$AQ$8,H14:AQ14),2)","v":189969.47},0.20971409141004838,"Diamante do Norte","Lote 03",229808.74,"-",5,30,19,32,30,null,null,null,58,41,null,null,null,null,null,26,7.1,null,null,null,null,null,null,null,null,null,4142]
[40061.71,{"$f":"ROUND(SUMPRODUCT($H$8:$AQ$8,H15:AQ15),2)","v":177574.38},0.22560524532019688,"Engenheiro Beltrão","Lote 04",217636.09,"-",35,1,7,1,33,null,null,null,44,33,null,null,null,null,null,11,2.97,null,null,null,null,null,null,null,null,null,804.98,90.21,1735.06,null,null,null,null,null,null,26.54]
[{"$f":"TRUNC((B16*C16),2)","v":60356.58},{"$f":"TRUNC(SUMPRODUCT($H$8:$AQ$8,H16:AQ16),2)","v":267531.84000000003},0.22560524532019688,"Floresta","Lote 03",327888.43,"-",44,0,101,29,6,null,null,null,135,26,null,null,null,null,null,46,10.56,null,null,null,null,null,null,null,null,null,4264.72,null,731.1,null,null,null,null,13,20]
[60552.99,{"$f":"ROUND(SUMPRODUCT($H$8:$AQ$8,H17:AQ17),2)","v":268402.40999999997},0.22560524532019688,"Florestópolis ","Lote 04",{"$f":"ROUND(B17+(B17*C17),2)","v":328955.40000000002},"-",32,null,10,14,1,0.8,null,null,43,9,null,null,null,null,null,25,7.67,null,null,null,null,null,null,null,null,null,6559.67,null,487.33,null,null,null,null,null,null,423.84]
[140218.73000000001,714878,0.19614358076923066,"Foz do Iguaçu","Lote 02",855096.73,"-",null,null,null,null,null,null,null,null,null,null,null,null,8,7,null,null,null,null,null,null,17,2,2,17]
[{"$f":"ROUND(B19*C19,2)","v":61252.56},271503.27,0.22560524532019688,"Foz do Jordão","Lote 01",{"$f":"ROUND(B19+(B19*C19),2)","v":332755.83},"-",67,null,55,118,5,15.26,6,4,132,59,null,null,1,1,null,23,5.69,null,null,null,null,null,null,null,null,null,3463.96]
[55823.6,284605.78999999998,0.19614358076923066,"Francisco Alves","Lote 02",340429.39,"-",96,1,32,33,21,null,null,null,133,35,null,null,null,null,null,28,6.21,null,null,null,null,null,null,null,null,null,5872,null,null,null,null,null,null,null,null,145]
[104752.8,464318.99,0.22560524532019688,"Guaíra","Lote 02",569071.79,"-",null,3,21,null,null,65.89,null,null,155,3,null,null,null,null,null,null,null,6,null,null,null,null,null,null,null,null,2431.3200000000002,null,1013.39,null,2699.56,20,27,712,110,121.31]
[86354.7,382769.01,0.22560524532019688,"Ibaiti","Lote 04",469123.71,"-",23,16,185,59,17,null,null,null,197,61,null,null,null,null,null,77,27.5,null,null,null,null,null,null,null,null,null,4615,120,1465]
[40215.040000000001,189395.25,0.21233393784515409,"Iguaraçu","Lote 03",229610.29,"-",81,5,54,33,9,null,null,null,152,21,null,null,null,null,null,64,19.399999999999999,null,null,null,null,null,null,null,null,null,2813]
[56809.37,284977.34999999998,0.19934696475629332,"Itaguajé","Lote 03",341786.72,"-",50,131,6,10,3,null,null,null,191,6,null,null,null,null,null,105,31.5,null,null,null,null,null,null,null,null,null,5560]
[{"$f":"ROUND(B25*C25,2)","v":99673.7},441805.77,0.22560524532019688,"Itaperuçu","Lote 01",541479.47,"-",22,2,30,49,12,77.61,null,null,196,30,null,null,null,null,null,18,3.55,null,null,null,null,null,null,null,null,null,7742.81,null,315,null,null,null,1979,null,null,18]
[60164.17,266678.94,0.22560524532019688,"Ivatuba","Lote 03",326843.11,"-",52,80,35,37,9,null,null,null,178,26,null,null,null,null,null,74,21.6,null,null,null,null,null,null,null,null,null,4787,null,null,null,null,null,null,null,null,28]
[{"$f":"ROUND(B27*C27,2)","v":56248.76},286773.37,0.19614358076923066,"Jesuítas","Lote 02",{"$f":"TRUNC(B27+(B27*C27),2)","v":343022.12},null,null,108,297,54,62,7.95,null,null,341,63,52,null,null,null,null,227,54.24,3]
[61109.45,270868.92,0.22560524532019688,"Kaloré","Lote 04",331978.37,"-",18,46,14,null,20,3.87,null,null,72,23,null,null,null,1,null,66,null,null,null,null,null,null,null,null,null,null,null,1103.3699999999999,2513.6999999999998,null,null,null,null,17]
[{"$f":"ROUND(B29*C29,2)","v":66592.990000000005},295174.84999999998,0.22560524532019688,"Lapa","Lote 01",361767.84,"-",33,null,20,19,9,null,null,null,75,6,null,null,null,null,null,null,null,null,null,null,null,null,null,null,null,null,null,2226.3200000000002,2702.52]
[60002.01,282583.25,0.21233393784515409,"Lidianópolis","Lote 04",342585.26,"-",46,51,80,136,13,55,null,null,214,85,null,null,null,null,null,78,19,null,null,null,null,null,null,null,null,null,2398,null,null,null,null,null,null,null,15,40]
[61781.39,273847.31,0.22560524532019688,"Lindoeste","Lote 02",335628.7,"-",28,null,null,null,3,21.4,null,24,28,3,null,null,null,null,null,17,4.45,null,null,null,null,null,null,null,null,null,null,667.35,3482.84,null,null,null,null,null,null,2.7]
[152876.5,677628.32,0.22560524532019688,"Londrina","Lote 04",830504.82,"-",null,null,null,null,null,null,null,null,null,null,null,null,null,null,null,null,null,null,null,null,null,null,null,null,null,null,549,8424.61,5312.24]
[31442.720000000001,139370.51999999999,0.22560524532019688,"Lupionópolis","Lote 03",{"$f":"ROUND(B33+(B33*C33),2)","v":170813.24},"-",26,null,83,82,4,null,null,null,140,22,null,null,null,null,null,null,25.05,null,null,null,null,null,null,null,null,1789.64,null,null,null,null,null,null,null,null,null,1.8]
[{"$f":"ROUND((B34*C34),2)","v":40950.71},181514.89,0.22560524532019688,"Mallet","Lote 01",{"$f":"ROUND(B34+(B34*C34),2)","v":222465.6},"-",null,null,null,null,null,145.41999999999999,null,null,149,null,null,null,null,2,null,null,null,18]
[{"$f":"ROUND(B35*C35,2)","v":60759.5},269317.77,0.22560524532019688,"Marilena","Lote 03",{"$f":"TRUNC(B35+(B35*C35),2)","v":330077.27},"-",10,62,45,20,3,6.76,null,null,130,11,null,1,null,null,null,29,7.66,null,null,null,null,null,null,null,null,null,5698.91,null,null,null,null,null,null,null,null,65.959999999999994]
[{"$f":"ROUND(B36*C36,2)","v":63184.39},280066.13,0.22560524532019688,"Munhoz de Mello","Lote 03",{"$f":"TRUNC(B36+(B36*C36),2)","v":343250.51},"-",44,null,85,34,9,28.26,20,null,131,29,null,6,null,null,null,6,1.78,null,null,null,null,null,null,null,null,null,1540.45,133.49,255.68,null,null,null,886,null,null,4.83]
[{"$f":"ROUND(B37*C37,2)","v":37099.33},189143.72,0.19614358076923066,"Nova Cantu","Lote 01",{"$f":"TRUNC(B37+(B37*C37),2)","v":226243.04},"-",48,10,57,122,3,null,null,null,129,57,null,null,null,null,null,14,4.16,null,null,null,null,null,null,null,null,null,2446.5]
[56557.91,{"$f":"ROUND(SUMPRODUCT($H$8:$AQ$8,H38:AQ38),2)","v":283715.94},0.19934696475629332,"Nova Olímipia ","Lote 03",{"$f":"ROUND(B38+(B38*C38),2)","v":340273.85},"-",68,12,72,11,19,null,null,null,163,19,null,null,null,null,null,52,13,null,null,null,null,null,null,null,null,null,1110.8699999999999,null,2515.75]
[{"$f":"ROUND(B39*C39,2)","v":62597.32},277463.93,0.22560524532019688,"Palmital","Lote 01",340061.25,"-",23,24,31,73,22,null,null,null,95,51,null,null,null,null,null,34,5.6,null,null,null,null,null,null,null,null,null,5458,null,null,null,null,null,null,null,484]
[56537.91,250605.46,0.22560524532019688,"Paranapoema","Lote 03",307143.37,"-",65,null,108,82,8,null,null,null,198,38,null,null,null,null,null,65,17.399999999999999,null,null,null,null,null,null,null,null,null,3632]
[{"$f":"ROUND(B41*C41,2)","v":37736.01},167265.68,0.22560524532019688,"Paulo Frontin","Lote 01",205001.69,"-",9,42,40,55,23,null,null,null,146,23,null,null,null,null,null,null,null,null,null,null,null,null,null,null,null,null,2337.85]
[63479.97,{"$f":"ROUND(SUMPRODUCT($H$8:$AQ$8,H42:AQ42),2)","v":281376.32},0.22560524532019688,"Peabiru","Lote 04",{"$f":"ROUND(B42+(B42*C42),2)","v":344856.29},"-",92,null,18,24,30,null,120,38,null,null,null,null,null,null,null,51,51,null,null,null,null,null,null,null,null,null,4082,null,null,null,null,null,null,null,null,40]
[37504.61,{"$f":"ROUND(SUMPRODUCT($H$8:$AQ$8,H43:AQ43),2)","v":191209.99},0.19614358076923066,"Pérola","Lote 02",228714.6,"-",25,null,27,null,139,null,null,null,41,137,null,null,null,null,null,1,0.21,null,null,null,null,null,null,null,null,940.81,null,null,723.71,null,null,null,null,null,null,69.8]
[{"$f":"ROUND(B44*C44,2)","v":38556.050000000003},{"$f":"ROUND(SUMPRODUCT($H$8:$AQ$8,H44:AQ44),2)","v":170900.52},0.22560524532019688,"Porto Amazonas","Lote 01",209456.57,"-",67,null,79,89,1,null,null,null,155,40,null,null,null,null,null,100,74.25,null,null,null,null,null,null,null,null,null,1566.26,null,null,null,null,null,null,null,null,11.96]
[{"$f":"ROUND(B45*C45,2)","v":63472.39},{"$f":"ROUND(SUMPRODUCT($H$8:$AQ$8,H45:AQ45),2)","v":281342.7},0.22560524532019688,"Prado Ferreira","Lote 04",{"$f":"TRUNC(B45+(B45*C45),2)","v":344815.08},null,67,null,146,244,5,null,null,null,253,107,null,null,null,null,null,6,0.9,null,null,null,null,null,null,null,null,null,2009.5,null,null,null,null,null,null,null,null,82]
[56556.62,{"$f":"ROUND(SUMPRODUCT($H$8:$AQ$8,H46:AQ46),2)","v":288342.95},0.19614358076923066,"Quarto Centenário","Lote 02",344899.57,"-",103,2,22,36,11,null,null,null,163,null,null,null,null,null,null,106,30.99,null,null,null,null,null,null,null,null,7540]
[59963.06,{"$f":"TRUNC(SUMPRODUCT($H$8:$AQ$8,H47:AQ47),2)","v":282399.78000000003},0.21233393784515409,"Quinta do Sol","Lote 04",342362.84,"-",123,14,84,133,19,2.75,null,null,231,80,null,1,null,null,null,77,20,null,null,null,null,null,null,null,null,null,2403,null,null,null,null,null,null,null,null,102]
[{"$f":"ROUND(B48*C48,2)","v":37169.61},{"$f":"ROUND(SUMPRODUCT($H$8:$AQ$8,H48:AQ48),2)","v":189502.07},0.19614358076923066,"Reserva do Iguaçu","Lote 01",{"$f":"ROUND(B48+(B48*C48),2)","v":226671.68},"-",6,34,17,6,21,29.58,null,null,67,37,null,null,null,4,null,18,4.47,null,null,null,null,null,null,null,null,null,1266.82,40]
[{"$f":"ROUND(B49*C49,2)","v":56133.06},281584.73,0.19934696475629332,"Roncador","Lote 01",337717.79,"-",114,2,97,169,34,13.2,null,null,210,135,null,null,null,null,null,102,29.33,null,null,null,null,null,null,null,null,null,1420.31,null,null,null,null,null,null,null,null,583.88]
[61648.88,273259.98,0.22560524532019688,"Salgado Filho","Lote 02",{"$f":"ROUND(B50+(B50*C50),2)","v":334908.86},"-",null,8,7,7,16,49.85,28,4,22,21,null,6,null,2,2,21,17.89,null,null,null,null,null,null,null,null,null,null,539.22,1011.02,null,null,null,null,null,null,38]
[63131.55,279831.92,0.22560524532019688,"Santa Isabel do Ivaí","Lote 03",{"$f":"TRUNC(B51+(B51*C51),2)","v":342963.46},"-",12,49,38,53,39,null,null,null,139,49,null,null,null,null,null,49,13.18,null,null,null,null,null,null,null,null,null,4878,null,315]
[{"$f":"ROUND(B52*C52,2)","v":39850.370000000003},187677.82,0.21233393784515409,"Santa Maria do Oeste","Lote 01",227528.19,"-",25,1,70,60,null,null,null,null,94,31,null,null,null,null,null,18,3.56,null,null,null,null,null,null,null,null,null,3704]
[40171.19,189188.72,0.21233393784515409,"Santa Tereza do Oeste","Lote 02",229359.91,"-",63,11,71,28,null,28.38,null,null,173,13,null,null,1,3,null,57,57]
[43922.94,194689.36,0.22560524532019688,"Santo Antônio do Sudoeste","Lote 02",238612.3,"-",1,12,16,48,43,null,null,null,120,null,null,null,null,null,null,null,null,null,null,null,null,null,null,null,null,null,null,2499,300]
[52405.64,232289.11,0.22560524532019688,"São Carlos do Ivaí","Lote 03",284694.75,"-",18,66,21,37,7,null,null,null,125,15,null,null,null,null,null,55,13.3,null,null,null,null,null,null,null,null,null,3481,null,null,null,587,null,null,null,null,89]
[40280.29,{"$f":"ROUND(SUMPRODUCT($H$8:$AQ$8,H56:AQ56),2)","v":189702.55},0.21233393784515409,"São João do Ivaí","Lote 04",{"$f":"ROUND(B56+(B56*C56),2)","v":229982.84},"-",3,57,70,51,13,null,null,null,155,38,null,null,null,null,null,96,26,null,null,null,null,null,null,null,null,null,2021,null,212,null,null,null,null,null,null,126]
[62174.28,275588.81,0.22560524532019688,"São Pedro do Paraná","Lote 03",337763.09,"-",6,10,25,68,12,13.15,null,null,71,31,null,5,null,null,1,39,12.27,null,null,null,null,null,null,null,null,null,2,1126.28,1597.44,null,null,null,null,22,null,103.05]
[{"$f":"ROUND(B58*C58,2)","v":84779.69},375787.76,0.22560524532019688,"Sengés","Lote 01",460567.45,"-",39,null,131,119,15,null,null,null,176,70,null,null,null,null,null,7,2,null,null,null,null,null,null,null,null,null,4485,null,1560,null,null,null,150,null,null,10]
[77614.7,395703.51,0.19614358076923066,"Terra Boa","Lote 03",473318.21,"-",40,22,120,100,21,null,null,null,196,74,null,null,null,null,null,50,13.14,null,null,null,null,null,null,null,null,null,7697,null,null,null,null,null,null,null,null,22.3]
[38887.15,172368.13,0.22560524532019688,"Três Barras do Paraná","Lote 02",{"$f":"ROUND(B60+(B60*C60),2)","v":211255.28},"-",null,null,4,4,23,null,null,null,8,23,null,null,null,null,null,null,null,null,null,null,null,null,null,null,null,null,4970.88]
[50581.94,{"$f":"ROUND(SUMPRODUCT($H$8:$AQ$8,H61:AQ61),2)","v":224205.52},0.22560524532019688,"Wenceslau Braz","Lote 04",274787.46000000002,"-",173,24,115,41,7,null,null,null,320,26,null,null,null,null,null,65,12.2,null,null,null,null,null,null,null,null,null,130.78,22.88,212.48,null,null,null,null,89,null,154.76]
[]
[null,null,null,null,null,null,"SOMATÓRIO POR LOTE"]
[null,null,null,null,null,null,"SOMA LOTE 01",{"$f":"SUMIF($E$10:$E$61,\"LOTE 01\",H10:H61)","v":512},175,823,1039,191,328.39,6,4,1940,692,0,8,2,8,0,400,161.92000000000002,18,0,0,0,0,0,0,null,{"$f":"SUMIF($E$10:$E$61,\"LOTE 01\",AG10:AG61)","v":0},46477.35,2266.3200000000002,5897.52,0,0,0,2129,0,484,690.81999999999994]
[null,null,null,null,null,null,"SOMA LOTE 02",{"$f":"SUMIF($E$10:$E$61,\"LOTE 02\",H10:H61)","v":316},145,497,210,318,173.47,28,28,1184,298,52,6,9,12,2,457,170.99,9,0,0,17,2,2,17,null,{"$f":"SUMIF($E$10:$E$61,\"LOTE 02\",AG10:AG61)","v":8480.81},13274.2,3705.57,6530.9600000000009,0,2699.56,20,27,712,110,376.81]
[null,null,null,null,null,null,"SOMA LOTE 03",{"$f":"SUMIF($E$10:$E$61,\"LOTE 03\",H10:H61)","v":552},495,888,720,192,48.17,20,0,2157,461,0,12,0,0,48,670.9,206.94,0,0,0,0,0,0,0,null,{"$f":"SUMIF($E$10:$E$61,\"LOTE 03\",AG10:AG61)","v":1789.64},53283.950000000004,1259.77,5789.9699999999993,0,587,0,936,35,112,458.94000000000005]
[null,null,null,null,null,null,"SOMA LOTE 04",{"$f":"SUMIF($E$10:$E$61,\"LOTE 04\",H10:H61)","v":612},209,729,703,158,62.42,120,38,1529,462,0,1,0,1,0,552,167.24,0,0,0,0,0,0,0,null,{"$f":"SUMIF($E$10:$E$61,\"LOTE 04\",AG10:AG61)","v":0},25572.93,9761.07,11937.81,0,0,0,0,106,15,995.14]
[null,null,null,"QUANTITATIVO DA PLANILHA  SINTÉTICA"]
[]
[null,null,null,{"$f":"TRANSPOSE(G64:AQ67)","v":"SOMA LOTE 01"},"SOMA LOTE 02","SOMA LOTE 03","SOMA LOTE 04"]
[null,null,null,512,316,552,612]
[null,null,null,175,145,495,209]
[null,null,null,823,497,888,729]
[null,null,null,1039,210,720,703]
["LOTE 01",{"$f":"SUMIF($E$10:$E$61,A75,$F$10:$F$61)","v":4793631.9000000004},null,191,318,192,158]
["LOTE 02",{"$f":"SUMIF($E$10:$E$61,A76,$F$10:$F$61)","v":4030999.25},null,328.39,173.47,48.17,62.42]
["LOTE 03",{"$f":"SUMIF($E$10:$E$61,A77,$F$10:$F$61)","v":4723765.4300000006},null,6,28,20,120]
["LOTE 04",{"$f":"SUMIF($E$10:$E$61,A78,$F$10:$F$61)","v":4057588.1599999997},null,4,28,0,38]
["Total",{"$f":"SUBTOTAL(9,B75:B78)","v":0},null,1940,1184,2157,1529]
[null,null,null,692,298,461,462]
[null,null,null,0,52,0,0]
[null,null,null,8,6,12,1]
[null,null,null,2,9,0,0]
[null,null,null,8,12,0,1]
[null,null,null,0,2,48,0]
[null,null,null,400,457,670.9,552]
[null,null,null,161.92000000000002,170.99,206.94,167.24]
[null,null,null,18,9,0,0]
[null,null,null,0,0,0,0]
[null,null,null,0,0,0,0]
[null,null,null,0,17,0,0]
[null,null,null,0,2,0,0]
[null,null,null,0,2,0,0]
[null,null,null,0,17,0,0]
[null,null,null,0,0,0,0]
[null,null,null,0,8480.81,1789.64,0]
[null,null,null,46477.35,13274.2,53283.950000000004,25572.93]
[null,null,null,2266.3200000000002,3705.57,1259.77,9761.07]
[null,null,null,5897.52,6530.9600000000009,5789.9699999999993,11937.81]
[null,null,null,0,0,0,0]
[null,null,null,0,2699.56,587,0]
[null,null,null,0,20,0,0]
[null,null,null,2129,27,936,0]
[null,null,null,0,712,35,106]
[null,null,null,484,110,112,15]
[null,null,null,690.81999999999994,376.81,458.94000000000005,995.14]
[null,null,null,{"$error":"#N/A"},{"$error":"#N/A"},{"$error":"#N/A"},{"$error":"#N/A"}]

{"sheet":"der","index":11,"n_rows":777,"n_cols":14,"rows_kept":777,"cut":false,"hidden":true,"merged":[]}
["Código","Descrição do Serviço","Unidade","Custo Execução","Custo Material","Custo Sub-Serviço","Custo Unitário","Transporte","Material ","Mão de obra",null,45900]
[600000,"Escavação manual de vala 1a. cat.","m3",44.61,0,0,44.61,0,44.61,0]
[820000,"Placa sinalização c/ película refletiva","m2",190.97,346.85,0,537.82000000000005,0,190.97,346.85]
[822100,"Faixa de sinalização horizontal c/tinta resina acrílica base água","m2",10.19,12.05,0,22.24,0,10.19,12.05]
[515580,"Limpeza de pavimento com jato de água","m2",2.4900000000000002,0,0,2.4900000000000002,0,2.4900000000000002,0]
[822000,"Faixa de sinalização horizontal c/tinta resina acrílica base solvente","m2",10.19,17.73,0,27.92,0,10.19,17.73]
[515580,"Limpeza de pavimento com jato de água","m2",2.4900000000000002,0,0,2.4900000000000002,0,2.4900000000000002,0]
[822350,"Faixa de sinalização horizontal - termoplástico por aspersão - e=1,5mm","m2",18.32,21.77,0,40.090000000000003,0,18.32,21.77]
[515580,"Limpeza de pavimento com jato de água","m2",2.4900000000000002,0,0,2.4900000000000002,0,2.4900000000000002,0]
[822330,"Pintura de setas e zebrados - termoplástico por extrusão - e=3mm","m2",18.32,36.08,0,54.4,0,18.32,36.08]
[515580,"Limpeza de pavimento com jato de água","m2",2.4900000000000002,0,0,2.4900000000000002,0,2.4900000000000002,0]
[822330,"Pintura de setas e zebrados - termoplástico por extrusão - e=3mm","m2",18.32,36.08,0,54.4,0,18.32,36.08]
[515580,"Limpeza de pavimento com jato de água","m2",2.4900000000000002,0,0,2.4900000000000002,0,2.4900000000000002,0]
[515580,"Limpeza de pavimento com jato de água","m2",2.4900000000000002,0,0,2.4900000000000002,0,2.4900000000000002,0]
[515580,"Limpeza de pavimento com jato de água","m2",2.4900000000000002,0,0,2.4900000000000002,0,2.4900000000000002,0]
[821300,"Suporte metálico galv. fogo d=2,5\" c/tampa e aletas anti-giro, h=3,00m","ud",70.73,336.69,2.19,409.61,0,72.92,336.69]
[821350,"Suporte metálico galv. fogo d=2,5\" c/tampa e aletas anti-giro, h=3,50m","ud",70.73,392.69,2.19,465.61,0,72.92,392.69]
[821400,"Suporte metálico galv. fogo d=2,5\" c/tampa e aletas anti-giro, h=4,00m","ud",70.73,447.83,2.19,520.75,0,72.92,447.83]
[822030,"Suporte metálico galv. fogo perfil \"C\" 250x85x25x2,70mm, h=5,00m","ud",106.63,1323.76,8.76,1439.15,0,115.39,1323.76]
[870000,"Tacha refletiva monodirecional","ud",8.6,7.8,0,16.399999999999999,0,8.6,7.8]
[871000,"Tacha refletiva bidirecional","ud",8.6,8.1999999999999993,0,16.8,0,8.6,8.1999999999999993]
[872000,"Tachão refletivo monodirecional","ud",8.6,29.68,0,38.28,0,8.6,29.68]
[873000,"Tachão refletivo bidirecional","ud",8.6,32.299999999999997,0,40.9,0,8.6,32.299999999999997]
[]
[]
[]
[]
[]
[]
[]
[]
[]
[]
[]
[]
[]
[]
[]
[]
[]
[]
[]
[]
[]
[]
[]
[]
[]
[]
[]
[]
[]
[]
[]
[]
[]
[]
[]
[]
[]
[]
[]
[]
[]
[]
[]
[]
[]
[]
[]
[]
[]
[]
[]
[]
[]
[]
[]
[]
[]
[]
[]
[]
[]
[]
[]
[]
[]
[]
[]
[]
[]
[]
[]
[]
[]
[]
[]
[]
[]
[]
[]
[]
[]
[]
[]
[]
[]
[]
[]
[]
[]
[]
[]
[]
[]
[]
[]
[]
[]
[]
[]
[]
[]
[]
[]
[]
[]
[]
[]
[]
[]
[]
[]
[]
[]
[]
[]
[]
[]
[]
[]
[]
[]
[]
[]
[]
[]
[]
[]
[]
[]
[]
[]
[]
[]
[]
[]
[]
[]
[]
[]
[]
[]
[]
[]
[]
[]
[]
[]
[]
[]
[]
[]
[]
[]
[]
[]
[]
[]
[]
[]
[]
[]
[]
[]
[]
[]
[]
[]
[]
[]
[]
[]
[]
[]
[]
[]
[]
[]
[]
[]
[]
[]
[]
[]
[]
[]
[]
[]
[]
[]
[]
[]
[]
[]
[]
[]
[]
[]
[]
[]
[]
[]
[]
[]
[]
[]
[]
[]
[]
[]
[]
[]
[]
[]
[]
[]
[]
[]
[]
[]
[]
[]
[]
[]
[]
[]
[]
[]
[]
[]
[]
[]
[]
[]
[]
[]
[]
[]
[]
[]
[]
[]
[]
[]
[]
[]
[]
[]
[]
[]
[]
[]
[]
[]
[]
[]
[]
[]
[]
[]
[]
[]
[]
[]
[]
[]
[]
[]
[]
[]
[]
[]
[]
[]
[]
[]
[]
[]
[]
[]
[]
[]
[]
[]
[]
[]
[]
[]
[]
[]
[]
[]
[]
[]
[]
[]
[]
[]
[]
[]
[]
[]
[]
[]
[]
[]
[]
[]
[]
[]
[]
[]
[]
[]
[]
[]
[]
[]
[]
[]
[]
[]
[]
[]
[]
[]
[]
[]
[]
[]
[]
[]
[]
[]
[]
[]
[]
[]
[]
[]
[]
[]
[]
[]
[]
[]
[]
[]
[]
[]
[]
[]
[]
[]
[]
[]
[]
[]
[]
[]
[]
[]
[]
[]
[]
[]
[]
[]
[]
[]
[]
[]
[]
[]
[]
[]
[]
[]
[]
[]
[]
[]
[]
[]
[]
[]
[]
[]
[]
[]
[]
[]
[]
[]
[]
[]
[]
[]
[]
[]
[]
[]
[]
[]
[]
[]
[]
[]
[]
[]
[]
[]
[]
[]
[]
[]
[]
[]
[]
[]
[]
[]
[]
[]
[]
[]
[]
[]
[]
[]
[]
[]
[]
[]
[]
[]
[]
[]
[]
[]
[]
[]
[]
[]
[]
[]
[]
[]
[]
[]
[]
[]
[]
[]
[]
[]
[]
[]
[]
[]
[]
[]
[]
[]
[]
[]
[]
[]
[]
[]
[]
[]
[]
[]
[]
[]
[]
[]
[]
[]
[]
[]
[]
[]
[]
[]
[]
[]
[]
[]
[]
[]
[]
[]
[]
[]
[]
[]
[]
[]
[]
[]
[]
[]
[]
[]
[]
[]
[]
[]
[]
[]
[]
[]
[]
[]
[]
[]
[]
[]
[]
[]
[]
[]
[]
[]
[]
[]
[]
[]
[]
[]
[]
[]
[]
[]
[]
[]
[]
[]
[]
[]
[]
[]
[]
[]
[]
[]
[]
[]
[]
[]
[]
[]
[]
[]
[]
[]
[]
[]
[]
[]
[]
[]
[]
[]
[]
[]
[]
[]
[]
[]
[]
[]
[]
[]
[]
[]
[]
[]
[]
[]
[]
[]
[]
[]
[]
[]
[]
[]
[]
[]
[]
[]
[]
[]
[]
[]
[]
[]
[]
[]
[]
[]
[]
[]
[]
[]
[]
[]
[]
[]
[]
[]
[]
[]
[]
[]
[]
[]
[]
[]
[]
[]
[]
[]
[]
[]
[]
[]
[]
[]
[]
[]
[]
[]
[]
[]
[]
[]
[]
[]
[]
[]
[]
[]
[]
[]
[]
[]
[]
[]
[]
[]
[]
[]
[]
[]
[]
[]
[]
[]
[]
[]
[]
[]
[]
[]
[]
[]
[]
[]
[]
[]
[]
[]
[]
[]
[]
[]
[]
[]
[]
[]
[null,null,null,null,null,null,null,null,null,null,null,null,null,{"$f":"VLOOKUP(A707,'[4]Table 1'!$A$3:$G$708,7,FALSE)","v":{"$error":"#N/A"}}]
[972200,"Comercial - caminhão carroceria","t","0,69x1 + 0,\n83x2",0,0,"0,82x1 + 0,99x2",null,{"$f":"D708+F708","v":{"$error":"#VALUE!"}},{"$f":"E708","v":0}]
[972400,"Comercial - caminhão silo","t","0,44x1 + 0,\n53x2",0,0,"0,52x1 + 0,63x2",null,{"$error":"#VALUE!"},0]
[972080,"Comercial - massa concreto usinado - caminhão basculante","t","0,67x1 + 0,\n80x2",0,0,"0,80x1 + 0,95x2",null,{"$error":"#VALUE!"},0]
[972100,"Local - caminhão basculante","t","0,73x1 + 0,\n88x2 + 1,84",0,0,"0,87x1 + 1,05x2\n+ 2,20",null,{"$error":"#VALUE!"},0]
[972300,"Local - caminhão carroceria","t","0,69x1 + 0,\n83x2 + 6,95",0,0,"0,82x1 + 0,99x2\n+ 8,32",null,{"$error":"#VALUE!"},0]
[972500,"Local - caminhão silo","t","0,44x1 + 0,\n53x2 + 1,11",0,0,"0,52x1 + 0,63x2\n+ 1,32",null,{"$error":"#VALUE!"},0]
[973100,"Local - massa a frio - caminhão basculante","t","0,95x1 + 1,\n14x2 + 4,75",0,0,"1,13x1 + 1,36x2\n+ 5,68",null,{"$error":"#VALUE!"},0]
[973000,"Local - massa a quente - caminhão basculante","t","0,95x1 + 1,\n14x2 + 5,70",0,0,"1,13x1 + 1,36x2\n+ 6,82",null,{"$error":"#VALUE!"},0]
[972180,"Local - massa concreto usinado - caminhão basculante","t","0,67x1 + 0,\n80x2 + 1,67",0,0,"0,80x1 + 0,95x2\n+ 1,99",null,{"$error":"#VALUE!"},0]
[974100,"Material asfáltico a frio","t","0,74x  + 36,24",0,0,"0,88x + 43,39",null,{"$error":"#VALUE!"},0]
[974000,"Material asfáltico a quente","t","0,82x  + 40,26",0,0,"0,98x + 48,21",null,{"$error":"#VALUE!"},0]
["Data Base: 31/10/2024 (Sem desoneração)                                                                                                                                                                          Valores expressos em Reais (R$)",null,null,null,null,null,null,null,0,0]
["Grupo de serviço: FORNECIMENTO DE VEÍCULOS",null,null,null,null,null,null,null,0,0]
[970050,"Automóvel sedan potência mínima 75 HP (sem motorista)","mes",5707.37,0,0,5707.37,null,5707.37,0]
[970250,"Veículo utilitário potência mínima 114 HP (sem motorista)","mes",9102.75,0,0,9102.75,null,9102.75,0]
["Data Base: 31/10/2024 (Sem desoneração)                                                                                                                                                                          Valores expressos em Reais (R$)",null,null,null,null,null,null,null,0,0]
["Grupo de serviço: ADEQUAÇÃO DE ESTRADAS",null,null,null,null,null,null,null,0,0]
[603010,"Assentamento de tubo 0,40m sem berço","m",26.58,125,2.63,154.21,"A acrescer",29.209999999999997,125]
[603020,"Assentamento de tubo 0,60m sem berço","m",42.07,195,3.51,240.58,"A acrescer",45.58,195]
[603040,"Assentamento de tubo 0,80m sem berço","m",63.1,307.5,4.3899999999999997,374.99,"A acrescer",67.489999999999995,307.5]
[421100,"Caixa de retenção","m3",7.02,0,0,7.02,null,7.02,0]
[401110,"Carga e transp. 1a. cat.     0-200m","m3",5.85,0,0,5.85,null,5.85,0]
[401120,"Carga e transp. 1a. cat.  200-400m","m3",6.45,0,0,6.45,null,6.45,0]
[452010,"Cascalhamento","m3",6.56,0,5.35,11.91,"A acrescer",11.91,0]
[401020,"Desmatamento e limpeza diam. até 30cm","m2",1.1200000000000001,0,0,1.1200000000000001,null,1.1200000000000001,0]
[401010,"Destocamento árvores diam. > 30cm","ud",47.81,0,0,47.81,null,47.81,0]
[401150,"Esc. carga e transp. 1a. cat.     0-50m","m3",4.33,0,0,4.33,null,4.33,0]
[401030,"Esc. carga e transp. 1a. cat.    50-200m","m3",8.1,0,0,8.1,null,8.1,0]
[401040,"Esc. carga e transp. 1a. cat.   200-400m","m3",8.32,0,0,8.32,null,8.32,0]
[401050,"Esc. carga e transp. 2a. cat.     0-50m","m3",6.6,0,0,6.6,null,6.6,0]
[401140,"Esc. de vala lateral rasa c/motoniveladora","m",0.43,0,0,0.43,null,0.43,0]
[511130,"Escarificação, conformação  e compactação do subleito (visual)","m2",1.19,0,0,1.19,null,1.19,0]
[603030,"Escavação de bueiros e valas de drenagem 1a. cat.","m3",8.64,0,0,8.64,null,8.64,0]
[520250,"Escavação e carga mat. jazida 2a. cat.","m3",4.46,0,0,4.46,null,4.46,0]
[401130,"Escavação para saídas de água","m3",4.01,0,0,4.01,null,4.01,0]
[401080,"Lombada","m3",2.83,0,0,2.83,null,2.83,0]
[511030,"Regularização, conformação e compactação de leito (visual)","m2",0.73,0,0,0.73,null,0.73,0]
[401060,"Regularização de leito/patrolamento","m2",0.18,0,0,0.18,null,0.18,0]
[603050,"Remoção de bueiros 0,40m","m",18.21,0,0,18.21,null,18.21,0]
[603060,"Remoção de bueiros 0,60m","m",21.86,0,0,21.86,null,21.86,0]
[401070,"Retaludamento","m2",0.49,0,0,0.49,null,0.49,0]
["Data Base: 31/10/2024 (Sem desoneração)                                                                                                                                                                          Valores expressos em Reais (R$)",null,null,null,null,null,null,null,0,0]
["Grupo de serviço: LIGANTES BETUMINOSOS"]
[589100,"Fornecimento de asfalto diluído CM-30","t",0,6099.88,0,6099.88]
[589050,"Fornecimento de asfalto modificado por borracha","t",0,5780.7,0,5780.7]
[589070,"Fornecimento de CAP-30/45","t",0,4778.7700000000004,0,4778.7700000000004]
[589000,"Fornecimento de CAP-50/70","t",0,4826.92,0,4826.92]
[589030,"Fornecimento de CAP-50/70 com polímero elastomérico (55/75)","t",0,5534.11,0,5534.11]
[589040,"Fornecimento de CAP-50/70 com polímero elastomérico (60/85)","t",0,5973.58,0,5973.58]
[589060,"Fornecimento de CAP-50/70 com polímero elastomérico (65/90)","t",0,6141.3,0,6141.3]
[589190,"Fornecimento de emulsão asfáltica EAI p/imprimação","t",0,3612.59,0,3612.59]
[589180,"Fornecimento de emulsão asfáltica RC-1C-E com polímero","t",0,4616.1400000000003,0,4616.1400000000003]
[589170,"Fornecimento de emulsão asfáltica RL-1C","t",0,3701.61,0,3701.61]
[589220,"Fornecimento de emulsão asfáltica RM-1C","t",0,3640.62,0,3640.62]
[589320,"Fornecimento de emulsão asfáltica RM-2C","t",0,4505.76,0,4505.76]
[589420,"Fornecimento de emulsão asfáltica RR-1C","t",0,3433.55,0,3433.55]
[589430,"Fornecimento de emulsão asfáltica RR-1C-E com polímero","t",0,4045.94,0,4045.94]
[589520,"Fornecimento de emulsão asfáltica RR-2C","t",0,3735.12,0,3735.12]
[589530,"Fornecimento de emulsão asfáltica RR-2C-E com polímero","t",0,5040.4399999999996,0,5040.4399999999996]
[589040,"Fornecimento de CAP-50/70 com polímero elastomérico (60/85)","t",0,5122.93,0,5122.93]
[589060,"Fornecimento de CAP-50/70 com polímero elastomérico (65/90)","t",0,5610.83,0,5610.83]
[589190,"Fornecimento de emulsão asfáltica EAI p/imprimação","t",0,3392.07,0,3392.07]
[589180,"Fornecimento de emulsão asfáltica RC-1C-E com polímero","t",0,4279.09,0,4279.09]
[589170,"Fornecimento de emulsão asfáltica RL-1C","t",0,3372.42,0,3372.42]
[589220,"Fornecimento de emulsão asfáltica RM-1C","t",0,3458.19,0,3458.19]
[589320,"Fornecimento de emulsão asfáltica RM-2C","t",0,3909.62,0,3909.62]
[589420,"Fornecimento de emulsão asfáltica RR-1C","t",0,3188.46,0,3188.46]
[589430,"Fornecimento de emulsão asfáltica RR-1C-E com polímero","t",0,3869.13,0,3869.13]
[589520,"Fornecimento de emulsão asfáltica RR-2C","t",0,3406.09,0,3406.09]
[589530,"Fornecimento de emulsão asfáltica RR-2C-E com polímero","t",0,3868.44,0,3868.44]

{"sheet":"dnit","index":12,"n_rows":8,"n_cols":4,"rows_kept":8,"cut":false,"hidden":true,"merged":[]}
[45931]
["5213351-ed","Suporte polimérico ecológico maciço colapsível D = 6,5 cm para placa de sinalização - fornecimento e implantação - 3,00 m","un",810.79]
[5213364,"Remoção de placa de sinalização","m²",26.2]
[5214009,"Pintura de faixa com plástico a frio bicomponente à base de resinas metacrílicas por extrusão (plano) - espessura de 1,5 mm","m²",125.87]
[5213413,"Pintura de faixa com plástico a frio tricomponente à base de resinas metacrílicas por aspersão - espessura de 0,6 mm","m²",68.959999999999994]
[5213351,"Suporte polimérico ecológico maciço colapsível D = 6,5 cm para placa de sinalização - fornecimento e implantação","un",675.66]
[5213364,"Remoção de placa de sinalização","m²",26.2]
[5213837,"Cilindro flexível delimitador de tráfego com duas faixas refletivas e chumbador - D = 20 cm e H = 80 cm","un",203.93]

{"sheet":"scorj","index":13,"n_rows":21,"n_cols":6,"rows_kept":21,"cut":false,"hidden":true,"merged":[[1,1,1,6],[2,1,2,6]]}
[null,46021]
[null,"Resultado da Pesquisa de Itens de Serviços"]
[null,"Pesquisa realizada em 03/02/2025\nMês/Ano de Referência: 12/2025                                                                                                                                              imprimir"]
[null,"Item de Serviço","Descrição","Und. de Medida","Custo R$","Ocorrências"]
[{"$f":"SUBSTITUTE(B5,\" (/)\",\"\")","v":"ST 64.05.0600"},"ST 64.05.0600 (/)","Coluna de aco, conica continua tipo I para ate 4 (quatro) bracos projetados capazes de sustentar, cada um, semaforo e placa de 3m2 (tres metros quadrados); coluna galvanizada a fogo; altura util total de 5,00m (cinco metros); diametro na base igual a 187mm (cento e oitenta e sete milimetros); conforme especificacao CET-RIO. Fornecimento.(desonerado)","un",8287.06,0]
["ST 64.15.0170 (A)","ST 64.15.0170 (A)","Assentamento de coluna de aco conica continua tipo I para ate 4 (quato) bracos projetados capazes de sustentar, cada um, semaforo e placa de 3m2 (tres metros quadrados) fixada por chumbadores engastados em fundacao de concreto, exclusive fundacao, exclusive fornecimento da coluna.(desonerado)","un",327.37,0]
["ST 64.05.0650","ST 64.05.0650 (/)","Braco projetado de aco para sustentacao de semaforo e placa ate 3m2 (tres metros quadrados), galvanizado a fogo; para fixacao em coluna cilindrica giratoria, projecao de 2,80m (dois metros e oitenta centimetros); diametro junto a flange de 123mm (cento e vinte e tres milimetros); conforme especificacao CET-RIO. Fornecimento.(desonerado)","un",3245,0]
["ST 64.15.0180","ST 64.15.0180 (/)","Montagem de braco projetado de aco em coluna de aco conica continua tipo I assentada, exclusive o fornecimento do braco.(desonerado)","un",83.93,0]
["ST 64.15.0340","ST 64.15.0340 (/)","Bloco de concreto armado medindo (0,60 x 0,60 x 1,00)m para uma coluna de aco conica continua para instalacao de ate 4 bracos projetados para sinalizacao.(desonerado)","un",479.59,0]
["ST 64.05.0600","ST 64.05.0600 (/)","Coluna de aco, conica continua tipo I para ate 4 (quatro) bracos projetados capazes de sustentar, cada um, semaforo e placa de 3m2 (tres metros quadrados); coluna galvanizada a fogo; altura util total de 5,00m (cinco metros); diametro na base igual a 187mm (cento e oitenta e sete milimetros); conforme especificacao CET-RIO. Fornecimento.(desonerado)","un",8287.06,0]
["ST 64.15.0170 (A)","ST 64.15.0170 (A)","Assentamento de coluna de aco conica continua tipo I para ate 4 (quato) bracos projetados capazes de sustentar, cada um, semaforo e placa de 3m2 (tres metros quadrados) fixada por chumbadores engastados em fundacao de concreto, exclusive fundacao, exclusive fornecimento da coluna.(desonerado)","un",327.37,0]
[{"$f":"SUBSTITUTE(B12,\" (/)\",\"\")","v":"ST 64.05.0700"},"ST 64.05.0700 (/)","Braco projetado de aco para sustentacao de semaforo e placa ate 3m2 (tres metros quadrados), galvanizado a fogo; para fixacao em coluna conico continua tipo I, projecao de 3,70m (tres metros e setenta centimetros); diametro junto a flange de 123mm (cento e vinte e tres milimetros); conforme especificacao CET-RIO. Fornecimento.(desonerado)","un",3636.68,0]
["ST 64.15.0180","ST 64.15.0180 (/)","Montagem de braco projetado de aco em coluna de aco conica continua tipo I assentada, exclusive o fornecimento do braco.(desonerado)","un",83.93,0]
["ST 64.15.0340","ST 64.15.0340 (/)","Bloco de concreto armado medindo (0,60 x 0,60 x 1,00)m para uma coluna de aco conica continua para instalacao de ate 4 bracos projetados para sinalizacao.(desonerado)","un",479.59,0]
["ST 64.05.0636","ST 64.05.0636 (/)","Coluna de aco conica continua tipo II para dois bracos projetados capazes de sustentar, cada um, semaforo e placa de ate 4,50m2; coluna galvanizada a fogo; altura util total de 5m; 300mm de diametro na base; conforme especificacao da CET-RIO. Fornecimento.(desonerado)","un",12423.77,0]
["ST 64.15.0173","ST 64.15.0173 (/)","Assentamento de coluna conica continua tipo II para 1 (um) ou 2 (dois) bracos projetados capazes de sustentar, cada um, semaforo e placa de ate 4,5m2 fixada por chumbadores engastados em fundacao de concreto, exclusive fundacao, exclusive fornecimento da coluna.(desonerado)","un",343.29,0]
["ST 64.05.0760","ST 64.05.0760 (/)","Braco projetado de aco para sustentacao de semaforo e placa de ate 4,50m2; galvanizado a fogo; para fixacao em coluna conica tipo II; projecao de 6m; 173mm de diametro junto a flange; conforme especificacao da CET-RIO. Fornecimento.(desonerado)","un",5033.72,0]
["ST 64.15.0186","ST 64.15.0186 (/)","Montagem de braco projetado em coluna de aco conica continua tipo II assentada, exclusive o fornecimento do braco.(desonerado)","un",159.38999999999999,0]
["ST 64.15.0340","ST 64.15.0340 (/)","Bloco de concreto armado medindo (0,60 x 0,60 x 1,00)m para uma coluna de aco conica continua para instalacao de ate 4 bracos projetados para sinalizacao.(desonerado)","un",479.59,0]
["ST 64.15.0300","ST 64.15.0300 (/)","Retirada de poste com braco projetado, diametro maior que 4\".(desonerado)","un",435.21,0]
["ST 64.15.0200 (A)","ST 64.15.0200 (A)","Retirada de poste simples de aco, diametro de 2\".(desonerado)","un",53.26,0]